Workbook

Sheet 표지
H2: "사회적 가치실현으로 시민과 상생하는 공기업"
H5: 2022. 12.
A6: 2023년도
A8: 세입·세출 예산서

Sheet 목차
A1: 목 차
D2: 1. 사업운영계획 ……………………………………… | I2: 1
D4: 2. 예산총칙 ……………………………………………………………… | I4: 3
D6: 3. 2023년 예산 총괄표 ……………………………………………………………… | I6: 6
D7: 3-1. 사업예산 총괄표 ……………………… | I7: 8
D8: 3-2. 자본예산 총괄표………………………… | I8: 9
D9: 가. 수입예산 ……………………………………………………………… | I9: 10
D10: 나. 지출예산 ……………………………………………………………… | I10: 12
D12: 4. 자금운영계획 …………………………………………………… | I12: 86
D13: ○ 수입자금 ……………………………………………………………… | I13: 87
D14: ○ 지출자금 ……………………………………………………………… | I14: 88

Sheet 1.사업운영계획
B10: 1. 사 업 운 영 계 획

Sheet 사업운영계획1장
A1: 1. 사 업 운 영 계 획
A3: 구 분 | C3: 단위 | D3: 당년도 | E3: 전년도 | F3: 증감 | G3: 비고
A4: 1. 시설현황 | B4: 1) 공영주차장수 | C4: 개소 | D4: 30 | E4: 35 | F4: =D4-E4 -> (5) | G4: 흥국로 등 노상6개 제외 수산시장(3) 신규
B5: 2) 휴양림 관리 | C5: 개소 | D5: 1 | E5: 1 | F5: =D5-E5 -> 0
B6: 3) 장애인국민체육센터 관리 | C6: 개소 | D6: 1 | E6: 1 | F6: =D6-E6 -> 0
B7: 4) 수영장관리 | C7: 개소 | D7: 2 | E7: 2 | F7: =D7-E7 -> 0 | G7: 진남/망마수영장
A8: 2. 업무현황 | B8: 1) 1일주차대수 | C8: 대/일 | D8: 1.6만대/1 | E8: 1.5만대/1일
B9: 2) 년간 주차요금수입 | C9: 백만원 | D9: 1,400 | E9: 1,350 | F9: =D9-E9 -> 50
B10: 3) 년간 휴양림관리수입 | C10: 백만원 | D10: 380 | E10: 345 | F10: 35
B11: 4) 년간 종량제물품판매수입 | C11: 백만원 | D11: 7,100 | E11: 7,000 | F11: 100
B12: 5) 년간 수영장관리수입 | C12: 백만원 | D12: 1,150 | E12: 1,100 | F12: 50
B13: 6) 년간 장애인국민체육센터관리수입 | C13: 백만원 | D13: 5 | E13: 5 | F13: 0
A14: 3. 대행사업현황 | B14: 1) 공영주차장 관리 운영 | C14: 백만원 | D14: ='가. 수입예산(사업수익+자본적수입)'!E10+'가. 수입예산(사업수익+자본적수입)'!E30 -> 1,194,643 | E14: ='가. 수입예산(사업수익+자본적수입)'!F10+'가. 수입예산(사업수익+자본적수입)'!F30 -> 1,041,879 | F14: 152,764
B15: 2) 돌산공원주차장 운영 | C15: 백만원 | D15: ='가. 수입예산(사업수익+자본적수입)'!J11+'가. 수입예산(사업수익+자본적수입)'!J31 -> 230,888 | E15: ='가. 수입예산(사업수익+자본적수입)'!F11+'가. 수입예산(사업수익+자본적수입)'!F31 -> 235,317 | F15: =D15-E15 -> △4,429
B16: 3) 봉황산자연휴양림 운영 | C16: 백만원 | D16: ='가. 수입예산(사업수익+자본적수입)'!J12+'가. 수입예산(사업수익+자본적수입)'!J32 -> 299,424 | E16: ='가. 수입예산(사업수익+자본적수입)'!F12+'가. 수입예산(사업수익+자본적수입)'!F32 -> 275,261 | F16: 24,163
B17: 4) 생활폐기물수집운반 | C17: 백만원 | D17: ='가. 수입예산(사업수익+자본적수입)'!J13+'가. 수입예산(사업수익+자본적수입)'!J33 -> 20,837,466 | E17: ='가. 수입예산(사업수익+자본적수입)'!F13+'가. 수입예산(사업수익+자본적수입)'!F33 -> 21,866,242 | F17: △1,028,776
B18: 5) 종량제물품공급 | C18: 백만원 | D18: ='가. 수입예산(사업수익+자본적수입)'!J14+'가. 수입예산(사업수익+자본적수입)'!J34 -> 106,284 | E18: ='가. 수입예산(사업수익+자본적수입)'!F14+'가. 수입예산(사업수익+자본적수입)'!F34 -> 98,805 | F18: 7,479
B19: 6) 진남수영장 | C19: 백만원 | D19: ='가. 수입예산(사업수익+자본적수입)'!J15+'가. 수입예산(사업수익+자본적수입)'!J35 -> 1,277,344 | E19: ='가. 수입예산(사업수익+자본적수입)'!F15+'가. 수입예산(사업수익+자본적수입)'!F35 -> 1,213,754 | F19: 63,590
B20: 7) 망마국민체육센터 | C20: 백만원 | D20: ='가. 수입예산(사업수익+자본적수입)'!J16+'가. 수입예산(사업수익+자본적수입)'!J36 -> 1,121,894 | E20: ='가. 수입예산(사업수익+자본적수입)'!F16+'가. 수입예산(사업수익+자본적수입)'!F36 -> 1,059,263 | F20: 62,631
B21: 8) 장애인국민체육센터 | C21: 백만원 | D21: ='가. 수입예산(사업수익+자본적수입)'!J17+'가. 수입예산(사업수익+자본적수입)'!J37 -> 224,410 | E21: ='가. 수입예산(사업수익+자본적수입)'!F17+'가. 수입예산(사업수익+자본적수입)'!F37 -> 161,678 | F21: 62,732
B22: 9) 도시형폐기물처리시설 | C22: 백만원 | D22: ='가. 수입예산(사업수익+자본적수입)'!J18+'가. 수입예산(사업수익+자본적수입)'!J38 -> 5,770,937 | E22: ='가. 수입예산(사업수익+자본적수입)'!F18+'가. 수입예산(사업수익+자본적수입)'!F38 -> 4,476,345 | F22: 1,294,592
A23: 4. 인력관리현황 | B23: 계 | C23: 명 | D23: =SUM(D24:D30) -> 429 | E23: =SUM(E24:E30) -> 424 | F23: 5
B24: 1) 임 원 | C24: 명 | D24: 3 | E24: 3 | F24: 0 | G24: 이사장포함
B25: 2) 일 반 직 | C25: 명 | D25: 44 | E25: 42 | F25: 2
B26: 3) 기 능 직 | C26: 명 | D26: 30 | E26: 29 | F26: 1
B27: 4) 환경미화직 | C27: 명 | D27: 274 | E27: 272 | F27: 2 | G27: 정원
B28: 5) 공 무 직 | C28: 명 | D28: 75 | E28: 75 | F28: 0 | G28: "
B29: 6) 기 타 직 | C29: 명 | D29: 3 | E29: 3 | F29: 0 | G29: 市 파견공무원
B30: 7) 기간제근로자등 | C30: 명 | D30: 49 | E30: 47 | F30: 2 | G30: 정원 외
A31: 5. 자산평가액 | B31: 출자 자본금 | C31: 백만원 | D31: 500 | E31: 500 | F31: -

Sheet 2.예산총칙
C9: 2. 예 산 총 칙

Sheet 예산총칙
A1: 2. 예 산 총 칙
A3: 제1조 (총칙) 2023년 여수시도시관리공단의 예산은 다음과 같이 정한다.
A4: 제2조 (수입 및 지출) 수입 및 지출의 예정액은 다음과 같이 정한다.
D5: (단위 : 천원)
A6: 수 입 | C6: 지 출
A7: 과 목 | B7: 금 액 | C7: 과 목 | D7: 금 액
A8: 합 계 | B8: =B9+B16+B26 -> 49,581,723 | C8: 합 계 | D8: =D9+D16+D26 -> 49,581,723
A9: 소 계 | B9: =B10 -> 46,804,453 | C9: 소 계 | D9: =SUM(D10:D15) -> 46,804,453
A10: 1. 사업수익 | B10: =SUM(B11:B13) -> 46,804,453 | C10: 1. 사업비용 | D10: 0
A11: 가. 영업수익 | B11: =예산총괄표3장!C7 -> 46,799,453 | C11: 가. 영업비용 | D11: =예산총괄표3장!G13 -> 46,799,453
A12: 나. 영업외수익 | B12: =예산총괄표3장!C8 -> 5,000 | C12: 나. 영업외비용 | D12: =예산총괄표3장!G14 -> 5,000
A13: 다. 특별이익 | B13: 0 | C13: 다. 특별손실 | D13: ='3-1.사업예산총괄표'!F15 -> 0
C14: 라. 법인세등 | D14: =예산총괄표3장!C18 -> 0
C15: 마. 예비비 | D15: ='3-1.사업예산총괄표'!F19 -> 0
A16: 소 계 | B16: =B17 -> 2,777,270 | C16: 소 계 | D16: =D17 -> 2,777,270
A17: 2. 자본수입 | B17: =SUM(B18:B25) -> 2,777,270 | C17: 2. 자본지출 | D17: =SUM(D18:D25) -> 2,777,270
A18: 가. 투자자산 | B18: 0 | C18: 가. 유형자산 | D18: =예산총괄표3장!G16 -> 2,277,270
A19: 나. 고정자산매각수입 | B19: 0 | C19: 나. 무형자산및기타비유동자산취득 | D19: 0
A20: 다. 고정부채수입 | B20: 0 | C20: 다. 예비비 | D20: =예산총괄표3장!G19 -> 500,000
A21: 라. 비유동부채수입 | B21: 0 | C21: 라.투자자산 | D21: 0
A22: 마. 자본금 | B22: 0 | C22: 마. 비유동부채상환금 | D22: 0
A23: 바. 자본잉여금수입 | B23: ='3-2.자본예산총괄표'!C17 -> 2,277,270 | C23: 바. 기타자본적지출 | D23: 0
A24: 사. 유보자금 | B24: ='3-2.자본예산총괄표'!C21 -> 500,000
A25: 아. 기타자본수입 | B25: 0
A26: 소 계 | B26: =B27 -> 0 | C26: 소 계 | D26: =D28 -> 0
A27: 3. 이월금 | B27: =SUM(B28:B29) -> 0
A28: 가. 순세계잉여금
A29: 나. 미수금 | B29: 0
A30: 가. 추정손익계산서
A31: 차 변 | C31: 대 변
A32: 비용 | B32: 순이익 | C32: 수익 | D32: 순손실
A33: 49,581,723천원 | B33: 49,581,723천원 | C33: 49,581,723천원 | D33: 49,581,723천원
A35: 제3조 사업수입액이 사업지출액에 대하여 부족한 금액은 자본예산 차액으로 보전하는 것으로 한다.
A36: 제4조(예산전용금지 과목)다음에 게기하는 과목의 경비는 이사회의 의결을 거치지 않고는 그 경비를 전용할 수 없다.
A37: (1) 인건비
A38: (2) 업무추진비(타 비목으로부터의 전용금지)
A39: 제5조(일시차입금)이사장은 공단의 자금수급 불균형으로 인하여 자금의 일시적 차입이 필요한 때에는 이사회의 결정으로 예산의 5%이내의 금액을 일시 차입하여 사업을 추진할 수 있다.
C45: 2022년 월 일
B47: 여수시도시관리공단 이사장 김 유 화

Sheet 3.예산총괄표
B9: 3. 예 산 총 괄 표

Sheet 예산총괄표3장
A1: 3. 예 산 총 괄 표
A4: [여수시도시관리공단］ | D4: [본예산] | G4: (단위 : 천원)
A5: 구분 | B5: 사업예산 | D5: 자본예산 | F5: 예산총계
A6: 수 입 | B6: 수입계(A) | C6: =SUM(C7:C10) -> 46,804,453 | D6: 수입계(B) | E6: =SUM(E7:E11) -> 2,777,270 | F6: 수입계(C) | G6: =SUM(G7:G11) -> 49,581,723
B7: 영업수익 | C7: ='3-1.사업예산총괄표'!C6 -> 46,799,453 | D7: 투자자산 | F7: 영업수익 | G7: =C7+E7 -> 46,799,453
B8: 영업외수입 | C8: ='3-1.사업예산총괄표'!C13 -> 5,000 | D8: 기타비유동자산처분 | E8: =[1]자본예산총괄표!C10 -> 0 | F8: 영업외수익 | G8: =C8+E8 -> 5,000
D9: 유동부채수입 | E9: =[1]자본예산총괄표!C14 -> 0 | F9: 유동부채수입 | G9: =C9+E9 -> 0
D10: 자본잉여금수입 | E10: ='3-2.자본예산총괄표'!C17 -> 2,277,270 | F10: 자본잉여금수입 | G10: =C10+E10 -> 2,277,270
D11: 유 보 자 금 | E11: =[1]자본예산총괄표!C21 -> 500,000 | F11: 유보자금 | G11: =[1]이월금예산총괄표!C5 -> 500,000
A12: 지 출 | B12: 지출계(A`) | C12: =SUM(C13:C21) -> 46,804,453 | D12: 지출계(B`) | E12: =SUM(E13:E22) -> 2,777,270 | F12: 지출계(C`) | G12: =SUM(G13:G22) -> 49,581,723
B13: 영업비용 | C13: ='3-1.사업예산총괄표'!F6 -> 46,799,453 | F13: 영업비용 | G13: =C13+E13 -> 46,799,453
B14: 영업외비용 | C14: 5,000 | F14: 영업외비용 | G14: =C14+E14 -> 5,000
B15: 특별손실 | C15: ='3-1.사업예산총괄표'!F15 -> 0 | F15: 특별손실 | G15: =C15+E15 -> 0
D16: 유형자산 | E16: ='3-2.자본예산총괄표'!F10 -> 2,277,270 | F16: 유형자산 | G16: =C16+E16 -> 2,277,270
D17: 무형자산 | E17: =[1]자본예산총괄표!F15 -> 0 | F17: 무형자산 및 기타비유동자산취득 | G17: 0
B18: 법인세등 | C18: ='3-1.사업예산총괄표'!F17 -> 0 | F18: 법인세등 | G18: 0
B19: 예비비 | C19: ='3-1.사업예산총괄표'!F19 -> 0 | D19: 예비비 | E19: =[1]자본예산총괄표!F25 -> 500,000 | F19: 예비비 | G19: 500,000
D20: 투자자산 | E20: =[1]자본예산총괄표!F17 -> 0 | F20: 투자자산 | G20: 0
D21: 유동부채상환 | E21: =[1]자본예산총괄표!F21 -> 0 | F21: 유동부채상환 | G21: 0
D22: 기타자본적지출 | E22: ='3-2.자본예산총괄표'!F24 -> 0 | F22: 기타자본적지출 | G22: 0
B23: 차인(A-A') | C23: =SUM(C6-C12) -> 0 | D23: 차인(B-B') | E23: =SUM(E6-E12) -> 0 | F23: 차인(C-C') | G23: =SUM(G6-G12) -> 0

Sheet 3-1.사업예산총괄표
A1: 3-1. 사업예산 총괄표
F2: (단위 : 천원)
A3: 수 입 의 부 (A) | D3: 비 용 의 부 (B)
A4: 계 정 과 목 | C4: 금 액 | D4: 계 정 과 목 | F4: 금 액
A5: 합 계 (A) | C5: =SUM(C6+C13) -> 46,804,453 | D5: 합 계 (B) | F5: =SUM(F6,F13,F15,F17,F19) -> 46,804,453
A6: 영업수익 | B6: 소 계 | C6: =SUM(C7:C12) -> 46,799,453 | D6: 영업비용 | E6: 소 계 | F6: =F7+F8+F9+F10 -> 46,799,453
B7: 용지매출수익 | C7: 0 | E7: 용 지 매 출 원 가 | F7: 0
B8: 주택판매수익 | C8: =+C29+C51 -> 0 | E8: 주 택 판 매 원 가 | F8: 0
B9: 대행사업수익(직접) | C9: ='가. 수입예산(사업수익+자본적수입)'!E9 -> 28,808,790 | E9: 대행사업비(직접) | F9: ='가. 수입예산(사업수익+자본적수입)'!E9 -> 28,808,790
B10: 대행사업수익(간접) | C10: ='가. 수입예산(사업수익+자본적수입)'!E19 -> 17,990,663 | E10: 대행사업비(간접) | F10: ='가. 수입예산(사업수익+자본적수입)'!E19 -> 17,990,663
A13: 영업외수익 | B13: 소 계 | C13: =SUM(C14:C18) -> 5,000 | D13: 영업외비용 | E13: 소 계 | F13: =SUM(F14) -> 5,000
B14: 이자수익 | C14: 0 | E14: 기타영업외비용 | F14: ='가. 수입예산(사업수익+자본적수입)'!E22 -> 5,000
B15: 기타영업외수익 | C15: ='가. 수입예산(사업수익+자본적수입)'!E22 -> 5,000 | D15: 특별손실 | E15: 소 계 | F15: =F16 -> 0
E16: 특별손실
D17: 법인세등 | E17: 소 계 | F17: =SUM(F18) -> 0
E18: 법인세등 | F18: 0
D19: 예 비 비 | E19: 예 비 비 | F19: 0
A21: 수입. 비용차감액 (A-B) | D21: =C5-F5 -> 0

Sheet 3-2.자본예산총괄표
A1: 3-2. 자본예산 총괄표
F2: (단위 : 천원)
A3: 수입의부 (A) | D3: 지출의부 (B)
A4: 계 정 과 목 | C4: 금 액 | D4: 계 정 과 목 | F4: 금 액
A5: 합 계 (A) | C5: =C6+C10+C15+C17+C21+C24 -> 2,777,270 | D5: 합 계 (B) | F5: =F6+F10+F15+F17+F19+F21+F23+F25 -> 2,777,270
A6: 투자자산수입 | B6: 소계 | C6: =SUM(C7:C9) -> 0 | D6: 투 자 자 산 | E6: 소계 | F6: =SUM(F7:F9) -> 0
B7: 투자자산 | C7: 0
C8: 0 | E8: 미완성주택 | F8: 0
E9: 지급이자등 | F9: =F36+F63 -> 0
A10: 기타비유동자산처분 | B10: 소계 | C10: =SUM(C11:C13) -> 0 | D10: 유형자산취득 | E10: 소 계 | F10: =C19 -> 2,277,270
B11: 보증금회수수입 | C11: 0 | E11: 구 축 물
C12: =+C39+C66 -> 0 | E12: 기계장치 | F12: ='(도시형폐기물종합처리-도시미화과)지출예산'!F209 -> 1,275,000
C13: 0 | E13: 차량운반구
E14: 수탁자산취득비 | F14: =F10-F12 -> 1,002,270
A15: 유동부채수입 | B15: 소계 | C15: =C16 -> 0 | D15: 무형자산 및 기타비유동자산취득 | E15: 소계 | F15: =F16 -> 0
B16: 기타유동부채수입 | E16: 보증금 | F16: 0
A17: 자본잉여금수입 | B17: 소계 | C17: =C18+C19 -> 2,277,270 | D17: 재고자산 | E17: 소계 | F17: =F18 -> 0
B18: 차량운반구매각수입 | C18: ='[1]자본적수입(청소)'!E6 -> 0 | E18: 투자자산
B19: 수탁자산보조금수입 | C19: ='가. 수입예산(사업수익+자본적수입)'!E27 -> 2,277,270 | D19: 고정부채상환 | E19: 소 계
C20: 0 | E20: 기타유동부채상환
A21: 유보자금 | B21: 소계 | C21: =C22 -> 500,000 | D21: 유동부채상환 | E21: 소계 | F21: =F22 -> 0
B22: 유보자금 | C22: ='가. 수입예산(사업수익+자본적수입)'!E39 -> 500,000 | E22: 기타유동부채상환
D23: 기타자본적지출 | E23: 소계 | F23: =F24 -> 0
A24: 기타자본적수입 | B24: 소계 | C24: =SUM(C25:C26) -> 0 | E24: 기타자본적지출
B25: 기타자본적수입 | C25: =+C52+C79 -> 0 | D25: 예비비 | E25: 소계 | F25: =F26 -> 500,000
E26: 예비비 | F26: ='[1]자본적지출5번(본부)'!F15 -> 500,000
A27: 수입. 비용차감액 (A-B) | F27: =C5-F5 -> 0

Sheet 가. 수입예산(사업수익+자본적수입)
A1: 가. 수입예산(사업수익+자본적수입)
J2: (단위 : 천원)
A3: 과 목 | E3: 당년도예산액 (A) | F3: 전년도예산액 (B) | G3: 증 감 (A-B) | H3: 산 출 기 초
A4: 관. 항. 세항 | D4: 목
A5: 수입계(사업수익+자본적수입) | E5: =E6+E25 -> 49,581,723 | F5: =F6+F25 -> 43,072,649 | G5: =E5-F5 -> 6,509,074
A6: 600 사업수익 | E6: =E7+E21 -> 46,804,453 | F6: =SUM(F7,F21) -> 40,284,727 | G6: =E6-F6 -> 6,519,726
B7: 610 영업수익 | E7: =E8 -> 46,799,453 | F7: =SUM(F8) -> 40,279,727 | G7: =E7-F7 -> 6,519,726
C8: 622 대행사업수익 | E8: =E9+E19 -> 46,799,453 | F8: =F19+F9 -> 40,279,727 | G8: =E8-F8 -> 6,519,726
D9: 623-01 직접관리비수익 | E9: =SUM(E10:E18) -> 28,808,790 | F9: =SUM(F10:F18) -> 28,155,672 | G9: =E9-F9 -> 653,118 | J9: =SUM(J10:J18) -> 28,808,790
E10: =J10 -> 1,194,643 | F10: ='(공영주차장-교통과)지출예산'!G8 -> 1,041,879 | G10: =E10-F10 -> 152,764 | H10: ○ 대행사업관리비 수입(공영주차장 관리 운영) | I10: = | J10: ='(공영주차장-교통과)지출예산'!F6 -> 1,194,643
E11: 230,888 | F11: ='(돌산주차장-공원과)지출예산'!G6 -> 235,317 | G11: △4,429 | H11: ○ 대행사업관리비 수입(돌산공원주차장 운영) | I11: = | J11: ='(돌산주차장-공원과)지출예산'!F6 -> 230,888
E12: 273,554 | F12: ='(봉황산휴양림-산림과)지출예산'!G6 -> 271,761 | G12: 1,793 | H12: ○ 대행사업관리비 수입(봉황산자연휴양림 운영) | I12: = | J12: ='(봉황산휴양림-산림과)지출예산'!F6 -> 273,554
E13: 19,952,216 | F13: ='(생활폐기물 운반-도시미화과)지출예산'!G6 -> 21,273,842 | G13: △1,321,626 | H13: ○ 대행사업 관리비 수입(생활폐기물수집운반) | I13: = | J13: ='(생활폐기물 운반-도시미화과)지출예산'!F6 -> 19,952,216
E14: =J14 -> 106,284 | F14: ='(종량제공급-도시미화과)지출예산'!G6 -> 98,805 | G14: 7,479 | H14: ○ 대행사업관리비 수입(종량제물품공급) | I14: = | J14: ='(종량제공급-도시미화과)지출예산'!F6 -> 106,284
E15: 1,254,794 | F15: ='(진남수영장-체육지원과)지출예산'!G6 -> 1,192,782 | G15: 62,012 | H15: ○ 대행사업관리비 수입(진남수영장) | I15: = | J15: ='(진남수영장-체육지원과)지출예산'!F6 -> 1,254,794
E16: 1,112,544 | F16: ='(망마-체육지원과)지출예산'!G6 -> 1,045,963 | G16: 66,581 | H16: ○ 대행사업관리비 수입(망마국민체육센터) | I16: = | J16: ='(망마-체육지원과)지출예산'!F6 -> 1,112,544
E17: 216,410 | F17: ='(장애인-체육지원과)지출예산'!G6 -> 154,078 | G17: 62,332 | H17: ○ 대행사업관리비 수입(장애인국민체육센터) | I17: = | J17: ='(장애인-체육지원과)지출예산'!F6 -> 216,410
E18: 4,467,457 | F18: ='(도시형폐기물종합처리-도시미화과)지출예산'!G6 -> 2,841,245 | G18: 1,626,212 | H18: ○ 대행사업관리비 수입(도시형폐기물처리시설) | I18: = | J18: ='(도시형폐기물종합처리-도시미화과)지출예산'!F6 -> 4,467,457
D19: 623-02 간접관리비수익 | E19: 17,990,663 | F19: ='(경영본부-기획예산과)지출예산'!G7 -> 12,124,055 | G19: =E19-F19 -> 5,866,608 | H19: 623-02 간접관리비수익 | J19: =J20 -> 17,990,663
H20: ○ 사업수행에 따른 공통경비등 간접관리비 수입 | I20: = | J20: ='(경영본부-기획예산과)지출예산'!F7 -> 17,990,663
B21: 670 영업외수익 | E21: =E22 -> 5,000 | F21: =F22 -> 5,000 | G21: =G22 -> 0
C22: 679 기타영업외수익 | E22: =J23 -> 5,000 | F22: 5,000 | G22: =E22-F22 -> 0
D23: 679-09 기타영업외수익 | E23: =J23 -> 5,000 | F23: 5,000 | G23: =E23-F23 -> 0 | J23: =J24 -> 5,000
H24: ○ 신용카드 포인트 등 | I24: = | J24: 5,000
A25: 100 자본적수입 | E25: =E26+E39 -> 2,777,270 | F25: =F26+F39 -> 2,787,922 | G25: =E25-F25 -> △10,652
B26: 170 자본잉여금수입 | E26: =E27 -> 2,277,270 | F26: =F27 -> 2,287,922 | G26: =E26-F26 -> △10,652 | J26: =J27 -> 0
C27: 176 수탁자산보조금수입 | E27: =E28 -> 2,277,270 | F27: =F28 -> 2,287,922 | G27: △10,652
D28: 176-01 수탁자산보조금수입 | E28: =SUM(E29:E38) -> 2,277,270 | F28: =SUM(F29:F38) -> 2,287,922 | G28: △10,652 | J28: =SUM(J29:J38) -> 2,277,270
E29: =J29 -> 22,770 | F29: ='(경영본부-기획예산과)지출예산'!G486 -> 15,050 | G29: =E29-F29 -> 7,720 | H29: ○ 수탁자산취득비(경영본부) | I29: = | J29: ='(경영본부-기획예산과)지출예산'!F487 -> 22,770
E30: 0 | F30: 0 | G30: =E30-F30 -> 0 | H30: ○ 수탁자산취득비(공영주차장) | I30: = | J30: 0
E31: 0 | F31: 0 | G31: 0 | H31: ○ 수탁자산취득비(돌산공원주차장) | I31: = | J31: 0
E32: 25,870 | F32: ='(봉황산휴양림-산림과)지출예산'!G71 -> 3,500 | G32: 22,370 | H32: ○ 수탁자산취득비(봉황산자연휴양림) | I32: = | J32: ='(봉황산휴양림-산림과)지출예산'!F71 -> 25,870
E33: 885,250 | F33: ='(생활폐기물 운반-도시미화과)지출예산'!G236 -> 592,400 | G33: 292,850 | H33: ○ 수탁자산취득비(생활폐기물수집운반) | I33: = | J33: ='(생활폐기물 운반-도시미화과)지출예산'!F236 -> 885,250
E34: =J34 -> 0 | F34: 0 | G34: 0 | H34: ○ 수탁자산취득비(종량제물품공급) | I34: = | J34: 0
E35: 22,550 | F35: ='(진남수영장-체육지원과)지출예산'!G138 -> 20,972 | G35: 1,578 | H35: ○ 수탁자산취득비(진남수영장) | I35: = | J35: ='(진남수영장-체육지원과)지출예산'!F138 -> 22,550
E36: 9,350 | F36: ='(망마-체육지원과)지출예산'!G130 -> 13,300 | G36: △3,950 | H36: ○ 수탁자산취득비(망마국민체육센터) | I36: = | J36: ='(망마-체육지원과)지출예산'!F130 -> 9,350
E37: 8,000 | F37: ='(장애인-체육지원과)지출예산'!G82 -> 7,600 | G37: 400 | H37: ○ 수탁자산취득비(장애인국민체육센터) | I37: = | J37: ='(장애인-체육지원과)지출예산'!F82 -> 8,000
E38: 1,303,480 | F38: ='(도시형폐기물종합처리-도시미화과)지출예산'!G207 -> 1,635,100 | G38: △331,620 | H38: ○ 시설비및부대비,수탁자산취득비(도시형폐기물처리시설) | I38: = | J38: ='(도시형폐기물종합처리-도시미화과)지출예산'!F207 -> 1,303,480
B39: 180 유보자금 | E39: =E40 -> 500,000 | F39: =F40 -> 500,000 | G39: 0
C40: 181 순세계잉여금 | E40: =E41 -> 500,000 | F40: =F41 -> 500,000 | G40: 0
D41: 181-01 순세계잉여금 | E41: 500,000 | F41: 500,000 | G41: 0 | J41: =J42 -> 500,000
H42: ○ 유보자금 | I42: = | J42: 500,000

Sheet (경영본부-기획예산과)지출예산
A1: 나. 지출예산-경영본부
A2: 관: (700)사업비용 항: (710)영업비용 세항: (722)대행사업비 | J2: (단위 : 천원)
A3: 과 목 | F3: 당년도예산액 (A) | G3: 전년도예산액 (B) | H3: 증 감 (A-B) | I3: 산 출 기 초
A4: 관. 항. 세항 | D4: 목 | E4: 세목
A5: 지출계(사업비용+자본적지출) | F5: =F6+F486 -> 18,018,433 | G5: =G6+G486 -> 12,144,105 | H5: =F5-G5 -> 5,874,328
A6: 700 사업비용 | F6: =F7+F484 -> 17,995,663 | G6: =G7+G484 -> 12,129,055 | H6: 5,866,608
B7: 710 영업비용 | F7: =F8 -> 17,990,663 | G7: =G8 -> 12,124,055 | H7: 5,866,608
C8: 722 대행사업비 | F8: =F9+F205+F447 -> 17,990,663 | G8: =G9+G205+G447 -> 12,124,055 | H8: 5,866,608
C9: 100 인건비 | F9: =F10+F198+F200 -> 13,057,538 | G9: =G10+G198+G200 -> 7,535,323 | H9: 5,522,215 | I9: ※ 인건비 산출 방법 : 기본급(현원 평균호봉+1)+인상분2.8%(일반직, 기능직, 공무직)
D10: 101 인건비 | F10: =F11+F159+F197 -> 7,897,173 | G10: =G11+G159+G197 -> 7,167,408 | H10: 729,765 | I10: ※ 2021년 기본급 기준 작성 | K10: =K11+K159+K197 -> 7,897,173 | M10: 임원 | N10: 팀장 | O10: 4급이하 | P10: 호봉인상 | Q10: 처우개선 | R10: 전체정원
E11: 01 보수 | F11: =K11 -> 4,262,095 | G11: 4,098,513 | H11: 163,582 | I11: 01 보수 | K11: =K12+K73 -> 4,262,095 | M11: 3 | N11: 4 | O11: 40 | P11: 1.40% | Q11: 1.40% | R11: 437
I12: [임원 3명, 팀장 4명, 일반직40명] | K12: =K13+K17+K21+K25+K29+K33+K36+K38+K42+K46+K50+K53+K57+K61+K65+K71 -> 2,619,939 | L12: 급수 | M12: 호봉 | N12: 금액(원) | O12: 인원 | P12: 개월 | Q12: 지급율 | R12: 산출액 합계
I13: ○ 연봉제급여 | K13: =SUM(K14:K16) -> 497,432 | L13: 인건비 보수 | R13: =SUM(R14:R158) -> 4,310,228,663
I14: =L14&TEXT(N14," #,###원")&" * "&TEXT(O14,"#,###명") -> - 이사장 : 80,000,000원 * 1명 | J14: = | K14: =R14/1000 -> 80,000 | L14: - 이사장 : | N14: 80,000,000 | O14: 1 | P14: 1 | R14: =N14*O14*P14 -> 80,000,000
I15: =L15&TEXT(N15," #,###원")&" * "&TEXT(O15,"#명")&" * "&TEXT(P15,"#월") -> - 본부장 : 5,863,000원 * 2명 * 12월 | J15: = | K15: =R15/1000 -> 140,712 | L15: - 본부장 : | N15: 5,863,000 | O15: 2 | P15: 12 | R15: =N15*O15*P15 -> 140,712,000
I16: =L16&TEXT(N16," #,###원")&" * "&TEXT(O16,"#명")&" * "&TEXT(P16,"#월") -> - 팀 장 : 5,765,000원 * 4명 * 12월 | J16: = | K16: =R16/1000 -> 276,720 | L16: - 팀 장 : | N16: 5,765,000 | O16: 4 | P16: 12 | R16: =N16*O16*P16 -> 276,720,000
I17: ○ 기본급 | K17: =SUM(K18:K20) -> 860,164
I18: =L18&TEXT(N18," #,###원")&" * "&TEXT(O18,"#명")&" * "&TEXT(P18,"#월") -> - 4급(18호봉) : 2,296,614원 * 13명 * 12월 | J18: = | K18: =R18/1000 -> 358,272 | L18: - 4급(18호봉) : | M18: 18 | N18: =(Q18*($P$11+$Q$11))+Q18 -> 2,296,614 | O18: 13 | P18: 12 | Q18: 2,234,060 | R18: =N18*O18*P18 -> 358,271,734
I19: =L19&TEXT(N19," #,###원")&" * "&TEXT(O19,"#명")&" * "&TEXT(P19,"#월") -> - 5급(9호봉) : 1,664,671원 * 17명 * 12월 | J19: = | K19: =R19/1000 -> 339,593 | L19: - 5급(9호봉) : | M19: 9 | N19: =(Q19*($P$11+$Q$11))+Q19 -> 1,664,671 | O19: 17 | P19: 12 | Q19: 1619330 | R19: =N19*O19*P19 -> 339,592,933
I20: =L20&TEXT(N20," #,###원")&" * "&TEXT(O20,"#명")&" * "&TEXT(P20,"#월") -> - 6급(6호봉) : 1,352,498원 * 10명 * 12월 | J20: = | K20: =R20/1000 -> 162,300 | L20: - 6급(6호봉) : | M20: 6 | N20: 1,352,498 | O20: 10 | P20: 12 | Q20: 1315660 | R20: =N20*O20*P20 -> 162,299,818
I21: ○ 영업수당 | K21: =SUM(K22:K24) -> 258,049
I22: =L22&TEXT(N22," #,###원")&" * "&TEXT(Q22,"#%")&" * "&TEXT(O22,"#명")&" * "&TEXT(P22,"#월") -> - 4급 : 2,296,614원 * 30% * 13명 * 12월 | J22: = | K22: =R22/1000 -> 107,482 | L22: - 4급 : | M22: =$M$18 -> 18 | N22: =$N$18 -> 2,296,614 | O22: =$O$18 -> 13 | P22: 12 | Q22: 30% | R22: =N22*O22*P22*Q22 -> 107,481,520
I23: =L23&TEXT(N23," #,###원")&" * "&TEXT(Q23,"#%")&" * "&TEXT(O23,"#명")&" * "&TEXT(P23,"#월") -> - 5급 : 1,664,671원 * 30% * 17명 * 12월 | J23: = | K23: =R23/1000 -> 101,878 | L23: - 5급 : | M23: =$M$19 -> 9 | N23: =$N$19 -> 1,664,671 | O23: =$O$19 -> 17 | P23: 12 | Q23: 30% | R23: =N23*O23*P23*Q23 -> 101,877,880
I24: =L24&TEXT(N24," #,###원")&" * "&TEXT(Q24,"#%")&" * "&TEXT(O24,"#명")&" * "&TEXT(P24,"#월") -> - 6급 : 1,352,498원 * 30% * 10명 * 12월 | J24: = | K24: =R24/1000 -> 48,690 | L24: - 6급 : | M24: =$M$20 -> 6 | N24: =$N$20 -> 1,352,498 | O24: =$O$20 -> 10 | P24: 12 | Q24: 30% | R24: =N24*O24*P24*Q24 -> 48,689,945
I25: ○ 장기근속수당 | K25: =SUM(K26:K28) -> 39,480
I26: =L26&TEXT(N26," #,###원")&" * "&TEXT(O26,"#명")&" * "&TEXT(P26,"#월") -> - 5년이상 ~10년미만 : 50,000원 * 7명 * 12월 | J26: = | K26: =R26/1000 -> 4,200 | L26: - 5년이상 ~10년미만 : | N26: 50,000 | O26: 7 | P26: 12 | R26: =N26*O26*P26 -> 4,200,000
I27: =L27&TEXT(N27," #,###원")&" * "&TEXT(O27,"#명")&" * "&TEXT(P27,"#월") -> - 10년이상~15년미만 : 60,000원 * 9명 * 12월 | J27: = | K27: =R27/1000 -> 6,480 | L27: - 10년이상~15년미만 : | N27: 60,000 | O27: 9 | P27: 12 | R27: =N27*O27*P27 -> 6,480,000
I28: =L28&TEXT(N28," #,###원")&" * "&TEXT(O28,"#명")&" * "&TEXT(P28,"#월") -> - 15년이상~20년미만 : 80,000원 * 30명 * 12월 | J28: = | K28: =R28/1000 -> 28,800 | L28: - 15년이상~20년미만 : | N28: 80,000 | O28: 30 | P28: 12 | R28: =N28*O28*P28 -> 28,800,000
I29: ○ 가족수당 | K29: =SUM(K30:K32) -> 21,600
I30: =L30&TEXT(N30," #,###원")&" * "&TEXT(O30,"#명")&" * "&TEXT(P30,"#월") -> - 배우자 : 40,000원 * 15명 * 12월 | J30: = | K30: =R30/1000 -> 7,200 | L30: - 배우자 : | N30: 40,000 | O30: 15 | P30: 12 | R30: =N30*O30*P30 -> 7,200,000
I31: =L31&TEXT(N31," #,###원")&" * "&TEXT(O31,"#명")&" * "&TEXT(P31,"#월") -> - 직계존비속 : 20,000원 * 15명 * 12월 | J31: = | K31: =R31/1000 -> 3,600 | L31: - 직계존비속 : | N31: 20,000 | O31: 15 | P31: 12 | R31: =N31*O31*P31 -> 3,600,000
I32: =L32&TEXT(N32," #,###원")&" * "&TEXT(O32,"#명")&" * "&TEXT(P32,"#월") -> - 둘째자녀 : 60,000원 * 15명 * 12월 | J32: = | K32: =R32/1000 -> 10,800 | L32: - 둘째자녀 : | N32: 60,000 | O32: 15 | P32: 12 | R32: =N32*O32*P32 -> 10,800,000
I33: ○ 기술수당 | K33: =SUM(K34:K35) -> 7,260
I34: =L34&TEXT(N34," #,###원")&" * "&TEXT(O34,"#명")&" * "&TEXT(P34,"#월") -> - 기사 1급 : 30,000원 * 16명 * 12월 | J34: = | K34: =R34/1000 -> 5,760 | L34: - 기사 1급 : | N34: 30,000 | O34: 16 | P34: 12 | R34: =N34*O34*P34 -> 5,760,000
I35: =L35&TEXT(N35," #,###원")&" * "&TEXT(O35,"#명")&" * "&TEXT(P35,"#월") -> - 기사 2급 : 25,000원 * 5명 * 12월 | J35: = | K35: =R35/1000 -> 1,500 | L35: - 기사 2급 : | N35: 25,000 | O35: 5 | P35: 12 | R35: =N35*O35*P35 -> 1,500,000
I36: ○ 특정업무수행경비 | K36: =SUM(K37) -> 11,520
I37: =L37&TEXT(N37," #,###원")&" * "&TEXT(O37,"#명")&" * "&TEXT(P37,"#월") -> - 예산·결산·계약·감사·노사·경영평가·안전·보건 80,000원 * 12명 * 12월 | J37: = | K37: =R37/1000 -> 11,520 | L37: - 예산·결산·계약·감사·노사·경영평가·안전·보건 | N37: 80,000 | O37: 12 | P37: 12 | R37: =N37*O37*P37 -> 11,520,000
I38: ○ 업무추진교통비 | K38: =SUM(K39:K41) -> 61,200
I39: =L39&TEXT(N39," #,###원")&" * "&TEXT(O39,"#명")&" * "&TEXT(P39,"#월") -> - 4급 : 130,000원 * 13명 * 12월 | J39: = | K39: =R39/1000 -> 20,280 | L39: =$L$22 -> - 4급 : | M39: =$M$18 -> 18 | N39: 130,000 | O39: =$O$18 -> 13 | P39: 12 | R39: =N39*O39*P39 -> 20,280,000
I40: =L40&TEXT(N40," #,###원")&" * "&TEXT(O40,"#명")&" * "&TEXT(P40,"#월") -> - 5급 : 130,000원 * 17명 * 12월 | J40: = | K40: =R40/1000 -> 26,520 | L40: =$L$23 -> - 5급 : | M40: =$M$19 -> 9 | N40: 130,000 | O40: =$O$19 -> 17 | P40: 12 | R40: =N40*O40*P40 -> 26,520,000
I41: =L41&TEXT(N41," #,###원")&" * "&TEXT(O41,"#명")&" * "&TEXT(P41,"#월") -> - 6급 : 120,000원 * 10명 * 12월 | J41: = | K41: =R41/1000 -> 14,400 | L41: =$L$24 -> - 6급 : | M41: =$M$20 -> 6 | N41: 120,000 | O41: =$O$20 -> 10 | P41: 12 | R41: =N41*O41*P41 -> 14,400,000
I42: ○ 정액급식비 | K42: =SUM(K43:K45) -> 62,400
I43: =L43&TEXT(N43," #,###원")&" * "&TEXT(O43,"#명")&" * "&TEXT(P43,"#월") -> - 4급 : 130,000원 * 13명 * 12월 | J43: = | K43: =R43/1000 -> 20,280 | L43: =$L$22 -> - 4급 : | M43: =$M$18 -> 18 | N43: 130,000 | O43: =$O$18 -> 13 | P43: 12 | R43: =N43*O43*P43 -> 20,280,000
I44: =L44&TEXT(N44," #,###원")&" * "&TEXT(O44,"#명")&" * "&TEXT(P44,"#월") -> - 5급 : 130,000원 * 17명 * 12월 | J44: = | K44: =R44/1000 -> 26,520 | L44: =$L$23 -> - 5급 : | M44: =$M$19 -> 9 | N44: 130,000 | O44: =$O$19 -> 17 | P44: 12 | R44: =N44*O44*P44 -> 26,520,000
I45: =L45&TEXT(N45," #,###원")&" * "&TEXT(O45,"#명")&" * "&TEXT(P45,"#월") -> - 6급 : 130,000원 * 10명 * 12월 | J45: = | K45: =R45/1000 -> 15,600 | L45: =$L$24 -> - 6급 : | M45: =$M$20 -> 6 | N45: 130,000 | O45: =$O$20 -> 10 | P45: 12 | R45: =N45*O45*P45 -> 15,600,000
I46: ○ 직급보조비 | K46: =SUM(K47:K49) -> 72,000
I47: =L47&TEXT(N47," #,###원")&" * "&TEXT(O47,"#명")&" * "&TEXT(P47,"#월") -> - 4급 : 150,000원 * 13명 * 12월 | J47: = | K47: =R47/1000 -> 23,400 | L47: =$L$22 -> - 4급 : | M47: =$M$18 -> 18 | N47: 150,000 | O47: =$O$18 -> 13 | P47: 12 | R47: =N47*O47*P47 -> 23,400,000
I48: =L48&TEXT(N48," #,###원")&" * "&TEXT(O48,"#명")&" * "&TEXT(P48,"#월") -> - 5급 : 150,000원 * 17명 * 12월 | J48: = | K48: =R48/1000 -> 30,600 | L48: =$L$23 -> - 5급 : | M48: =$M$19 -> 9 | N48: 150,000 | O48: =$O$19 -> 17 | P48: 12 | R48: =N48*O48*P48 -> 30,600,000
I49: =L49&TEXT(N49," #,###원")&" * "&TEXT(O49,"#명")&" * "&TEXT(P49,"#월") -> - 6급 : 150,000원 * 10명 * 12월 | J49: = | K49: =R49/1000 -> 18,000 | L49: =$L$24 -> - 6급 : | M49: =$M$20 -> 6 | N49: 150,000 | O49: =$O$20 -> 10 | P49: 12 | R49: =N49*O49*P49 -> 18,000,000
I50: ○ 선임수당 | K50: =SUM(K51:K52) -> 4,440
I51: =L51&TEXT(N51," #,###원")&" * "&TEXT(O51,"#명")&" * "&TEXT(P51,"#월") -> - 전기안전관리담당 : 30,000원 * 4명 * 12월 | J51: = | K51: =R51/1000 -> 1,440 | L51: - 전기안전관리담당 : | N51: 30,000 | O51: 4 | P51: 12 | R51: =N51*O51*P51 -> 1,440,000
I52: =L52&TEXT(N52," #,###원")&" * "&TEXT(O52,"#명")&" * "&TEXT(P52,"#월") -> - 기타선임수당(소방, 보일러) : 10,000원 * 25명 * 12월 | J52: = | K52: =R52/1000 -> 3,000 | L52: - 기타선임수당(소방, 보일러) : | N52: 10,000 | O52: 25 | P52: 12 | R52: =N52*O52*P52 -> 3,000,000
I53: ○ 가계안정비 | K53: =SUM(K54:K56) -> 179,201
I54: =L54&TEXT(N54," #,###원")&" * "&TEXT(O54,"#명")&" * "&TEXT(Q54,"#%") -> - 4급 : 2,296,614원 * 13명 * 250% | J54: = | K54: =R54/1000 -> 74,640 | L54: =$L$22 -> - 4급 : | M54: =$M$18 -> 18 | N54: =$N$18 -> 2,296,614 | O54: =$O$18 -> 13 | Q54: 250% | R54: =N54*O54*Q54 -> 74,639,945
I55: =L55&TEXT(N55," #,###원")&" * "&TEXT(O55,"#명")&" * "&TEXT(Q55,"#%") -> - 5급 : 1,664,671원 * 17명 * 250% | J55: = | K55: =R55/1000 -> 70,749 | L55: =$L$23 -> - 5급 : | M55: =$M$19 -> 9 | N55: =$N$19 -> 1,664,671 | O55: =$O$19 -> 17 | Q55: 250% | R55: =N55*O55*Q55 -> 70,748,528
I56: =L56&TEXT(N56," #,###원")&" * "&TEXT(O56,"#명")&" * "&TEXT(Q56,"#%") -> - 6급 : 1,352,498원 * 10명 * 250% | J56: = | K56: =R56/1000 -> 33,812 | L56: =$L$24 -> - 6급 : | M56: =$M$20 -> 6 | N56: =$N$20 -> 1,352,498 | O56: =$O$20 -> 10 | Q56: 250% | R56: =N56*O56*Q56 -> 33,812,462
I57: ○ 명절휴가비 | K57: =SUM(K58:K60) -> 107,521
I58: =L58&TEXT(N58," #,###원")&" * "&TEXT(O58,"#명")&" * "&TEXT(Q58,"#%") -> - 4급 : 2,296,614원 * 13명 * 150% | J58: = | K58: =R58/1000 -> 44,784 | L58: =$L$22 -> - 4급 : | M58: =$M$18 -> 18 | N58: =$N$18 -> 2,296,614 | O58: =$O$18 -> 13 | Q58: 150% | R58: =N58*O58*Q58 -> 44,783,967
I59: =L59&TEXT(N59," #,###원")&" * "&TEXT(O59,"#명")&" * "&TEXT(Q59,"#%") -> - 5급 : 1,664,671원 * 17명 * 150% | J59: = | K59: =R59/1000 -> 42,449 | L59: =$L$23 -> - 5급 : | M59: =$M$19 -> 9 | N59: =$N$19 -> 1,664,671 | O59: =$O$19 -> 17 | Q59: 150% | R59: =N59*O59*Q59 -> 42,449,117
I60: =L60&TEXT(N60," #,###원")&" * "&TEXT(O60,"#명")&" * "&TEXT(Q60,"#%") -> - 6급 : 1,352,498원 * 10명 * 150% | J60: = | K60: =R60/1000 -> 20,287 | L60: =$L$24 -> - 6급 : | M60: =$M$20 -> 6 | N60: =$N$20 -> 1,352,498 | O60: =$O$20 -> 10 | Q60: 150% | R60: =N60*O60*Q60 -> 20,287,477
I61: ○ 시간외근무수당 (연장, 휴일, 야간) | K61: =SUM(K62:K64) -> 329,963
I62: =L62&TEXT(N62," #,###원")&" * 1.5/209 * 30시간 * "&TEXT(O62,"#명")&" * "&TEXT(P62,"#월") -> - 4급 : 3,900,982원 * 1.5/209 * 30시간 * 13명 * 12월 | J62: = | K62: =R62/1000 -> 131,028 | L62: =$L$22 -> - 4급 : | M62: =$M$18 -> 18 | N62: =SUM(R18,R22,R26,R39,R43,R47,R54)/P62/O62 -> 3,900,982 | O62: =$O$18 -> 13 | P62: 12 | Q62: =1.5/209*30 -> 0.2153110048 | R62: =N62*O62*P62*Q62 -> 131,028,201
I63: =L63&TEXT(N63," #,###원")&" * 1.5/209 * 30시간 * "&TEXT(O63,"#명")&" * "&TEXT(P63,"#월") -> - 5급 : 2,952,644원 * 1.5/209 * 30시간 * 17명 * 12월 | J63: = | K63: =R63/1000 -> 129,690 | L63: =$L$23 -> - 5급 : | M63: =$M$19 -> 9 | N63: =SUM(R19,R23,R27,R40,R44,R48,R55)/P63/O63 -> 2,952,644 | O63: =$O$19 -> 17 | P63: 12 | Q63: =1.5/209*30 -> 0.2153110048 | R63: =N63*O63*P63*Q63 -> 129,690,289
I64: =L64&TEXT(N64," #,###원")&" * 1.5/209 * 30시간 * "&TEXT(O64,"#명")&" * "&TEXT(P64,"#월") -> - 6급 : 2,680,019원 * 1.5/209 * 30시간 * 10명 * 12월 | J64: = | K64: =R64/1000 -> 69,244 | L64: =$L$24 -> - 6급 : | M64: =$M$20 -> 6 | N64: =SUM(R20,R24,R28,R41,R45,R49,R56)/P64/O64 -> 2,680,019 | O64: =$O$20 -> 10 | P64: 12 | Q64: =1.5/209*30 -> 0.2153110048 | R64: =N64*O64*P64*Q64 -> 69,244,498
I65: ○ 연차휴가수당 | K65: =SUM(K66:K70) -> 62,199
I66: =L66&TEXT(N66," #,###원")&" * 1.0/209 * 8시간 * "&TEXT(P66,"#일")&" * "&TEXT(O66,"#명") -> - 2급 : 5,863,000원 * 1.0/209 * 8시간 * 10일 * 2명 | J66: = | K66: =R66/1000 -> 4,488 | L66: - 2급 : | N66: =N15 -> 5,863,000 | O66: =O15 -> 2 | P66: 10 | Q66: =8/209 -> 0.03827751196 | R66: =N66*O66*P66*Q66 -> 4,488,421
I67: =L67&TEXT(N67," #,###원")&" * 1.0/209 * 8시간 * "&TEXT(P67,"#일")&" * "&TEXT(O67,"#명") -> - 3급 : 5,765,000원 * 1.0/209 * 8시간 * 10일 * 4명 | J67: = | K67: =R67/1000 -> 8,827 | L67: - 3급 : | N67: =N16 -> 5,765,000 | O67: =O16 -> 4 | P67: 10 | Q67: =8/209 -> 0.03827751196 | R67: =N67*O67*P67*Q67 -> 8,826,794
I68: =L68&TEXT(N68," #,###원")&" * 1.0/209 * 8시간 * "&TEXT(P68,"#일")&" * "&TEXT(O68,"#명") -> - 4급 : 3,900,982원 * 1.0/209 * 8시간 * 10일 * 13명 | J68: = | K68: =R68/1000 -> 19,412 | L68: =$L$22 -> - 4급 : | M68: =$M$18 -> 18 | N68: =N62 -> 3,900,982 | O68: 13 | P68: 10 | Q68: =8/209 -> 0.03827751196 | R68: =N68*O68*P68*Q68 -> 19,411,585
I69: =L69&TEXT(N69," #,###원")&" * 1.0/209 * 8시간 * "&TEXT(P69,"#일")&" * "&TEXT(O69,"#명") -> - 5급 : 2,952,644원 * 1.0/209 * 8시간 * 10일 * 17명 | J69: = | K69: =R69/1000 -> 19,213 | L69: =$L$23 -> - 5급 : | M69: =$M$19 -> 9 | N69: 2,952,644 | O69: 17 | P69: 10 | Q69: =8/209 -> 0.03827751196 | R69: =N69*O69*P69*Q69 -> 19,213,376
I70: =L70&TEXT(N70," #,###원")&" * 1.0/209 * 8시간 * "&TEXT(P70,"#일")&" * "&TEXT(O70,"#명") -> - 6급 : 2,680,019원 * 1.0/209 * 8시간 * 10일 * 10명 | J70: = | K70: =R70/1000 -> 10,258 | L70: =$L$24 -> - 6급 : | M70: =$M$20 -> 6 | N70: 2,680,019 | O70: 10 | P70: 10 | Q70: =8/209 -> 0.03827751196 | R70: =N70*O70*P70*Q70 -> 10,258,444
I71: ○ 파견수당 | K71: =SUM(K72) -> 45,510
I72: =L72&TEXT(N72," #,###원")&" * "&TEXT(Q72,"#%")&" * "&TEXT(O72,"#명")&" * "&TEXT(P72,"#월") -> - 파견직원(6급) : 4,213,900원 * 30% * 3명 * 12월 | J72: = | K72: =R72/1000 -> 45,510 | L72: - 파견직원(6급) : | M72: 25 | N72: 4,213,900 | O72: 3 | P72: 12 | Q72: 30% | R72: =N72*O72*P72*Q72 -> 45,510,120
I73: [기능직(30명)-환경자원사업소] | K73: =K74+K79+K84+K89+K95+K100+K105+K110+K115+K120+K125+K130+K134+K139+K144+K149+K154+K158 -> 1,642,156 | L73: 급수 | M73: 호봉 | N73: 금액(원) | O73: 인원 | P73: 개월 | Q73: 지급율 | R73: 산출액 합계
I74: ○ 기본급 | K74: =SUM(K75:K78) -> 624,880
I75: =L75&TEXT(N75," #,###원")&" * "&TEXT(O75,"#명")&" * "&TEXT(P75,"#월") -> - 6등급(18호봉) : 2,211,423원 * 3명 * 12월 | J75: = | K75: =R75/1000 -> 79,611 | L75: - 6등급(18호봉) : | M75: 18 | N75: =(Q75*($P$11+$Q$11))+Q75 -> 2,211,423 | O75: 3 | P75: 12 | Q75: 2,151,190 | R75: =N75*O75*P75 -> 79,611,240
I76: =L76&TEXT(N76," #,###원")&" * "&TEXT(O76,"#명")&" * "&TEXT(P76,"#월") -> - 7등급(16호봉) : 1,909,582원 * 11명 * 12월 | J76: = | K76: =R76/1000 -> 252,065 | L76: - 7등급(16호봉) : | M76: 16 | N76: =(Q76*($P$11+$Q$11))+Q76 -> 1,909,582 | O76: 11 | P76: 12 | Q76: 1,857,570 | R76: =N76*O76*P76 -> 252,064,819
I77: =L77&TEXT(N77," #,###원")&" * "&TEXT(O77,"#명")&" * "&TEXT(P77,"#월") -> - 8등급(14호봉) : 1,606,579원 * 13명 * 12월 | J77: = | K77: =R77/1000 -> 250,626 | L77: - 8등급(14호봉) : | M77: 14 | N77: 1,606,579 | O77: 13 | P77: 12 | Q77: 1,562,820 | R77: =N77*O77*P77 -> 250,626,318
I78: =L78&TEXT(N78," #,###원")&" * "&TEXT(O78,"#명")&" * "&TEXT(P78,"#월") -> - 9등급(9호봉) : 1,182,714원 * 3명 * 12월 | J78: = | K78: =R78/1000 -> 42,578 | L78: - 9등급(9호봉) : | M78: 9 | N78: 1,182,714 | O78: 3 | P78: 12 | Q78: 1,150,500 | R78: =N78*O78*P78 -> 42,577,704
I79: ○ 영업수당 | K79: =SUM(K80:K83) -> 187,464
I80: =L80&TEXT(N80," #,###원")&" * "&TEXT(Q80,"#%")&" * "&TEXT(O80,"#명")&" * "&TEXT(P80,"#월") -> - 6등급 : 2,211,423원 * 30% * 3명 * 12월 | J80: = | K80: =R80/1000 -> 23,883 | L80: - 6등급 : | M80: =$M$75 -> 18 | N80: =$N$75 -> 2,211,423 | O80: =$O$75 -> 3 | P80: 12 | Q80: 30% | R80: =N80*O80*P80*Q80 -> 23,883,372
I81: =L81&TEXT(N81," #,###원")&" * "&TEXT(Q81,"#%")&" * "&TEXT(O81,"#명")&" * "&TEXT(P81,"#월") -> - 7등급 : 1,909,582원 * 30% * 11명 * 12월 | J81: = | K81: =R81/1000 -> 75,619 | L81: - 7등급 : | M81: =$M$76 -> 16 | N81: =$N$76 -> 1,909,582 | O81: =$O$76 -> 11 | P81: 12 | Q81: 30% | R81: =N81*O81*P81*Q81 -> 75,619,446
I82: =L82&TEXT(N82," #,###원")&" * "&TEXT(Q82,"#%")&" * "&TEXT(O82,"#명")&" * "&TEXT(P82,"#월") -> - 8등급 : 1,606,579원 * 30% * 13명 * 12월 | J82: = | K82: =R82/1000 -> 75,188 | L82: - 8등급 : | M82: =$M$77 -> 14 | N82: =$N$77 -> 1,606,579 | O82: =$O$77 -> 13 | P82: 12 | Q82: 30% | R82: =N82*O82*P82*Q82 -> 75,187,895
I83: =L83&TEXT(N83," #,###원")&" * "&TEXT(Q83,"#%")&" * "&TEXT(O83,"#명")&" * "&TEXT(P83,"#월") -> - 9등급 : 1,182,714원 * 30% * 3명 * 12월 | J83: = | K83: =R83/1000 -> 12,773 | L83: - 9등급 : | M83: =$M$78 -> 9 | N83: =$N$78 -> 1,182,714 | O83: =$O$78 -> 3 | P83: 12 | Q83: 30% | R83: =N83*O83*P83*Q83 -> 12,773,311
I84: ○ 장기근속수당 | K84: =SUM(K85:K88) -> 26,400
I85: =L85&TEXT(N85," #,###원")&" * "&TEXT(O85,"#명")&" * "&TEXT(P85,"#월") -> - 5년이상 ~10년미만 : 50,000원 * 2명 * 12월 | J85: = | K85: =R85/1000 -> 1,200 | L85: - 5년이상 ~10년미만 : | N85: 50,000 | O85: 2 | P85: 12 | R85: =N85*O85*P85 -> 1,200,000
I86: =L86&TEXT(N86," #,###원")&" * "&TEXT(O86,"#명")&" * "&TEXT(P86,"#월") -> - 10년이상~15년미만 : 60,000원 * 10명 * 12월 | J86: = | K86: =R86/1000 -> 7,200 | L86: - 10년이상~15년미만 : | N86: 60,000 | O86: 10 | P86: 12 | R86: =N86*O86*P86 -> 7,200,000
I87: =L87&TEXT(N87," #,###원")&" * "&TEXT(O87,"#명")&" * "&TEXT(P87,"#월") -> - 15년이상~20년미만 : 80,000원 * 16명 * 12월 | J87: = | K87: =R87/1000 -> 15,360 | L87: - 15년이상~20년미만 : | N87: 80,000 | O87: 16 | P87: 12 | R87: =N87*O87*P87 -> 15,360,000
I88: =L88&TEXT(N88," #,###원")&" * "&TEXT(O88,"#명")&" * "&TEXT(P88,"#월") -> - 20년이상~25년미만 : 110,000원 * 2명 * 12월 | J88: = | K88: =R88/1000 -> 2,640 | L88: - 20년이상~25년미만 : | N88: 110,000 | O88: 2 | P88: 12 | R88: =N88*O88*P88 -> 2,640,000
I89: ○ 가족수당 | K89: =SUM(K90:K94) -> 38,640
I90: =L90&TEXT(N90," #,###원")&" * "&TEXT(O90,"#명")&" * "&TEXT(P90,"#월") -> - 배우자 : 40,000원 * 25명 * 12월 | J90: = | K90: =R90/1000 -> 12,000 | L90: - 배우자 : | N90: 40,000 | O90: 25 | P90: 12 | R90: =N90*O90*P90 -> 12,000,000
I91: =L91&TEXT(N91," #,###원")&" * "&TEXT(O91,"#명")&" * "&TEXT(P91,"#월") -> - 직계존비속 : 20,000원 * 10명 * 12월 | J91: = | K91: =R91/1000 -> 2,400 | L91: - 직계존비속 : | N91: 20,000 | O91: 10 | P91: 12 | R91: =N91*O91*P91 -> 2,400,000
I92: =L92&TEXT(N92," #,###원")&" * "&TEXT(O92,"#명")&" * "&TEXT(P92,"#월") -> - 첫째자녀 : 20,000원 * 22명 * 12월 | J92: = | K92: =R92/1000 -> 5,280 | L92: - 첫째자녀 : | N92: 20,000 | O92: 22 | P92: 12 | R92: =N92*O92*P92 -> 5,280,000
I93: =L93&TEXT(N93," #,###원")&" * "&TEXT(O93,"#명")&" * "&TEXT(P93,"#월") -> - 둘째자녀 : 60,000원 * 18명 * 12월 | J93: = | K93: =R93/1000 -> 12,960 | L93: - 둘째자녀 : | N93: 60,000 | O93: 18 | P93: 12 | R93: =N93*O93*P93 -> 12,960,000
I94: =L94&TEXT(N94," #,###원")&" * "&TEXT(O94,"#명")&" * "&TEXT(P94,"#월") -> - 셋째자녀이상 : 100,000원 * 5명 * 12월 | J94: = | K94: =R94/1000 -> 6,000 | L94: - 셋째자녀이상 : | N94: 100,000 | O94: 5 | P94: 12 | R94: =N94*O94*P94 -> 6,000,000
I95: ○ 업무추진교통비 | K95: =SUM(K96:K99) -> 43,560
I96: =L96&TEXT(N96," #,###원")&" * "&TEXT(O96,"#명")&" * "&TEXT(P96,"#월") -> - 6등급 : 130,000원 * 3명 * 12월 | J96: = | K96: =R96/1000 -> 4,680 | L96: =$L$80 -> - 6등급 : | N96: 130,000 | O96: =$O$75 -> 3 | P96: 12 | R96: =N96*O96*P96 -> 4,680,000
I97: =L97&TEXT(N97," #,###원")&" * "&TEXT(O97,"#명")&" * "&TEXT(P97,"#월") -> - 7등급 : 120,000원 * 11명 * 12월 | J97: = | K97: =R97/1000 -> 15,840 | L97: =$L$81 -> - 7등급 : | N97: 120,000 | O97: =$O$76 -> 11 | P97: 12 | R97: =N97*O97*P97 -> 15,840,000
I98: =L98&TEXT(N98," #,###원")&" * "&TEXT(O98,"#명")&" * "&TEXT(P98,"#월") -> - 8등급 : 120,000원 * 13명 * 12월 | J98: = | K98: =R98/1000 -> 18,720 | L98: =$L$82 -> - 8등급 : | N98: 120,000 | O98: =$O$77 -> 13 | P98: 12 | R98: =N98*O98*P98 -> 18,720,000
I99: =L99&TEXT(N99," #,###원")&" * "&TEXT(O99,"#명")&" * "&TEXT(P99,"#월") -> - 9등급 : 120,000원 * 3명 * 12월 | J99: = | K99: =R99/1000 -> 4,320 | L99: =$L$83 -> - 9등급 : | N99: 120,000 | O99: =$O$78 -> 3 | P99: 12 | R99: =N99*O99*P99 -> 4,320,000
I100: ○ 정액급식비 | K100: =SUM(K101:K104) -> 46,800
I101: =L101&TEXT(N101," #,###원")&" * "&TEXT(O101,"#명")&" * "&TEXT(P101,"#월") -> - 6등급 : 130,000원 * 3명 * 12월 | J101: = | K101: =R101/1000 -> 4,680 | L101: =$L$80 -> - 6등급 : | N101: 130,000 | O101: =$O$75 -> 3 | P101: 12 | R101: =N101*O101*P101 -> 4,680,000
I102: =L102&TEXT(N102," #,###원")&" * "&TEXT(O102,"#명")&" * "&TEXT(P102,"#월") -> - 7등급 : 130,000원 * 11명 * 12월 | J102: = | K102: =R102/1000 -> 17,160 | L102: =$L$81 -> - 7등급 : | N102: 130,000 | O102: =$O$76 -> 11 | P102: 12 | R102: =N102*O102*P102 -> 17,160,000
I103: =L103&TEXT(N103," #,###원")&" * "&TEXT(O103,"#명")&" * "&TEXT(P103,"#월") -> - 8등급 : 130,000원 * 13명 * 12월 | J103: = | K103: =R103/1000 -> 20,280 | L103: =$L$82 -> - 8등급 : | N103: 130,000 | O103: =$O$77 -> 13 | P103: 12 | R103: =N103*O103*P103 -> 20,280,000
I104: =L104&TEXT(N104," #,###원")&" * "&TEXT(O104,"#명")&" * "&TEXT(P104,"#월") -> - 9등급 : 130,000원 * 3명 * 12월 | J104: = | K104: =R104/1000 -> 4,680 | L104: =$L$83 -> - 9등급 : | N104: 130,000 | O104: =$O$78 -> 3 | P104: 12 | R104: =N104*O104*P104 -> 4,680,000
I105: ○ 직급보조비 | K105: =SUM(K106:K109) -> 54,000
I106: =L106&TEXT(N106," #,###원")&" * "&TEXT(O106,"#명")&" * "&TEXT(P106,"#월") -> - 6등급 : 150,000원 * 3명 * 12월 | J106: = | K106: =R106/1000 -> 5,400 | L106: =$L$80 -> - 6등급 : | N106: 150,000 | O106: =$O$75 -> 3 | P106: 12 | R106: =N106*O106*P106 -> 5,400,000
I107: =L107&TEXT(N107," #,###원")&" * "&TEXT(O107,"#명")&" * "&TEXT(P107,"#월") -> - 7등급 : 150,000원 * 11명 * 12월 | J107: = | K107: =R107/1000 -> 19,800 | L107: =$L$81 -> - 7등급 : | N107: 150,000 | O107: =$O$76 -> 11 | P107: 12 | R107: =N107*O107*P107 -> 19,800,000
I108: =L108&TEXT(N108," #,###원")&" * "&TEXT(O108,"#명")&" * "&TEXT(P108,"#월") -> - 8등급 : 150,000원 * 13명 * 12월 | J108: = | K108: =R108/1000 -> 23,400 | L108: =$L$82 -> - 8등급 : | N108: 150,000 | O108: =$O$77 -> 13 | P108: 12 | R108: =N108*O108*P108 -> 23,400,000
I109: =L109&TEXT(N109," #,###원")&" * "&TEXT(O109,"#명")&" * "&TEXT(P109,"#월") -> - 9등급 : 150,000원 * 3명 * 12월 | J109: = | K109: =R109/1000 -> 5,400 | L109: =$L$83 -> - 9등급 : | N109: 150,000 | O109: =$O$78 -> 3 | P109: 12 | R109: =N109*O109*P109 -> 5,400,000
I110: ○ 위험근무수당 | K110: =SUM(K111:K114) -> 10,800
I111: =L111&TEXT(N111," #,###원")&" * "&TEXT(O111,"#명")&" * "&TEXT(P111,"#월") -> - 6등급 : 30,000원 * 3명 * 12월 | J111: = | K111: =R111/1000 -> 1,080 | L111: =$L$80 -> - 6등급 : | N111: 30,000 | O111: =$O$75 -> 3 | P111: 12 | R111: =N111*O111*P111 -> 1,080,000
I112: =L112&TEXT(N112," #,###원")&" * "&TEXT(O112,"#명")&" * "&TEXT(P112,"#월") -> - 7등급 : 30,000원 * 11명 * 12월 | J112: = | K112: =R112/1000 -> 3,960 | L112: =$L$81 -> - 7등급 : | N112: 30,000 | O112: =$O$76 -> 11 | P112: 12 | R112: =N112*O112*P112 -> 3,960,000
I113: =L113&TEXT(N113," #,###원")&" * "&TEXT(O113,"#명")&" * "&TEXT(P113,"#월") -> - 8등급 : 30,000원 * 13명 * 12월 | J113: = | K113: =R113/1000 -> 4,680 | L113: =$L$82 -> - 8등급 : | N113: 30,000 | O113: =$O$77 -> 13 | P113: 12 | R113: =N113*O113*P113 -> 4,680,000
I114: =L114&TEXT(N114," #,###원")&" * "&TEXT(O114,"#명")&" * "&TEXT(P114,"#월") -> - 9등급 : 30,000원 * 3명 * 12월 | J114: = | K114: =R114/1000 -> 1,080 | L114: =$L$83 -> - 9등급 : | N114: 30,000 | O114: =$O$78 -> 3 | P114: 12 | R114: =N114*O114*P114 -> 1,080,000
I115: ○ 장려수당 | K115: =SUM(K116:K119) -> 54,000
I116: =L116&TEXT(N116," #,###원")&" * "&TEXT(O116,"#명")&" * "&TEXT(P116,"#월") -> - 6등급 : 150,000원 * 3명 * 12월 | J116: = | K116: =R116/1000 -> 5,400 | L116: =$L$80 -> - 6등급 : | N116: 150,000 | O116: =$O$75 -> 3 | P116: 12 | R116: =N116*O116*P116 -> 5,400,000
I117: =L117&TEXT(N117," #,###원")&" * "&TEXT(O117,"#명")&" * "&TEXT(P117,"#월") -> - 7등급 : 150,000원 * 11명 * 12월 | J117: = | K117: =R117/1000 -> 19,800 | L117: =$L$81 -> - 7등급 : | N117: 150,000 | O117: =$O$76 -> 11 | P117: 12 | R117: =N117*O117*P117 -> 19,800,000
I118: =L118&TEXT(N118," #,###원")&" * "&TEXT(O118,"#명")&" * "&TEXT(P118,"#월") -> - 8등급 : 150,000원 * 13명 * 12월 | J118: = | K118: =R118/1000 -> 23,400 | L118: =$L$82 -> - 8등급 : | N118: 150,000 | O118: =$O$77 -> 13 | P118: 12 | R118: =N118*O118*P118 -> 23,400,000
I119: =L119&TEXT(N119," #,###원")&" * "&TEXT(O119,"#명")&" * "&TEXT(P119,"#월") -> - 9등급 : 150,000원 * 3명 * 12월 | J119: = | K119: =R119/1000 -> 5,400 | L119: =$L$83 -> - 9등급 : | N119: 150,000 | O119: =$O$78 -> 3 | P119: 12 | R119: =N119*O119*P119 -> 5,400,000
I120: ○ 가계안정비 | K120: =SUM(K121:K124) -> 130,183
I121: =L121&TEXT(N121," #,###원")&" * "&TEXT(O121,"#명")&" * "&TEXT(Q121,"#%") -> - 6등급 : 2,211,423원 * 3명 * 250% | J121: = | K121: =R121/1000 -> 16,586 | L121: =$L$80 -> - 6등급 : | N121: =$N$75 -> 2,211,423 | O121: =$O$75 -> 3 | Q121: 250% | R121: =N121*O121*Q121 -> 16,585,675
I122: =L122&TEXT(N122," #,###원")&" * "&TEXT(O122,"#명")&" * "&TEXT(Q122,"#%") -> - 7등급 : 1,909,582원 * 11명 * 250% | J122: = | K122: =R122/1000 -> 52,514 | L122: =$L$81 -> - 7등급 : | N122: =$N$76 -> 1,909,582 | O122: =$O$76 -> 11 | Q122: 250% | R122: =N122*O122*Q122 -> 52,513,504
I123: =L123&TEXT(N123," #,###원")&" * "&TEXT(O123,"#명")&" * "&TEXT(Q123,"#%") -> - 8등급 : 1,606,579원 * 13명 * 250% | J123: = | K123: =R123/1000 -> 52,214 | L123: =$L$82 -> - 8등급 : | N123: =$N$77 -> 1,606,579 | O123: =$O$77 -> 13 | Q123: 250% | R123: =N123*O123*Q123 -> 52,213,816
I124: =L124&TEXT(N124," #,###원")&" * "&TEXT(O124,"#명")&" * "&TEXT(Q124,"#%") -> - 9등급 : 1,182,714원 * 3명 * 250% | J124: = | K124: =R124/1000 -> 8,870 | L124: =$L$83 -> - 9등급 : | N124: =$N$78 -> 1,182,714 | O124: =$O$78 -> 3 | Q124: 250% | R124: =N124*O124*Q124 -> 8,870,355
I125: ○ 명절휴가비 | K125: =SUM(K126:K129) -> 78,110
I126: =L126&TEXT(N126," #,###원")&" * "&TEXT(O126,"#명")&" * "&TEXT(Q126,"#%") -> - 6등급 : 2,211,423원 * 3명 * 150% | J126: = | K126: =R126/1000 -> 9,951 | L126: =$L$80 -> - 6등급 : | N126: =$N$75 -> 2,211,423 | O126: =$O$75 -> 3 | Q126: 150% | R126: =N126*O126*Q126 -> 9,951,405
I127: =L127&TEXT(N127," #,###원")&" * "&TEXT(O127,"#명")&" * "&TEXT(Q127,"#%") -> - 7등급 : 1,909,582원 * 11명 * 150% | J127: = | K127: =R127/1000 -> 31,508 | L127: =$L$81 -> - 7등급 : | N127: =$N$76 -> 1,909,582 | O127: =$O$76 -> 11 | Q127: 150% | R127: =N127*O127*Q127 -> 31,508,102
I128: =L128&TEXT(N128," #,###원")&" * "&TEXT(O128,"#명")&" * "&TEXT(Q128,"#%") -> - 8등급 : 1,606,579원 * 13명 * 150% | J128: = | K128: =R128/1000 -> 31,328 | L128: =$L$82 -> - 8등급 : | N128: =$N$77 -> 1,606,579 | O128: =$O$77 -> 13 | Q128: 150% | R128: =N128*O128*Q128 -> 31,328,290
I129: =L129&TEXT(N129," #,###원")&" * "&TEXT(O129,"#명")&" * "&TEXT(Q129,"#%") -> - 9등급 : 1,182,714원 * 3명 * 150% | J129: = | K129: =R129/1000 -> 5,322 | L129: =$L$83 -> - 9등급 : | N129: =$N$78 -> 1,182,714 | O129: =$O$78 -> 3 | Q129: 150% | R129: =N129*O129*Q129 -> 5,322,213
I130: ○ 기술수당 | K130: =SUM(K131:K133) -> 4,560
I131: =L131&TEXT(N131," #,###원")&" * "&TEXT(O131,"#명")&" * "&TEXT(P131,"#월") -> - 기능장 : 50,000원 * 2명 * 12월 | J131: = | K131: =R131/1000 -> 1,200 | L131: - 기능장 : | N131: 50,000 | O131: 2 | P131: 12 | R131: =N131*O131*P131 -> 1,200,000
I132: =L132&TEXT(N132," #,###원")&" * "&TEXT(O132,"#명")&" * "&TEXT(P132,"#월") -> - 기사 1급 : 30,000원 * 6명 * 12월 | J132: = | K132: =R132/1000 -> 2,160 | L132: - 기사 1급 : | N132: 30,000 | O132: 6 | P132: 12 | R132: =N132*O132*P132 -> 2,160,000
I133: =L133&TEXT(N133," #,###원")&" * "&TEXT(O133,"#명")&" * "&TEXT(P133,"#월") -> - 기사 2급 : 25,000원 * 4명 * 12월 | J133: = | K133: =R133/1000 -> 1,200 | L133: - 기사 2급 : | N133: 25,000 | O133: 4 | P133: 12 | R133: =N133*O133*P133 -> 1,200,000
I134: ○ 시간외근무수당 (연장) | K134: =SUM(K135:K138) -> 76,190
I135: =L135&TEXT(N135," #,###원")&" * 1.5/209 * 9시간 * "&TEXT(O135,"#명")&" * "&TEXT(P135,"#월") -> - 6등급 : 4,125,564원 * 1.5/209 * 9시간 * 3명 * 12월 | J135: = | K135: =R135/1000 -> 9,593 | L135: =$L$80 -> - 6등급 : | N135: =SUM(R75,R80,R86,R96,R101,R106,R111,R116,R121)/P135/O135 -> 4,125,564 | O135: =$O$75 -> 3 | P135: 12 | Q135: =1.5/209*9 -> 0.06459330144 | R135: =N135*O135*P135*Q135 -> 9,593,416
I136: =L136&TEXT(N136," #,###원")&" * 1.5/209 * 9시간 * "&TEXT(O136,"#명")&" * "&TEXT(P136,"#월") -> - 7등급 : 3,576,650원 * 1.5/209 * 9시간 * 11명 * 12월 | J136: = | K136: =R136/1000 -> 30,496 | L136: =$L$81 -> - 7등급 : | N136: =SUM(R76,R81,R87,R97,R102,R107,R112,R117,R122)/P136/O136 -> 3,576,650 | O136: =$O$76 -> 11 | P136: 12 | Q136: =1.5/209*9 -> 0.06459330144 | R136: =N136*O136*P136*Q136 -> 30,495,645
I137: =L137&TEXT(N137," #,###원")&" * 1.5/209 * 9시간 * "&TEXT(O137,"#명")&" * "&TEXT(P137,"#월") -> - 8등급 : 3,020,180원 * 1.5/209 * 9시간 * 13명 * 12월 | J137: = | K137: =R137/1000 -> 30,433 | L137: =$L$82 -> - 8등급 : | N137: =SUM(R77,R82,R88,R98,R103,R108,R113,R118,R123)/P137/O137 -> 3,020,180 | O137: =$O$77 -> 13 | P137: 12 | Q137: =1.5/209*9 -> 0.06459330144 | R137: =N137*O137*P137*Q137 -> 30,433,007
I138: =L138&TEXT(N138," #,###원")&" * 1.5/209 * 9시간 * "&TEXT(O138,"#명")&" * "&TEXT(P138,"#월") -> - 9등급 : 2,437,260원 * 1.5/209 * 9시간 * 3명 * 12월 | J138: = | K138: =R138/1000 -> 5,668 | L138: =$L$83 -> - 9등급 : | N138: =SUM(R78,R83,R88,R99,R104,R109,R114,R119,R124)/P138/O138 -> 2,437,260 | O138: =$O$78 -> 3 | P138: 12 | Q138: =1.5/209*9 -> 0.06459330144 | R138: =N138*O138*P138*Q138 -> 5,667,505
I139: ○ 휴일근무수당 | K139: =SUM(K140:K141) -> 53,452
I140: =L140&TEXT(N140," #,###원")&" * 1.5/209 * 12시간 * "&TEXT(O140,"#명")&" * "&TEXT(P140,"#월") -> - 6등급 : 4,125,564원 * 1.5/209 * 12시간 * 3명 * 12월 | J140: = | K140: =R140/1000 -> 12,791 | L140: =$L$80 -> - 6등급 : | N140: =N135 -> 4,125,564 | O140: =$O$75 -> 3 | P140: 12 | Q140: =1.5/209*12 -> 0.08612440191 | R140: =N140*O140*P140*Q140 -> 12,791,221
I141: =L141&TEXT(N141," #,###원")&" * 1.5/209 * 12시간 * "&TEXT(O141,"#명")&" * "&TEXT(P141,"#월") -> - 7등급 : 3,576,650원 * 1.5/209 * 12시간 * 11명 * 12월 | J141: = | K141: =R141/1000 -> 40,661 | L141: =$L$81 -> - 7등급 : | N141: =N136 -> 3,576,650 | O141: =$O$76 -> 11 | P141: 12 | Q141: =1.5/209*12 -> 0.08612440191 | R141: =N141*O141*P141*Q141 -> 40,660,860
I142: =L142&TEXT(N142," #,###원")&" * 1.5/209 * 12시간 * "&TEXT(O142,"#명")&" * "&TEXT(P142,"#월") -> - 8등급 : 3,020,180원 * 1.5/209 * 12시간 * 13명 * 12월 | J142: = | K142: =R142/1000 -> 40,577 | L142: =$L$82 -> - 8등급 : | N142: =N137 -> 3,020,180 | O142: =$O$77 -> 13 | P142: 12 | Q142: =1.5/209*12 -> 0.08612440191 | R142: =N142*O142*P142*Q142 -> 40,577,342
I143: =L143&TEXT(N143," #,###원")&" * 1.5/209 * 12시간 * "&TEXT(O143,"#명")&" * "&TEXT(P143,"#월") -> - 9등급 : 2,437,260원 * 1.5/209 * 12시간 * 3명 * 12월 | J143: = | K143: =R143/1000 -> 7,557 | L143: =$L$83 -> - 9등급 : | N143: =N138 -> 2,437,260 | O143: =$O$78 -> 3 | P143: 12 | Q143: =1.5/209*12 -> 0.08612440191 | R143: =N143*O143*P143*Q143 -> 7,556,673
I144: ○ 야간근무수당 | K144: =SUM(K145:K148) -> 172,132
I145: =L145&TEXT(N145," #,###원")&" * 0.5/209 * 61시간 * "&TEXT(O145,"#명")&" * "&TEXT(P145,"#월") -> - 6등급 : 4,125,564원 * 0.5/209 * 61시간 * 3명 * 12월 | J145: = | K145: =R145/1000 -> 21,674 | L145: =$L$80 -> - 6등급 : | N145: =N140 -> 4,125,564 | O145: =$O$75 -> 3 | P145: 12 | Q145: =0.5/209*61 -> 0.1459330144 | R145: =N145*O145*P145*Q145 -> 21,674,013
I146: =L146&TEXT(N146," #,###원")&" * 0.5/209 * 61시간 * "&TEXT(O146,"#명")&" * "&TEXT(P146,"#월") -> - 7등급 : 3,576,650원 * 0.5/209 * 61시간 * 11명 * 12월 | J146: = | K146: =R146/1000 -> 68,898 | L146: =$L$81 -> - 7등급 : | N146: =N141 -> 3,576,650 | O146: =$O$76 -> 11 | P146: 12 | Q146: =0.5/209*61 -> 0.1459330144 | R146: =N146*O146*P146*Q146 -> 68,897,569
I147: =L147&TEXT(N147," #,###원")&" * 0.5/209 * 61시간 * "&TEXT(O147,"#명")&" * "&TEXT(P147,"#월") -> - 8등급 : 3,020,180원 * 0.5/209 * 61시간 * 13명 * 12월 | J147: = | K147: =R147/1000 -> 68,756 | L147: =$L$82 -> - 8등급 : | N147: =N142 -> 3,020,180 | O147: =$O$77 -> 13 | P147: 12 | Q147: =0.5/209*61 -> 0.1459330144 | R147: =N147*O147*P147*Q147 -> 68,756,052
I148: =L148&TEXT(N148," #,###원")&" * 0.5/209 * 61시간 * "&TEXT(O148,"#명")&" * "&TEXT(P148,"#월") -> - 9등급 : 2,437,260원 * 0.5/209 * 61시간 * 3명 * 12월 | J148: = | K148: =R148/1000 -> 12,804 | L148: =$L$83 -> - 9등급 : | N148: =N143 -> 2,437,260 | O148: =$O$78 -> 3 | P148: 12 | Q148: =0.5/209*61 -> 0.1459330144 | R148: =N148*O148*P148*Q148 -> 12,804,363
I149: ○ 연차휴가수당 | K149: =SUM(K150:K153) -> 37,624
I150: =L150&TEXT(N150," #,###원")&" * 1.0/209 * 8시간 * "&TEXT(P150,"#일")&" * "&TEXT(O150,"#명") -> - 6등급 : 4,125,564원 * 1.0/209 * 8시간 * 10일 * 3명 | J150: = | K150: =R150/1000 -> 4,737 | L150: =$L$80 -> - 6등급 : | N150: =N145 -> 4,125,564 | O150: =$O$75 -> 3 | P150: 10 | Q150: =8/209 -> 0.03827751196 | R150: =N150*O150*P150*Q150 -> 4,737,489
I151: =L151&TEXT(N151," #,###원")&" * 1.0/209 * 8시간 * "&TEXT(P151,"#일")&" * "&TEXT(O151,"#명") -> - 7등급 : 3,576,650원 * 1.0/209 * 8시간 * 10일 * 11명 | J151: = | K151: =R151/1000 -> 15,060 | L151: =$L$81 -> - 7등급 : | N151: =N146 -> 3,576,650 | O151: =$O$76 -> 11 | P151: 10 | Q151: =8/209 -> 0.03827751196 | R151: =N151*O151*P151*Q151 -> 15,059,578
I152: =L152&TEXT(N152," #,###원")&" * 1.0/209 * 8시간 * "&TEXT(P152,"#일")&" * "&TEXT(O152,"#명") -> - 8등급 : 3,020,180원 * 1.0/209 * 8시간 * 10일 * 13명 | J152: = | K152: =R152/1000 -> 15,029 | L152: =$L$82 -> - 8등급 : | N152: =N147 -> 3,020,180 | O152: =$O$77 -> 13 | P152: 10 | Q152: =8/209 -> 0.03827751196 | R152: =N152*O152*P152*Q152 -> 15,028,645
I153: =L153&TEXT(N153," #,###원")&" * 1.0/209 * 8시간 * "&TEXT(P153,"#일")&" * "&TEXT(O153,"#명") -> - 9등급 : 2,437,260원 * 1.0/209 * 8시간 * 10일 * 3명 | J153: = | K153: =R153/1000 -> 2,799 | L153: =$L$83 -> - 9등급 : | N153: =N148 -> 2,437,260 | O153: =$O$78 -> 3 | P153: 10 | Q153: =8/209 -> 0.03827751196 | R153: =N153*O153*P153*Q153 -> 2,798,768
I154: ○ 선임수당 | K154: =SUM(K155:K157) -> 960
I155: =L155&TEXT(N155," #,###원")&" * "&TEXT(O155,"#명")&" * "&TEXT(P155,"#월") -> - 위험물안전관리담당 : 10,000원 * 1명 * 12월 | J155: = | K155: =R155/1000 -> 120 | L155: - 위험물안전관리담당 : | N155: 10,000 | O155: 1 | P155: 12 | R155: =N155*O155*P155 -> 120,000
I156: =L156&TEXT(N156," #,###원")&" * "&TEXT(O156,"#명")&" * "&TEXT(P156,"#월") -> - 전기안전관리담당 : 30,000원 * 1명 * 12월 | J156: = | K156: =R156/1000 -> 360 | L156: - 전기안전관리담당 : | N156: 30,000 | O156: 1 | P156: 12 | R156: =N156*O156*P156 -> 360,000
I157: =L157&TEXT(N157," #,###원")&" * "&TEXT(O157,"#명")&" * "&TEXT(P157,"#월") -> - 소각시설법적관리인 : 10,000원 * 4명 * 12월 | J157: = | K157: =R157/1000 -> 480 | L157: - 소각시설법적관리인 : | N157: 10,000 | O157: 4 | P157: 12 | R157: =N157*O157*P157 -> 480,000
I158: =L158&TEXT(N158," #,###원")&" * "&TEXT(O158,"#명")&" * "&TEXT(P158,"#월") -> ○ 조장수당 : 50,000원 * 4명 * 12월 | J158: = | K158: =R158/1000 -> 2,400 | L158: ○ 조장수당 : | N158: 50,000 | O158: 4 | P158: 12 | R158: =N158*O158*P158 -> 2,400,000
E159: 03 무기계약근로자보수 | F159: =K159 -> 3,616,217 | G159: 3,052,775 | H159: =F159-G159 -> 563,442 | I159: [본부 일괄 편성] | K159: =K161+K164+K167+K170+K173+K176+K179+K182+K185+K188+K191+K194 -> 3,616,217 | L159: 급수 | M159: 호봉 | N159: 금액(원) | O159: 인원 | P159: 개월 | Q159: 지급율 | R159: 산출액 합계
I160: [공무직 83명 (가직군 17명, 나직군 66명)] | L160: 공무직 급여 | R160: =SUM(R161:R196) -> 3,616,217,122
I161: ○ 기본급 | K161: =SUM(K162:K163) -> 2,070,027
I162: =L162&TEXT(N162," #,###원")&" * "&TEXT(O162,"#명")&" * "&TEXT(P162,"#월") -> - 가직군(5호봉) : 1,859,477원 * 17명 * 12월 | J162: = | K162: =R162/1000 -> 379,333 | L162: - 가직군(5호봉) : | M162: 5 | N162: =(Q162*($P$11+$Q$11))+Q162 -> 1,859,477 | O162: 17 | P162: 12 | Q162: 1808830 | R162: =N162*O162*P162 -> 379,333,357
I163: =L163&TEXT(N163," #,###원")&" * "&TEXT(O163,"#명")&" * "&TEXT(P163,"#월") -> - 나직군(6호봉) : 2,134,714원 * 66명 * 12월 | J163: = | K163: =R163/1000 -> 1,690,693 | L163: - 나직군(6호봉) : | M163: 6 | N163: =(Q163*($P$11+$Q$11))+Q163 -> 2,134,714 | O163: 66 | P163: 12 | Q163: 2076570 | R163: =N163*O163*P163 -> 1,690,693,456
I164: ○ 직무수당 | K164: =SUM(K165:K166) -> 79,680
I165: =L165&TEXT(N165," #,###원")&" * "&TEXT(O165,"#명")&" * "&TEXT(P165,"#월") -> - 가직군 : 80,000원 * 17명 * 12월 | J165: = | K165: =R165/1000 -> 16,320 | L165: - 가직군 : | N165: 80,000 | O165: =$O$162 -> 17 | P165: 12 | R165: =N165*O165*P165 -> 16,320,000
I166: =L166&TEXT(N166," #,###원")&" * "&TEXT(O166,"#명")&" * "&TEXT(P166,"#월") -> - 나직군 : 80,000원 * 66명 * 12월 | J166: = | K166: =R166/1000 -> 63,360 | L166: - 나직군 : | N166: 80,000 | O166: =$O$163 -> 66 | P166: 12 | R166: =N166*O166*P166 -> 63,360,000
I167: ○ 직급수당 | K167: =SUM(K168:K169) -> 199,200
I168: =L168&TEXT(N168," #,###원")&" * "&TEXT(O168,"#명")&" * "&TEXT(P168,"#월") -> - 가직군 : 200,000원 * 17명 * 12월 | J168: = | K168: =R168/1000 -> 40,800 | L168: =$L$165 -> - 가직군 : | N168: 200,000 | O168: =$O$162 -> 17 | P168: 12 | R168: =N168*O168*P168 -> 40,800,000
I169: =L169&TEXT(N169," #,###원")&" * "&TEXT(O169,"#명")&" * "&TEXT(P169,"#월") -> - 나직군 : 200,000원 * 66명 * 12월 | J169: = | K169: =R169/1000 -> 158,400 | L169: =$L$166 -> - 나직군 : | N169: 200,000 | O169: =$O$163 -> 66 | P169: 12 | R169: =N169*O169*P169 -> 158,400,000
I170: ○ 명절휴가비 | K170: =SUM(K171:K172) -> 207,003
I171: =L171&TEXT(N171," #,###원")&" * "&TEXT(O171,"#명")&" * "&TEXT(Q171,"#%") -> - 가직군 : 1,859,477원 * 17명 * 120% | J171: = | K171: =R171/1000 -> 37,933 | L171: =$L$165 -> - 가직군 : | N171: =$N$162 -> 1,859,477 | O171: =$O$162 -> 17 | Q171: 120% | R171: =N171*O171*Q171 -> 37,933,336
I172: =L172&TEXT(N172," #,###원")&" * "&TEXT(O172,"#명")&" * "&TEXT(Q172,"#%") -> - 나직군 : 2,134,714원 * 66명 * 120% | J172: = | K172: =R172/1000 -> 169,069 | L172: =$L$166 -> - 나직군 : | N172: =$N$163 -> 2,134,714 | O172: =$O$163 -> 66 | Q172: 120% | R172: =N172*O172*Q172 -> 169,069,346
I173: ○ 정액급식비 | K173: =SUM(K174:K175) -> 129,480
I174: =L174&TEXT(N174," #,###원")&" * "&TEXT(O174,"#명")&" * "&TEXT(P174,"#월") -> - 가직군 : 130,000원 * 17명 * 12월 | J174: = | K174: =R174/1000 -> 26,520 | L174: =$L$165 -> - 가직군 : | N174: 130,000 | O174: =$O$162 -> 17 | P174: 12 | R174: =N174*O174*P174 -> 26,520,000
I175: =L175&TEXT(N175," #,###원")&" * "&TEXT(O175,"#명")&" * "&TEXT(P175,"#월") -> - 나직군 : 130,000원 * 66명 * 12월 | J175: = | K175: =R175/1000 -> 102,960 | L175: =$L$166 -> - 나직군 : | N175: 130,000 | O175: =$O$163 -> 66 | P175: 12 | R175: =N175*O175*P175 -> 102,960,000
I176: ○ 가족수당 | K176: =SUM(K177:K178) -> 38,400
I177: =L177&TEXT(N177," #,###원")&" * "&TEXT(O177,"#명")&" * "&TEXT(P177,"#월") -> - 배우자 : 40,000원 * 70명 * 12월 | J177: = | K177: =R177/1000 -> 33,600 | L177: - 배우자 : | N177: 40,000 | O177: 70 | P177: 12 | R177: =N177*O177*P177 -> 33,600,000
I178: =L178&TEXT(N178," #,###원")&" * "&TEXT(O178,"#명")&" * "&TEXT(P178,"#월") -> - 직계존비속 : 20,000원 * 20명 * 12월 | J178: = | K178: =R178/1000 -> 4,800 | L178: - 직계존비속 : | N178: 20,000 | O178: 20 | P178: 12 | R178: =N178*O178*P178 -> 4,800,000
I179: ○ 초과근무수당 | K179: =SUM(K180:K181) -> 221,234
I180: =L180&TEXT(N180," #,###원")&" * "&TEXT(Q180,"#시간")&" * "&TEXT(O180,"#명")&" * "&TEXT(P180,"#월") -> - 가직군 : 17,284원 * 12시간 * 17명 * 12월 | J180: = | K180: =R180/1000 -> 42,311 | L180: =$L$165 -> - 가직군 : | M180: 6 | N180: 17,284 | O180: =$O$162 -> 17 | P180: 12 | Q180: 12 | R180: =N180*O180*P180*Q180 -> 42,311,232
I181: =L181&TEXT(N181," #,###원")&" * "&TEXT(Q181,"#시간")&" * "&TEXT(O181,"#명")&" * "&TEXT(P181,"#월") -> - 나직군 : 18,826원 * 12시간 * 66명 * 12월 | J181: = | K181: =R181/1000 -> 178,922 | L181: =$L$166 -> - 나직군 : | M181: 6 | N181: 18,826 | O181: =$O$163 -> 66 | P181: 12 | Q181: 12 | R181: =N181*O181*P181*Q181 -> 178,922,304
I182: ○ 휴일근무수당 | K182: =SUM(K183:K184) -> 276,711
I183: =L183&TEXT(N183," #,###원")&" * "&TEXT(P183,"#시간")&" * "&TEXT(O183,"#명")&" * "&TEXT(Q183,"#일") -> - 가직군 : 17,284원 * 8시간 * 17명 * 12일 | J183: = | K183: =R183/1000 -> 28,207 | L183: =$L$165 -> - 가직군 : | M183: 6 | N183: =N180 -> 17,284 | O183: =$O$162 -> 17 | P183: 8 | Q183: 12 | R183: =N183*O183*P183*Q183 -> 28,207,488
I184: =L184&TEXT(N184," #,###원")&" * "&TEXT(P184,"#시간")&" * "&TEXT(O184,"#명")&" * "&TEXT(Q184,"#일") -> - 나직군 : 18,826원 * 8시간 * 66명 * 25일 | J184: = | K184: =R184/1000 -> 248,503 | L184: =$L$166 -> - 나직군 : | M184: 6 | N184: =N181 -> 18,826 | O184: =$O$163 -> 66 | P184: 8 | Q184: 25 | R184: =N184*O184*P184*Q184 -> 248,503,200
I185: ○ 야간근무수당 | K185: =SUM(K186:K187) -> 210,544
I186: =L186&TEXT(N186," #,###원")&" * "&TEXT(Q186,"#시간")&" * "&TEXT(O186,"#명")&" * "&TEXT(P186,"#월") -> - 가직군 : 5,761원 * 10시간 * 17명 * 12월 | J186: = | K186: =R186/1000 -> 11,752 | L186: =$L$165 -> - 가직군 : | M186: 6 | N186: 5,761 | O186: =$O$162 -> 17 | P186: 12 | Q186: 10 | R186: =N186*O186*P186*Q186 -> 11,752,440
I187: =L187&TEXT(N187," #,###원")&" * "&TEXT(Q187,"#시간")&" * "&TEXT(O187,"#명")&" * "&TEXT(P187,"#월") -> - 나직군 : 6,275원 * 40시간 * 66명 * 12월 | J187: = | K187: =R187/1000 -> 198,792 | L187: =$L$166 -> - 나직군 : | M187: 6 | N187: 6,275 | O187: =$O$163 -> 66 | P187: 12 | Q187: 40 | R187: =N187*O187*P187*Q187 -> 198,792,000
I188: ○ 정근수당 | K188: =SUM(K189:K190) -> 69,001
I189: =L189&TEXT(N189," #,###원")&" * "&TEXT(O189,"#명")&" * "&TEXT(Q189,"#%")&" * "&TEXT(P189,"#회") -> - 가직군 : 1,859,477원 * 17명 * 20% * 2회 | J189: = | K189: =R189/1000 -> 12,644 | L189: =$L$165 -> - 가직군 : | M189: 6 | N189: =$N$162 -> 1,859,477 | O189: =$O$162 -> 17 | P189: 2 | Q189: 20% | R189: =N189*O189*P189*Q189 -> 12,644,445
I190: =L190&TEXT(N190," #,###원")&" * "&TEXT(O190,"#명")&" * "&TEXT(Q190,"#%")&" * "&TEXT(P190,"#회") -> - 나직군 : 2,134,714원 * 66명 * 20% * 2회 | J190: = | K190: =R190/1000 -> 56,356 | L190: =$L$166 -> - 나직군 : | M190: 6 | N190: =$N$163 -> 2,134,714 | O190: =$O$163 -> 66 | P190: 2 | Q190: 20% | R190: =N190*O190*P190*Q190 -> 56,356,449
I191: ○ 정근수당가산금 | K191: =SUM(K192:K193) -> 33,000
I192: =L192&TEXT(N192," #,###원")&" * "&TEXT(O192,"#명")&" * "&TEXT(P192,"#월") -> - 가직군 : 50,000원 * 5명 * 12월 | J192: = | K192: =R192/1000 -> 3,000 | L192: =$L$165 -> - 가직군 : | N192: 50,000 | O192: 5 | P192: 12 | R192: =N192*O192*P192 -> 3,000,000
I193: =L193&TEXT(N193," #,###원")&" * "&TEXT(O193,"#명")&" * "&TEXT(P193,"#월") -> - 나직군 : 50,000원 * 50명 * 12월 | J193: = | K193: =R193/1000 -> 30,000 | L193: =$L$166 -> - 나직군 : | N193: 50,000 | O193: 50 | P193: 12 | R193: =N193*O193*P193 -> 30,000,000
I194: ○ 연차휴가수당 | K194: =SUM(K195:K196) -> 81,938
I195: =L195&TEXT(N195," #,###원")&" * "&TEXT(O195,"#명")&" * "&TEXT(Q195,"#일") -> - 가직군 : 92,181원 * 17명 * 10일 | J195: = | K195: =R195/1000 -> 15,671 | L195: =$L$165 -> - 가직군 : | M195: 6 | N195: 92,181 | O195: =$O$162 -> 17 | Q195: 10 | R195: =N195*O195*Q195 -> 15,670,770
I196: =L196&TEXT(N196," #,###원")&" * "&TEXT(O196,"#명")&" * "&TEXT(Q196,"#일") -> - 나직군 : 100,405원 * 66명 * 10일 | J196: = | K196: =R196/1000 -> 66,267 | L196: =$L$166 -> - 나직군 : | M196: 6 | N196: 100,405 | O196: =$O$163 -> 66 | Q196: 10 | R196: =N196*O196*Q196 -> 66,267,300
E197: 04 기간제근로자보수 | F197: =K197 -> 18,861 | G197: 16,120 | H197: =F197-G197 -> 2,741 | I197: ○ 청년인턴 급여 : 2,357,680원 * 4명 * 2개월 | J197: = | K197: =R197/1000 -> 18,861 | L197: 인턴 | N197: 2,357,680 | O197: 4 | P197: 2 | R197: =N197*O197*P197 -> 18,861,440
D198: 107 퇴직급여 | F198: =K198 -> 4,600,000 | G198: 0 | H198: =F198-G198 -> 4,600,000 | K198: =K199 -> 4,600,000
I199: ○ 퇴직연금(DB) 운영 사용자 부담금 - 2020년 : 15억원 = 불용액 15억원 적립 완료 - 2021년 : 25억원 = 불용액 25억원 적립 완료 - 2022년 : 38억원 = 38억원 필요 - 2023년 : 46억원 = 46억원 필요 | J199: = | K199: 4,600,000 | R199: =N199-O199 -> 0
D200: 109 평가급 및 성과금 등 | F200: =F201+F204 -> 560,365 | G200: =G201+G204 -> 367,915 | H200: =F200-G200 -> 192,450 | K200: =R200/1000 -> 0
... 303 more rows

Sheet (공영주차장-교통과)지출예산
A1: 나. 지출예산-공영주차장 관리운영
A2: 관: (700)사업비용 항: (710)영업비용 세항: (722)대행사업비 | J2: (단위 : 천원)
A3: 과 목 | F3: 당년도예산액 (A) | G3: 전년도예산액 (B) | H3: 증 감 (A-B) | I3: 산 출 기 초
A4: 관. 항. 세항 | D4: 목 | E4: 세목
A5: 합계(사업비용+자본적지출) | F5: =F6 -> 1,194,643 | G5: 1,041,879 | H5: =F5-G5 -> 152,764
A6: 700 사업비용 | F6: =F7 -> 1,194,643 | G6: 1,041,879 | H6: =F6-G6 -> 152,764
B7: 710 영업비용 | F7: =F8 -> 1,194,643 | G7: 1,041,879 | H7: 152,764
C8: 722 대행사업비 | F8: =F9+F23+F84+F88+F90+F100+F104 -> 1,194,643 | G8: 1,041,879 | H8: 152,764
D9: 101 인건비 | F9: =SUM(F10,F11,F12) -> 348,548 | G9: 384,982 | H9: =F9-G9 -> △36,434
E10: 01 보수 | F10: 0 | G10: 0 | H10: 0 | I10: 01 보수(일반직) 본부 일괄 편성 | K10: 0
E11: 03 무기계약근로자보수 | F11: =K11 -> 0 | G11: 0 | H11: 0 | I11: 03 무기계약직근로자보수(공무직) 본부 일괄 편성 | K11: 0
E12: 04 기간제근로자보수 | F12: =K12 -> 348,548 | G12: 384,982 | H12: =F12-G12 -> △36,434 | I12: 04 기간제근로자 보수 | K12: =K13+K19+K21 -> 348,548
I13: ○ 기간제근로자 | K13: =K14+K15+K16+K17+K18 -> 218,678
I14: - 기본급: 85,960원*6명*5일*52주 | J14: = | K14: 134,098 | L14: =85960*6*5*52 -> 134,097,600
I15: - 주휴수당: 85,960원*6명*52주 | J15: = | K15: 26,820 | L15: =85960*6*52 -> 26,819,520
I16: - 초과근무수당: 16,110원*12시간*6명*12월 | J16: = | K16: 13,920 | L16: =16110*12*6*12 -> 13,919,040
I17: - 휴일근무수당: 85,960원*6명*50일*150% | J17: = | K17: 38,682 | L17: =85960*6*50*1.5 -> 38,682,000
I18: - 연차수당: 85,960원*6명*10일 | J18: = | K18: 5,158 | L18: =85960*6*10 -> 5,157,600
I19: ○ 공영주차장 어르신 사회활동 지원사업 | K19: =K20 -> 76,230
I20: - 77,000원*90명*11월 | J20: = | K20: 76,230 | L20: =77000*90*11 -> 76,230,000
I21: ○ 초단시간근로자 | K21: =K22 -> 53,640
I22: - 초단시간근로자(기본급): 85,960원*6명*2일*52주 | J22: = | K22: 53,640 | L22: =85960*6*2*52 -> 53,639,040
D23: 201 일반운영비 | F23: =F24+F35+F52+F69+F75+F82 -> 628,215 | G23: 508,356 | H23: =F23-G23 -> 119,859 | K23: =K24+K35+K52+K69+K75+K82 -> 628,215
E24: 01 사무관리비 | F24: =K24 -> 99,592 | G24: 101,266 | H24: =F24-G24 -> △1,674 | K24: =K25+K26+K27+K28+K29+K30+K31+K32+K33+K34 -> 99,592
I25: ○ 공영주차장 홍보 현수막 제작: 80,000원*3회*35개소 | J25: = | K25: 8,400 | L25: =80000*3*35 -> 8,400,000
I26: ○ A4용지 구입: 23,000원*5박스*4개소*5회 | J26: = | K26: 2,300 | L26: =23000*5*4*5 -> 2,300,000
I27: ○ 토너 구입: 450,000원*7회 | J27: = | K27: 3,150 | L27: =450000*7 -> 3,150,000
I28: ○ 사무용품 구입: 300,000원*4개소*12월 | J28: = | K28: 14,400 | L28: =300000*4*12 -> 14,400,000
I29: ○ 영수증롤 구입: 5,000원*50롤*2회*35개소 | J29: = | K29: 17,500 | L29: =5000*50*2*35 -> 17,500,000
I30: ○ 화장실 위생용품 구입: 200,000원*11개소*12월 | J30: = | K30: 26,400 | L30: =200000*11*12 -> 26,400,000
I31: ○ 쓰레기수거 종량제봉투 구입: 1,200원*35개소*20일*12월 | J31: = | K31: 10,080 | L31: =1200*35*20*12 -> 10,080,000
I32: ○ 청소용품 구입비: 200,000원*35개소*2회 | J32: = | K32: 14,000 | L32: =200000*35*2 -> 14,000,000
I33: ○ 생수 구입비: 6,600원*35개소*12월 | J33: = | K33: 2,772 | L33: =6600*35*12 -> 2,772,000
I34: ○ 범용S/W 구입비: 한글 90,000원 + 오피스 250,000원 + 알약 250,000원 | J34: = | K34: 590 | L34: =90000+250000+250000 -> 590,000
E35: 11 지급수수료 | F35: =K35 -> 162,590 | G35: 119,160 | H35: =F35-G35 -> 43,430 | K35: =K36+K38+K43+K44+K47+K49+K50+K51 -> 162,590
I36: ○ 소방안전관리 업무대행용역 | K36: =K37 -> 32,400
I37: - 오동도, 동백, 서교동, 학동선소상가(1,3), 여문, 여문공원, 진남상가, 향일암 : 300,000원*9개소*12월 | J37: = | K37: 32,400 | L37: =300000*9*12 -> 32,400,000
I38: ○ 전기설비 유지관리용역 | K38: =K39+K40+K42+K41 -> 10,800
I39: - 오동도 주차타워: 450,000원*12월 | J39: = | K39: 5,400 | L39: =450000*12 -> 5,400,000
I40: - 여문공원 공영주차장: 150,000원*12월 | J40: = | K40: 1,800 | L40: =150000*12 -> 1,800,000
I41: - 학동선소상가(1) 공영주차장: 150,000원*12월 | J41: = | K41: 1,800 | L41: =150000*12 -> 1,800,000
I42: - 학동선소상가(3) 공영주차장: 150,000원*12월 | J42: = | K42: 1,800 | L42: =150000*12 -> 1,800,000
I43: ○ 여문공원 전기차 충전소 유지관리용역: 350,000원*12월 | J43: = | K43: 4,200 | L43: =350000*12 -> 4,200,000
I44: ○ 승강기 유지관리용역 | K44: =K45+K46 -> 31,200
I45: - 오동도 주차타워 : 800,000원*2대*12월 | J45: = | K45: 19,200 | L45: =800000*2*12 -> 19,200,000
I46: - 진남상가, 서교동, 학동선소상가(1,3): 250,000원*4대*12월 | J46: = | K46: 12,000 | L46: =250000*4*12 -> 12,000,000
I47: ○ 신규수탁 주차장 용역 (소방,전기등) | K47: =K48 -> 20,000
I48: - 4개(수산시장3, 고소동, 신기동, 화장동) * 1식 : 20,000,000원 * 1식 | J48: = | K48: 20,000
I49: ○ 주차요금 신용카드 수수료: 4,000,000원*12월 | J49: = | K49: 48,000 | L49: =4000000*12 -> 48,000,000
I50: ○ 공영주차장 환경정비(풀베기 및 전정작업) 용역 | J50: = | K50: 15,000
I51: ○ 지문인식기 사용료: 82,500원*3개소*4회 | J51: = | K51: 990
E52: 13 임차료 | F52: =K52 -> 28,971 | G52: 25,971 | H52: =F52-G52 -> 3,000 | K52: =K53+K54+K60+K66+K67 -> 28,971
I53: ○ 주차관리업무 차량임차: 550,000원*3대*12월 | J53: = | K53: 19,800 | L53: =550000*3*12 -> 19,800,000
I54: ○ 복합기 및 냉난방기 임대료 | K54: =K55+K56+K57+K58+K59 -> 3,540
I55: - 복합기(학동1, 서교동): 30,000원*2대*12월 | J55: = | K55: 720 | L55: =30000*2*12 -> 720,000
I56: - 냉난방기(학동1 사무실): 70,000원*1대*12월 | J56: = | K56: 840 | L56: =70000*1*12 -> 840,000
I57: - 냉난방기(학동1 서버실): 65,000원*1대*12월 | J57: = | K57: 780 | L57: =65000*1*12 -> 780,000
I58: - 냉난방기(학동3): 50,000원*1대*12월 | J58: = | K58: 600 | L58: =50000*1*12 -> 600,000
I59: - 냉난방기(수산시장1, 여문공원): 25,000원*2대*12월 | J59: = | K59: 600 | L59: =25000*2*12 -> 600,000
I60: ○ 정수기 및 비데 관리비 | K60: =K61+K62+K63+K64+K65 -> 1,335
I61: - 정수기(학동1): 14,300원*1대*12월 | J61: = | K61: 172 | L61: =14300*1*12 -> 171,600
I62: - 정수기(여문): 13,200원*1대*12월 | J62: = | K62: 159 | L62: =13200*1*12 -> 158,400
I63: - 정수기(선원동, 흥국체육관, 이순신광장, 수산시장1, 서교동) : 11,000원*5대*12월 | J63: = | K63: 660 | L63: =11000*5*12 -> 660,000
I64: - 정수기(동백): 22,000원*1대*12월 | J64: = | K64: 264 | L64: =22000*1*12 -> 264,000
I65: - 비데(서교동): 6,600원*1대*12월 | J65: = | K65: 80 | L65: =6600*1*12 -> 79,200
I66: ○ 승강기 공기살균기 대여료: 27,000원*4개*12월 | J66: = | K66: 1,296 | L66: =27000*4*12 -> 1,296,000
I67: ○ 신규수탁 주차장 임차료 (냉난방기,정수기,비데등) | K67: =K68 -> 3,000
I68: - 4개(수산시장3, 고소동, 신기동, 화장동) * 1식 : 3,000,000원 * 1식 | J68: = | K68: 3,000
E69: 15 복리후생비 | F69: =K69 -> 27,450 | G69: 30,570 | H69: =F69-G69 -> △3,120 | K69: =K70+K71+K74 -> 27,450
I70: ○ 특수건강검진지원비(본부 일괄 편성) | K70: 0
I71: ○ 피복구입비 | K71: =K72+K73 -> 20,250
I72: - 춘.추복: 75,000원*45명*2회 | J72: = | K72: 6,750 | L72: =75000*45*2 -> 6,750,000
I73: - 방한복: 300,000원*45명*1회 | J73: = | K73: 13,500 | L73: =300000*45 -> 13,500,000
I74: ○ 야간급량비: 8,000원*5명*15일*12월 | J74: = | K74: 7,200 | L74: =8000*5*15*12 -> 7,200,000
E75: 21 공공요금및제세 | F75: =K75 -> 298,272 | G75: 225,168 | H75: =F75-G75 -> 73,104 | K75: =K76+K77+K79+K78+K80 -> 298,272
I76: ○ 전기요금(보안등 포함): 380,000원*32개소*12월 | J76: = | K76: 145,920 | L76: =380000*32*12 -> 145,920,000
I77: ○ 통신요금: 300,000원*15개소*12월 | J77: = | K77: 54,000 | L77: =300000*15*12 -> 54,000,000
I78: ○ 무전기 통신요금: 22,000원*18개*12월 | J78: = | K78: 4,752 | L78: =22000*18*12 -> 4,752,000
I79: ○ 상하수도요금: 200,000원*14개소*12월 | J79: = | K79: 33,600 | L79: =200000*14*12 -> 33,600,000
I80: ○ 신규수탁 주차장 공공요금 (전기,통신,상하수도등) | K80: =K81 -> 60,000
I81: - 4개(수산시장3, 고소동, 신기동, 화장동) * 1식 : | J81: = | K81: 60,000
E82: 22 차량·선박비 | F82: =K82 -> 11,340 | G82: 6,221 | H82: =F82-G82 -> 5,119 | K82: =K83 -> 11,340
I83: ○ 주차관리업무 차량 유류비: 2,100원*150L*3대*12월 | J83: = | K83: 11,340 | L83: =2100*150*3*12 -> 11,340,000
D84: 202 여비 | F84: =F85 -> 16,080 | G84: 18,990 | H84: =F84-G84 -> △2,910 | K84: =K85 -> 16,080
E85: 01 국내여비 | F85: =K85 -> 16,080 | G85: 18,990 | H85: =F85-G85 -> △2,910 | K85: =K86+K87 -> 16,080
I86: ○ 관내 출장여비: 20,000원*5명*10회*12월 | J86: = | K86: 12,000 | L86: =20000*5*10*12 -> 12,000,000
I87: ○ 관외 출장여비: 85,000원*4명*3일*4회 | J87: = | K87: 4,080 | L87: =85000*4*3*4 -> 4,080,000
D88: 206 재료비 | F88: =F89 -> 0 | G88: 0 | H88: =F88-G88 -> 0 | K88: 0
E89: 01 일반재료비 | F89: =K89 -> 0 | G89: 0 | H89: 0 | K89: 0
D90: 214 수선유지교체비 | F90: =F91 -> 189,100 | G90: 117,191 | H90: 71,909 | K90: =K91 -> 189,100
E91: 05 수선유지비 | F91: =K91 -> 189,100 | G91: 117,191 | H91: 71,909 | K91: =K92+K93+K94+K95+K96 -> 189,100
I92: ○ 관제용 CCTV 카메라 유지보수비 : 200,000원 * 35개소 * 3회 | J92: = | K92: 21,000 | L92: =200000*35*3 -> 21,000,000
I93: ○ 관제시스템 수선유지비: 250,000원*35개소*12월 | J93: = | K93: 105,000 | L93: =250000*35*12 -> 105,000,000
I94: ○ 노후 시설물 유지보수비: 30,000,000원*1식 | J94: = | K94: 30,000
I95: ○ 공영주차장 공용화장실 환경 정비(주민참여) : 30,000,000원 *1식 | J95: = | K95: 30,000
I96: ○ 주차통제 예비물품 구입비 | K96: =K97+K98+K99 -> 3,100
I97: - 라바콘: 15,000원*100개 | J97: = | K97: 1,500 | L97: =15000*100 -> 1,500,000
I98: - 오뚜기 입간판: 25,000원*40개 | J98: = | K98: 1,000 | L98: =25000*40 -> 1,000,000
I99: - 사각 입간판: 30,000원*20개 | J99: = | K99: 600 | L99: =30000*20 -> 600,000
D100: 217 관서업무비 | F100: =SUM(F101) -> 5,700 | G100: 5,760 | H100: =F100-G100 -> △60 | K100: =SUM(K101) -> 5,700
E101: 02 부서업무비 | F101: =K101 -> 5,700 | G101: 5,760 | H101: =F101-G101 -> △60 | I101: ○ 부서업무비(부서운영 업무 추진을 위한 제경비, 45인 기준) | K101: =K102+K103 -> 5,700
I102: - 부서운영업무추진비(30인이하): 400,000원*12월 | J102: = | K102: 4,800 | L102: =400000*12 -> 4,800,000
I103: - 부서운영업무추진비(30인이상): 5,000원*15명*12월 | J103: = | K103: 900 | L103: =5000*15*12 -> 900,000
D104: 305 배상금등 | F104: =F105 -> 7,000 | G104: 6,600 | H104: =F104-G104 -> 400 | K104: =SUM(K105) -> 7,000
E105: 01 배상금등 | F105: =K105 -> 7,000 | G105: 6,600 | H105: =F105-G105 -> 400 | K105: =SUM(K106) -> 7,000
I106: ○ 공영주차장 차량사고보상: 200,000원*35개소*1건 | J106: = | K106: 7,000 | L106: =200000*35*1 -> 7,000,000
B107: 200 자본적지출 | F107: =SUM(F108) -> 0 | G107: =SUM(G108) -> 0 | H107: =F107-G107 -> 0
C108: 230 유형자산취득 | F108: =SUM(F109) -> 0 | G108: =SUM(G109) -> 0 | H108: =F108-G108 -> 0
D109: 245 수탁자산 | F109: =F110 -> 0 | G109: =G110 -> 0 | H109: =F109-G109 -> 0
E110: 412 수탁자산취득비 | F110: =K110 -> 0 | G110: 0 | H110: =F110-G110 -> 0 | I110: ○ 수탁자산취득비(공영주차장) | K110: 0

Sheet (돌산주차장-공원과)지출예산
A1: 나. 지출예산-돌산공원 공영주차장 관리운영
A2: 관: (700)사업비용 항: (710)영업비용 세항: (722)대행사업비 | J2: (단위 : 천원)
A3: 과 목 | F3: 당년도예산액 (A) | G3: 전년도예산액 (B) | H3: 증 감 (A-B) | I3: 산 출 기 초
A4: 관. 항. 세항 | D4: 목 | E4: 세목
A5: 합계(사업비용+자본적지출) | F5: =F6 -> 230,888 | G5: =G6 -> 235,317 | H5: =F5-G5 -> △4,429
A6: 700 사업비용 | F6: 230,888 | G6: 235,317 | H6: △4,429
B7: 710 영업비용 | F7: 230,888 | G7: =G8 -> 235,317 | H7: △4,429
C8: 722 대행사업비 | F8: =F9+F18+F32+F36+F39 -> 230,888 | G8: =G9+G18+G32+G36+G39 -> 235,317 | H8: △4,429
D9: 101 인건비 | F9: =SUM(F10,F11,F12) -> 204,758 | G9: =G10+G11+G12 -> 208,807 | H9: △4,049
E10: 01 보수 | F10: 0 | G10: 0 | H10: 0 | I10: 01 보수(일반직) 본부 일괄 편성 | K10: 0
E11: 03 무기계약근로자보수 | F11: =K11 -> 0 | G11: 0 | H11: 0 | I11: 03 무기계약직근로자보수(공무직) 본부 일괄 편성 | K11: 0
E12: 04 기간제근로자보수 | F12: =K12 -> 204,758 | G12: 208,807 | H12: =F12-G12 -> △4,049 | I12: 04 기간제근로자 보수 | K12: =K13 -> 204,758
I13: ○ 기간제근로자(6명) | K13: =K14+K15+K16+K17 -> 204,758
I14: - 기본급: 85,960원*6명*5일*52주 | J14: = | K14: 134,098 | L14: =85960*6*5*52 -> 134,097,600
I15: - 주휴수당: 85,960원*6명*52주 | J15: = | K15: 26,820 | L15: =85960*6*52 -> 26,819,520
I16: - 휴일근무수당: 85,960원*6명*50일*150% | J16: = | K16: 38,682 | L16: =85960*6*50*1.5 -> 38,682,000
I17: - 연차수당: 85,960원*6명*10일 | J17: = | K17: 5,158 | L17: =85960*6*10 -> 5,157,600
D18: 201 일반운영비 | F18: =F19+F21+F23+F25+F29 -> 12,030 | G18: =G19+G21+G23+G25+G29 -> 14,455 | H18: =F18-G18 -> △2,425 | K18: =SUM(K19,K21,K23,K25,K29) -> 12,030
E19: 01 사무관리비 | F19: =K19 -> 2,400 | G19: 1,800 | H19: =F19-G19 -> 600 | K19: =K20 -> 2,400
I20: ○ 사무용품 등 : 200,000원*12월 | J20: = | K20: 2,400 | L20: =200000*12 -> 2,400,000
E21: 11 지급수수료 | F21: =K21 -> 330 | G21: 3,000 | H21: =F21-G21 -> △2,670 | K21: =K22 -> 330
I22: ○ 지문인식기 사용료 : 82,500원*1개소*4회 | J22: = | K22: 330
E23: 13 임차료 | F23: =K23 -> 0 | G23: 1,200 | H23: =F23-G23 -> △1,200 | K23: =K24 -> 0
I24: ○ '市-공원과'에서 납부 | J24: = | K24: 0
E25: 15 복리후생비 | F25: =K25 -> 2,700 | G25: 1,800 | H25: =F25-G25 -> 900 | K25: =K26 -> 2,700
I26: ○ 피복구입비 | K26: =K27+K28 -> 2,700
I27: - 춘.추복: 75,000원*6명*2회 | J27: = | K27: 900 | L27: =75000*6*2 -> 900,000
I28: - 방한복: 300,000원*6명*1회 | J28: = | K28: 1,800 | L28: =300000*6*1 -> 1,800,000
E29: 21 공공요금및제세 | F29: =K29 -> 6,600 | G29: 6,655 | H29: =F29-G29 -> △55 | K29: =K30+K31 -> 6,600
I30: ○ 전기요금 : 450,000원*12월 | J30: = | K30: 5,400 | L30: =450000*12 -> 5,400,000
I31: ○ 통신료 : 100,000원*12월 | J31: = | K31: 1,200 | L31: =100000*12 -> 1,200,000
D32: 214 수선유지교체비 | F32: =F33 -> 10,000 | G32: 9,180 | H32: =F32-G32 -> 820 | K32: =K33 -> 10,000
E33: 05 수선유지비 | F33: =K33 -> 10,000 | G33: 9,180 | H33: =F33-G33 -> 820 | K33: =K34+K35 -> 10,000
I34: ○ 소규모시설 유지보수비 : 5,000,000원*1식 | J34: = | K34: 5,000
I35: ○ 주차장 관제시스템 유지보수비 : 5,000,000원*1식 | J35: = | K35: 5,000
D36: 217 관서업무비 | F36: =SUM(F37) -> 2,100 | G36: =G37 -> 875 | H36: =F36-G36 -> 1,225 | K36: =SUM(K37) -> 2,100
E37: 02 부서업무비 | F37: =K37 -> 2,100 | G37: 875 | H37: =F37-G37 -> 1,225 | I37: ○ 부서업무비(부서운영 업무 추진을 위한 제경비, 6인 기준) | K37: =K38 -> 2,100
I38: - 부서운영 업무추진비 : 175,000원*12월 | J38: = | K38: 2,100 | L38: =175000*12 -> 2,100,000
D39: 305 배상금등 | F39: =F40 -> 2,000 | G39: 2,000 | H39: =F39-G39 -> 0 | K39: =SUM(K40) -> 2,000
E40: 01 배상금등 | F40: =K40 -> 2,000 | G40: 2,000 | H40: =F40-G40 -> 0 | K40: =SUM(K41) -> 2,000
I41: ○ 공영주차장 차량사고보상 : 2,000,000원*1개소 | J41: = | K41: 2,000
B42: 200 자본적지출 | F42: =SUM(F43) -> 0 | G42: =SUM(G43) -> 0 | H42: =F42-G42 -> 0
C43: 230 유형자산취득 | F43: =SUM(F44) -> 0 | G43: =SUM(G44) -> 0 | H43: =F43-G43 -> 0
D44: 245 수탁자산 | F44: =F45 -> 0 | G44: =G45 -> 0 | H44: =F44-G44 -> 0
E45: 412 수탁자산취득비 | F45: =K45 -> 0 | G45: 0 | H45: =F45-G45 -> 0 | I45: ○ 수탁자산취득비(돌산공원 공영주차장) | K45: =K46 -> 0
J46: = | K46: 0

Sheet (봉황산휴양림-산림과)지출예산
A1: 나. 지출예산-봉황산자연휴양림 관리운영
A2: 관: (700)사업비용 항: (710)영업비용 세항: (722)대행사업비 | J2: (단위 : 천원)
A3: 과 목 | F3: 당년도예산액 (A) | G3: 전년도예산액 (B) | H3: 증 감 (A-B) | I3: 산 출 기 초
A4: 관. 항. 세항 | D4: 목 | E4: 세목
A5: 지출계(사업비용+자본적지출) | F5: =F6+F71 -> 299,424 | G5: =G6+G71 -> 275,261 | H5: =F5-G5 -> 24,163
C6: 722 대행사업비 | F6: =F7+F18+F56+F64+F68 -> 273,554 | G6: =G7+G18+G56+G64+G68 -> 271,761 | H6: =F6-G6 -> 1,793
D7: 101 인건비 | F7: =F9 -> 61,465 | G7: =G9 -> 61,484 | H7: =F7-G7 -> △19 | K7: =F7 -> 61,465
E8: 03 무기계약근로자보수 | F8: 0 | G8: 0 | H8: =F8-G8 -> 0 | I8: 03 무기계약직근로자 보수(본부 통합편성) | K8: 0 | M8: 본부 통합편성
E9: 04 기간제근로자 보수 | F9: =K9 -> 61,465 | G9: 61,484 | H9: =F9-G9 -> △19 | I9: 04 기간제근로자 보수 | K9: =K10+K16 -> 61,465 | N9: 9,160 | O9: 8 | P9: =N9*O9 -> 73,280
I10: ○ 청소원 | K10: =SUM(K11:K15) -> 55,308
I11: - 인부임 : 76,960원*2명*5일*52주 | J11: = | K11: 40,019 | M11: 73,280 | N11: 5 | O11: 2 | P11: 52 | Q11: =M11*N11*O11*P11 -> 38,105,600
I12: - 주휴수당 : 76,960원*2명*52일 | J12: = | K12: 8,004 | M12: 73,280 | N12: 2 | O12: 52 | Q12: =M12*N12*O12 -> 7,621,120
I13: - 휴일근무수당 : 76,960원*2명*12일*150% | J13: = | K13: 2,771 | M13: 73,280 | N13: 150% | O13: 2 | P13: 12 | Q13: =M13*N13*O13*P13 -> 2,638,080
I14: - 연차휴가수당 : 76,960원*2명*5일 | J14: = | K14: 770 | M14: 73,280 | N14: 2 | O14: 5 | Q14: =M14*N14*O14 -> 732,800
I15: - 생활임금보전수당 : 7,200원*2명*5일*52주 | J15: = | K15: 3,744 | M15: 7,680 | N15: 2 | O15: 5 | P15: 52 | Q15: =M15*N15*O15*P15 -> 3,993,600
I16: ○ 성수기 대비 근로자 인부임 | K16: =SUM(K17:K17) -> 6,157
I17: - 청소원 인부임(공휴일대체) : 76,960원*2명*5일*8주 | J17: = | K17: 6,157 | M17: 73,280 | N17: 2 | O17: 5 | P17: 8 | Q17: =M17*N17*O17*P17 -> 5,862,400
D18: 201 일반운영비 | F18: =F19+F42+F46+F49+F54+F32+F30 -> 186,407 | G18: =G19+G30+G32+G42+G46+G49+G54 -> 184,741 | H18: =F18-G18 -> 1,666 | N18: 9640 | O18: 8720 | P18: =N18-O18 -> 920 | Q18: 8 | R18: =P18*Q18 -> 7360
E19: 01 사무관리비 | F19: =K19 -> 25,372 | G19: 22,372 | H19: =F19-G19 -> 3,000 | I19: 01 사무관리비 | K19: =SUM(K21:K29) -> 25,372 | N19: 5% | O19: 9160
I20: ○ 홍보물 제작 : 1,800원*2,000매 | J20: = | K20: 3,600 | N20: =N18+N21 -> 10122 | O20: 5%
I21: ○ 음식물 스티커 구입(120L) : 4,000원*100매 | J21: = | K21: 400 | N21: =N18*N19 -> 482 | O21: =O18*O20 -> 444.72
I22: ○ 종량제봉투 구입(50L) : 1,200원*1,500매 | J22: = | K22: 1,800 | N22: 10120 | O22: 9160 | P22: =N22-O22 -> 960 | Q22: 8 | R22: =P22*Q22 -> 7680
I23: ○ 침구류 교체 구입비 : 70,000원*1회*112인(25실) | J23: = | K23: 7,840
I24: ○ 비치용품 및 세탁물 세제 : 31,800원*5종*4개*12주 | J24: = | K24: 7,632 | N24: 10000 | O24: 4 | P24: 25 | Q24: 10 | R24: =N24*O24*P24*Q24 -> 10,000,000
I25: ○ 사무용품 구입 : 250,000원*6개월 | J25: = | K25: 1,500 | N25: 슈퍼테크 | O25: 28000 | P25: 1개 | Q25: 12 | R25: 4 | S25: =O25*Q25*R25 -> 1,344,000
I26: ○ 전자제품 수리비(TV 등) : 200,000원*6개월 | J26: = | K26: 1,200 | N26: 홈스타 | O26: 75000 | P26: 1박스 | Q26: 12 | R26: 4 | S26: =O26*Q26*R26 -> 3,600,000
I27: ○ 시설관리 청소용품 : 300,000원*4개월 | J27: = | K27: 1,200 | N27: 하이퐁 | O27: 20000 | P27: 1통 | Q27: 12 | R27: 4 | S27: =O27*Q27*R27 -> 960,000
I28: ○ 위생용품 및 화장실 소모품 : 200,000원*4개월 | J28: = | K28: 800 | N28: 샤프란 | O28: 26000 | P28: 1통 | Q28: 12 | R28: 4 | S28: =O28*Q28*R28 -> 1,248,000
I29: ○ 야영장 및 어린이 놀이시설 벤치 설치비(주민참여) : 500,000원 * 6개 | J29: = | K29: 3,000
E30: 02 공공운영비 | F30: =K30 -> 500 | G30: 500 | H30: =F30-G30 -> 0 | I30: 02 공공운영비 | K30: =SUM(K31:K31) -> 500
I31: ○ 구급약품 구입 : 250,000원*2회 | J31: = | K31: 500
E32: 11 지급수수료 | F32: =K32 -> 57,380 | G32: 55,270 | H32: =F32-G32 -> 2,110 | I32: 11 지급수수료 | K32: =SUM(K33:K41) -> 57,380 | N32: 비누 | O32: 10000 | P32: 1곽 | Q32: 12 | R32: 4 | S32: =O32*Q32*R32 -> 480,000
I33: ○ 신용카드 결제수수료 : 600,000원*12월 | K33: 7,200
I34: ○ 방역(방제), 물탱크 청소 용역 : 400,000원*12월 | J34: = | K34: 4,800 | S34: =S25+S26+S27+S28+S32 -> 7,632,000
I35: ○ 수질검사 : 75,000원*2회 | J35: = | K35: 150 | M35: 수질검사 2회 수정 예정
I36: ○ 해충 방제(방역) : 500,000*5회 | J36: = | K36: 2,500
I37: ○ 전기설비 안전관리 대행수수료 : 350,000원*12월 | J37: = | K37: 4,200
I38: ○ 소방시설 안전관리 대행수수료 : 300,000원*12월 | J38: = | K38: 3,600
I39: ○ 오수처리시설 위탁관리 대행수수료 : 550,000원*12월 | J39: = | K39: 6,600
I40: ○ 휴양림 조경관리 용역(4,6,8,10월) : 7,000,000원*4회 | J40: = | K40: 28,000 | O40: 명수 | P40: 일수 | Q40: 회수
I41: ○ 지문인식기(근태관리) 임차료 : 27,500원*12월 | J41: = | K41: 330
E42: 13 임차료 | F42: =K42 -> 9,180 | G42: 13,278 | H42: =F42-G42 -> △4,098 | I42: 13 임차료 | K42: =SUM(K43:K45) -> 9,180 | M42: 특별 | N42: 190,000 | O42: 5 | P42: 5 | Q42: 4 | S42: =N42*O42*P42*Q42 -> 19,000,000
I43: ○ 사업장 내 화물운송용 차량대여료 : 550,000원*12월 | J43: = | K43: 6,600 | M43: 보통 | N43: 150,000 | O43: 3 | P43: 5 | Q43: 4 | S43: =N43*O43*P43*Q43 -> 9,000,000
I44: ○ 사무실 복합기 대여료 : 180,000원*12월 | J44: = | K44: 2,160 | M44: 김메기 | N44: 81,000 | O44: 1 | P44: 5 | Q44: 4 | S44: =N44*O44*P44*Q44 -> 1,620,000
I45: ○ 정수기 월임차료 : 35,000원*12월 | J45: = | K45: 420
E46: 15 복리후생비 | F46: =K46 -> 2,760 | G46: 2,760 | H46: =F46-G46 -> 0 | I46: 15 복리후생비 | K46: =SUM(K47:K48) -> 2,760
I47: ○ 급량비 : 8,000원*10일*12월 | J47: = | K47: 960
I48: ○ 피복구입비 : 200,000원*9명*1회 | J48: = | K48: 1,800
E49: 21 공공요금 및 제세 | F49: =K49 -> 89,136 | G49: 89,136 | H49: =F49-G49 -> 0 | I49: 21 공공요금및제세 | K49: =SUM(K50:K53) -> 89,136
I50: ○ 상수도 요금 : 1,300,000원*12월 | J50: = | K50: 15,600
I51: ○ 전기요금 : 5,500,000원*12월 | J51: = | K51: 66,000
I52: ○ 통신요금 : 550,000원*12월 | J52: = | K52: 6,600
I53: ○ TV수신료 : 3,000원*12월*26실 | J53: = | K53: 936
E54: 22 차량·선박비 | F54: =K54 -> 2,079 | G54: 1,425 | H54: =F54-G54 -> 654 | I54: 22 차량·선박비 | K54: =K55 -> 2,079
I55: ○ 업무용 차량 유류대 : 2,100원*55L*1.5회*12월 | J55: = | K55: 2,079 | M55: 1440 | N55: 55 | O55: 1.5 | P55: 12 | Q55: =M55*N55*O55*P55 -> 1,425,600
D56: 202 여비 | F56: =F57 -> 2,910 | G56: 2,910 | H56: =F56-G56 -> 0
E57: 01 국내여비 | F57: =K57 -> 2,910 | G57: 2,910 | H57: =F57-G57 -> 0 | I57: 01 국내여비 | K57: =SUM(K58:K59) -> 2,910
I58: ○ 업무추진 관내여비 : 20,000원*1명*10회*12월 | J58: = | K58: 2,400
I59: ○ 국내여비(관외) : 85,000원*3명*2회 | J59: = | K59: 510
D60: 212 복리후생비 | F60: 0 | G60: 0 | H60: =F60-G60 -> 0
E61: 09 기타복리후생비 | F61: 0 | G61: 0 | H61: 0 | I61: 09 기타복리후생비(공공운영비 과목 편성) | J61: = | K61: 0
D62: 213 | E62: 12 교육훈련비 | F62: 0 | G62: 0 | H62: 0
F63: 0 | G63: 0 | H63: 0 | I63: 12 교육훈련비(본부통합편성) | J63: = | K63: 0
D64: 214 수선유지교체비 | F64: =F65 -> 20,672 | G64: =G65 -> 20,526 | H64: 146
E65: 05 수선유지비 | F65: =K65 -> 20,672 | G65: 20,526 | H65: 146 | I65: 05 수선유지비 | K65: =SUM(K66:K67) -> 20,672
I66: ○ 소규모시설물 유지관리 : 2,000,000원*10월 | J66: = | K66: 20,000
I67: ○ 장비(예취기, 기계톱) 유류대 : 2,100원*40리터*8월 | J67: = | K67: 672
D68: 217 관서업무비 | F68: 2,100 | G68: 2,100 | H68: 0
E69: 02 부서업무비 | F69: =K69 -> 2,100 | G69: 2,100 | H69: =F69-G69 -> 0 | I69: 02 부서업무비 | K69: =K70 -> 2,100
I70: ○ 부서운영 업무추진비 : 175,000원*12월 | J70: = | K70: 2,100
B71: 200 자본적지출 | F71: =SUM(F72) -> 25,870 | G71: =SUM(G72) -> 3,500 | H71: =F71-G71 -> 22,370
C72: 230 유형자산취득 | F72: =SUM(F73) -> 25,870 | G72: =SUM(G73) -> 3,500 | H72: =F72-G72 -> 22,370 | M72: 동백 428L | O72: 8인실
D73: 245 수탁자산 | F73: =F74 -> 25,870 | G73: =G74 -> 3,500 | H73: =F73-G73 -> 22,370
E74: 412 수탁자산취득비 | F74: =K74 -> 25,870 | G74: 3,500 | H74: =F74-G74 -> 22,370 | I74: 12 수탁자산취득비(봉황산자연휴양림) | K74: =SUM(K75:K78) -> 25,870
I75: ○ 벽걸이 에어컨 : 1,100,000원*8대(진달래, 편백동) | J75: = | K75: 8,800
I76: ○ 스탠딩 에어컨 : 2,700,000원*4대(후박, 동백동) | J76: = | K76: 10,800
I77: ○ 텔레비전(42인치) : 460,000원*12대(숲속의 집) | J77: = | K77: 5,520
I78: ○ 송풍기 : 750,000원*1대(휴양림 환경정비용) | J78: = | K78: 750

Sheet (생활폐기물 운반-도시미화과)지출예산
A1: 나. 지출예산-생활폐기물 수집운반 대행사업
A2: 관: (700)사업비용 항: (710)영업비용 세항: (722)대행사업비 | J2: (단위 : 천원)
A3: 과 목 | F3: 당년도예산액 (A) | G3: 전년도예산액 (B) | H3: 비교증감 (A-B) | I3: 산 출 기 초
A4: 관. 항. 세항 | D4: 목 | E4: 세목
A5: 지출계(사업비용+자본적지출) | F5: =F6+F236 -> 20,837,466 | G5: =G6+G236 -> 21,866,242 | H5: =F5-G5 -> △1,028,776
A6: 700 사업비용 | F6: 19,952,216 | G6: 21,273,842 | H6: =F6-G6 -> △1,321,626
B7: 710 영업비용 | F7: 19,952,216 | G7: 21,273,842 | H7: △1,321,626
C8: 722 대행사업비 | F8: 19,952,216 | G8: 21,273,842 | H8: △1,321,626
D9: 101 인건비 | F9: 16,931,833 | G9: 18,570,156 | H9: △1,638,323
E10: 01 보수 | F10: 0 | H10: 0 | I10: 01 보수(경영기획팀 일괄예산편성) | N10: 21년도 기본 인상금 | O10: 지급율 | P10: 시간 | Q10: 인원 | R10: 식
I11: ○ 도시관리공단 직원 급여 | K11: 0
I12: - 4급 : 50,000,000원×1명 | J12: = | K12: 0 | M12: 0 | N12: 50,000,000 | Q12: 0 | R12: 1
I13: - 5급 : 45,000,000원×1명 | J13: = | K13: 0 | M13: 0 | N13: 45,000,000 | Q13: 0 | R13: 1
I14: - 6급 : 35,000,000원×1명 | J14: = | K14: 0 | M14: 0 | N14: 35,000,000 | Q14: 0 | R14: 1
E15: 03 무기계약근로자보수 | F15: 16,620,543 | G15: 18,504,876 | H15: =F15-G15 -> △1,884,333 | I15: 03 무기계약근로자보수 | K15: =K16+K45 -> 16,620,543
I16: [반장] | K16: 276,712
I17: ○ 기본급 | K17: 138,982 | M17: 138,982,680 | N17: 21년도 기본 인상금(추정) | O17: 지급율 | P17: 시간 | Q17: 인원 | R17: 개월 | U17: 1호봉 상승 | V17: 인상분(2%) | W17: 22년도 기본급(추정)
I18: - 별정 6급(29호봉) : 4,246,771원×1명×12월 | J18: = | K18: 0 | M18: 0 | N18: 0 | Q18: 1 | R18: 12 | U18: 0 | V18: 2.8% | W18: 0 | X18: 김재곤
I19: - 별정 7급(31호봉) : 4,051,860원×1명×12월 | J19: = | K19: 0 | M19: 0 | N19: 0 | Q19: 1 | R19: 12 | U19: 0 | V19: 2.8% | W19: 0 | X19: 강덕열
I20: - 별정 7급(28호봉) : 4,027,570원×2명×12월 | J20: = | K20: 96,661 | M20: 96,661,680 | N20: 4,027,570 | Q20: 2 | R20: 12 | U20: 3,948,600 | V20: 2.0% | W20: 4,027,572 | X20: 김일두
I21: - 별정 8급(25호봉) : 3,526,750원×1명×12월 | J21: = | K21: 42,321 | M21: 42,321,000 | N21: 3,526,750 | Q21: 1 | R21: 12 | U21: 3,948,600 | V21: 2.0% | W21: 4,027,572 | X21: 김인주
I22: ○ 상여금 | K22: 11,581 | N22: 단가 | O22: 지급율 | P22: 시간 | Q22: 명 | R22: 개월 | U22: 3,457,600 | V22: 2.0% | W22: 3,526,752 | X22: 문태선
I23: - 정근수당 : 138,982,680원×100% / 12월 | J23: = | K23: 11,581 | M23: 11,581,890 | N23: 138,982,680 | O23: 100% | R23: 12
I24: ○ 가족수당 | K24: 2,400 | N24: 단가 | O24: 지급율 | P24: 시간 | Q24: 명 | R24: 개월
I25: - 배우자 : 40,000원×3명×12월 | J25: = | K25: 1,440 | M25: 1,440,000 | N25: 40,000 | Q25: 3 | R25: 12
I26: - 직계존비속 : 20,000원×1명×12월 | J26: = | K26: 240 | M26: 240,000 | N26: 20,000 | Q26: 1 | R26: 12 | T26: 문태선
I27: - 둘째 : 60,000원×1명×12월 | J27: = | K27: 720 | M27: 720,000 | N27: 60,000 | Q27: 1 | R27: 12 | T27: 문태선
I28: ○ 정근수당가산금 | K28: 4,680 | N28: 단가 | O28: 지급율 | P28: 시간 | Q28: 명 | R28: 개월
I29: - 25년이상 : 130,000원×3명×12월 | J29: = | K29: 4,680 | M29: 4,680,000 | N29: 130,000 | Q29: 3 | R29: 12
I30: - 20~25년미만 : 110,000원×1명×12월 | J30: = | K30: 0 | M30: 0 | N30: 110,000 | Q30: 0 | R30: 12
I31: ○ 직급보조비 | K31: 5,460 | N31: 단가 | O31: 지급율 | P31: 시간 | Q31: 명 | R31: 개월
I32: - 별정 7급 : 155,000원×2명×12월 | J32: = | K32: 3,720 | M32: 3,720,000 | N32: 155,000 | Q32: 2 | R32: 12
I33: - 별정 8급 : 145,000원×1명×12월 | J33: = | K33: 1,740 | M33: 1,740,000 | N33: 145,000 | Q33: 1 | R33: 12
I34: ○ 장려수당 : 70,000원×3명×12월 | J34: = | K34: 2,520 | M34: 2,520,000 | N34: 70,000 | Q34: 3 | R34: 12
I35: ○ 자녀학비보조수당 | K35: 0 | N35: 단가 | O35: 지급율 | P35: 시간 | Q35: 명 | R35: 개월
I36: - 고등학교 : 350,000원×4명×4회 | J36: = | K36: 0 | M36: 0 | N36: 350,000 | R36: 4
I37: ○ 초과근무수당 | K37: 80,587 | N37: 단가 | O37: 지급율 | P37: 시간 | Q37: 명 | R37: 개월 | T37: 초과단가
I38: - 시간외근무수당 : 23,430원×150%×5시간×3명×12월 | J38: = | K38: 6,326 | M38: 6,326,100 | N38: 23,430 | O38: 150% | P38: 5 | Q38: 3 | R38: 12 | S38: 개월 | T38: 23436 | U38: 김인주
I39: - 휴일근무수당 : 23,430원×150%×8시간×3명×75일 | J39: = | K39: 63,261 | M39: 63,261,000 | N39: 23,430 | O39: 150% | P39: 8 | Q39: 3 | R39: 75 | S39: 일 | T39: 23436 | U39: 김일두
I40: - 야간근무수당 : 23,430원×50%×1시간×3명×313일 | J40: = | K40: 11,000 | M40: 11,000,385 | N40: 23,430 | O40: 50% | P40: 1 | Q40: 3 | R40: 313 | S40: 일 | T40: 23436 | U40: 문태선
I41: ○ 연차유급휴가수당 :187,480원×3명×18일 | J41: = | K41: 10,124 | M41: 10,124,352 | N41: 187,488 | Q41: 3 | R41: 18
I42: ○ 복리후생비 | K42: 20,378 | N42: 단가 | O42: 지급율 | P42: 시간 | Q42: 명 | R42: 개월
I43: - 정액급식비 : 180,000원×3명×12월 | J43: = | K43: 6,480 | M43: 6,480,000 | N43: 180,000 | Q43: 3 | R43: 12
I44: - 명절휴가비 : 138,982,680원×120%/12월 | J44: = | K44: 13,898 | M44: 13,898,268 | N44: 138,982,680 | O44: 120% | R44: 12
I45: [환경사원] | K45: 16,343,831
I46: ○ 기본급 | K46: 6,009,923 | N46: 22년도 기본급(추정) | O46: 지급율 | P46: 시간 | Q46: 인원 | R46: 개월
I47: - 3년 이상~4년 미만 : 1,848,070원×271명×12월 | J47: = | K47: 6,009,923 | M47: 6,908,581,320 | N47: 2,124,410 | Q47: 271 | R47: 12 | T47: 구 분 | U47: 21년도 기본급 | V47: 인상분(2.8%) | W47: 22년도 기본급(추정)
I48: ○ 상여금 | K48: 3,202,020 | N48: 단가 | O48: 지급율 | P48: 시간 | Q48: 명 | R48: 개월 | T48: 17호봉 | U48: 2,068,560 | V48: 2.70% | W48: 2,124,410 | Y48: (상여금 산정기준 : 기본급+특수업무수당+작업장려수당+정액급식비)
I49: - 기말수당(4호봉) : 2,188,070원×200%×271명 | J49: = | K49: 1,185,933 | M49: 1,335,710,220 | N49: 2,464,410 | O49: 200% | Q49: 271 | T49: 1호봉 | U49: 1,643,680 | V49: 2.70% | W49: 1,688,050
I50: - 정근수당(4호봉): 2,188,070원×90%×271명 | J50: = | K50: 533,670 | M50: 601,069,599 | N50: 2,464,410 | O50: 90% | Q50: 271
I51: - 체력단련비(4호봉) : 2,188,070원×250%×271명 | J51: = | K51: 1,482,417 | M51: 1,669,637,775 | N51: 2,464,410 | O51: 250% | Q51: 271 | U51: 상여금 산정기준 | V51: (기본급+특수업무수당+작업장려수당+정액급식비)
I52: ○ 가족수당 | K52: 294,960 | N52: 단가 | Q52: 명 | R52: 개월 | U52: 상여금 산정기준액 | V52: 2,464,410 | W52: 상여금 산정기준액
I53: - 배우자 : 40,000원×210명×12월 | J53: = | K53: 100,800 | M53: 100,800,000 | N53: 40,000 | Q53: 210 | R53: 12 | U53: 기본급(17호봉) | V53: 2,124,410 | W53: 기본급(4호봉)
I54: - 직계존비속 : 20,000원×209명×12월 | J54: = | K54: 50,160 | M54: 50,400,000 | N54: 20,000 | Q54: 210 | R54: 12 | U54: 특수업무수당 | V54: 90,000 | W54: 특수업무수당
I55: - 둘째 : 60,000원×100명×12월 | J55: = | K55: 72,000 | M55: 72,000,000 | N55: 60,000 | Q55: 100 | R55: 12 | U55: 작업장려수당 | V55: 70,000 | W55: 작업장려수당
I56: - 셋째,넷째 : 100,000원×60명×12월 | J56: = | K56: 72,000 | M56: 72,000,000 | N56: 100,000 | Q56: 60 | R56: 12 | U56: 정액급식비 | V56: 180,000 | W56: 정액급식비
I57: ○ 특수업무수당 | K57: 292,680
I58: - 특수업무수당(4호봉) : 90,000원×271명×12월 | J58: = | K58: 292,680 | M58: 292,680,000 | N58: 90,000 | Q58: 271 | R58: 12
I59: ○ 작업장려수당 | K59: 227,640
I60: - 작업장려수당(4호봉) : 70,000원×271명×12월 | J60: = | K60: 227,640 | M60: 227,640,000 | N60: 70,000 | Q60: 271 | R60: 12
I61: ○ 자녀학비보조수당 | K61: 0 | N61: 단가 | Q61: 명 | R61: 회
I62: - 고등학교 : 350,000원×5명×4회 | J62: = | K62: 0 | M62: 0 | Q62: 5 | R62: 4
I63: ○ 초과근무수당 | K63: 4,341,115 | N63: 단가 | O63: 지급율 | P63: 시간 | Q63: 명 | R63: 개월, 일 | U63: 초과단가(17호봉기준)
I64: - 시간외근무수당(4호봉) : 15,760원×150%×4시간×75명×12월 | J64: = | K64: 85,104 | M64: 95,526,000 | N64: 17,690 | O64: 150% | P64: 4 | Q64: 75 | R64: 12 | S64: 개월 | U64: 17,693 | V64: 기말 | W64: 410730
I65: - 휴일근무수당(4호봉) : 15,760원×150%×8시간×271명×70일 | J65: = | K65: 3,587,606 | M65: 4,026,951,600 | N65: 17,690 | O65: 150% | P65: 8 | Q65: 271 | R65: 70 | S65: 일 | V65: 체력 | W65: 513410
I66: - 야간근무수당(4호봉) : 15,760원×50%×1시간×271명×313일 | J66: = | K66: 668,405 | M66: 750,259,435 | N66: 17,690 | O66: 50% | P66: 1 | Q66: 271 | R66: 313 | S66: 일 | V66: 정근 | W66: 205360
I67: ○ 연차유급휴가수당 | K67: 615,213 | V67: 목욕 | W67: 104000
I68: - 4호봉 : 126,120원×271명×18일 | J68: = | K68: 615,213 | M68: 690,432,120 | N68: 141,540 | Q68: 271 | R68: 18 | S68: 일
I69: ○ 복리후생비 | K69: 1,296,920 | N69: 단가 | O69: 지급율 | P69: 시간 | Q69: 명 | R69: 개월
I70: - 정액급식비 : 180,000원×271명×12월 | J70: = | K70: 585,360 | M70: 585,360,000 | N70: 180,000 | Q70: 271 | R70: 12
I71: - 명절휴가비 : 2,188,070원×271명×120% | J71: = | K71: 711,560 | L71: 2,464,410 | M71: 801,426,132 | N71: 667,855,110 | O71: 120% | Q71: 271.0
I72: ○ 탑승수당 | K72: 25,200
I73: - 월 16일이상 차량탑승자 : 10,000원×210명×12월 | J73: = | K73: 25,200 | M73: 25,200,000 | N73: 10,000 | O73: 100% | Q73: 210.0 | R73: 12
I74: ○ 조장수당 | K74: 13,200 | N74: 단가 | O74: 지급율 | P74: 시간 | Q74: 명 | R74: 개월
I75: - 차량반, 가로청소반 조장 : 100,000원×11명×12월 | J75: = | K75: 13,200 | M75: 13,200,000 | N75: 100,000 | Q75: 11 | R75: 12
I76: ○ 운전수당 | K76: 24,960 | N76: 단가 | O76: 지급율 | P76: 시간 | Q76: 명 | R76: 개월
I77: - 청소차 운전원 : 40,000원×52명×12월 | J77: = | K77: 24,960 | M77: 24,960,000 | N77: 40,000 | Q77: 52 | R77: 12
E78: 04 기간제근로자등보수 | F78: 311,290 | G78: 65,280 | H78: 246,010 | I78: 04 기간제근로자등보수 | K78: 311,290 | N78: 단가 | P78: 일 | Q78: 명 | R78: 개월
I79: [당직전담원] | K79: 68,544
I80: ○ 일당 : 168,000원 x 16일 x 2명 x 12월 | J80: = | K80: 64,512 | M80: 64,512,000 | N80: 168,000 | P80: 16 | Q80: 2 | R80: 12
I81: ○ 연차유급휴가수당 : 168,000원 x 2명 x 12일 | J81: = | K81: 4,032 | M81: 4,032,000 | N81: 168,000 | P81: 12 | Q81: 2
I82: [환경미화원] | K82: 242,746
I83: ○ 일당 : 92,370원x23일x6명x12월 | J83: = | K83: 152,964 | M83: 152,964,720 | N83: 92,370 | P83: 23 | Q83: 6 | R83: 12
I84: ○ 휴일수당 : 92,370원x150%x5일x6명x12월 | J84: = | K84: 49,879 | M84: 49,879,800 | N84: 92,370 | O84: 150% | P84: 5 | Q84: 6 | R84: 12
I85: ○ 주차수당 : 92,370원x5일x6명x12월 | J85: = | K85: 33,253 | M85: 33,253,200 | N85: 92,370 | P85: 5 | Q85: 6 | R85: 12
I86: ○ 연차유급휴가수당 : 92,370원x6명x12일 | J86: = | K86: 6,650 | M86: 6,650,640 | N86: 92,370 | Q86: 6 | R86: 12
D87: 107 퇴직급여 | F87: 0 | H87: 0 | I87: 107 퇴직급여(경영기획팀 일괄예산편성) | N87: 160,002
I88: ○ 환경사원 퇴직급여 | K88: 0 | N88: 160,003 | O88: 지급율 | P88: 시간 | Q88: 명 | R88: 개월
I89: - 상반기 퇴직급여 : 197,826,032원×7명 | J89: = | K89: 0 | M89: 0 | N89: 160,004 | Q89: 0
I90: - 하반기 퇴직급여 : 183,156,082원×15명 | J90: = | K90: 0 | M90: 0 | N90: 160,005 | Q90: 0
I91: - 수시퇴직 및 퇴직금 중간정산 급여 : 153,000,000원×5명(15년) | J91: = | K91: 0 | M91: 0 | N91: 160,006 | Q91: 0
D92: 201 일반운영비 | F92: 2,547,528 | G92: 2,236,451 | H92: 311,077
E93: 01 사무관리비 | F93: 66,400 | G93: 66,400 | H93: 0 | K93: 66,400
I94: ○ 청소용품 구입비 | K94: 33,800 | N94: 단가 | P94: 명, 개수 | Q94: 회 | R94: 개월
I95: - 대비 : 3,000원×100명×2회×12월 | J95: = | K95: 7,200 | M95: 7,200,000 | N95: 3,000 | P95: 100 | Q95: 2 | R95: 12
I96: - 나일론비 : 2,000원 x 100개 x 2회 x 12월 | J96: = | K96: 4,800 | M96: 4,800,000 | N96: 2,000 | P96: 100 | Q96: 2 | R96: 12
I97: - 쓰레받이(대): 10,000원×40개x4회 | J97: = | K97: 1,600 | M97: 1,600,000 | N97: 10,000 | P97: 40 | Q97: 4
I98: - 쓰레받이(소) : 8,000원×100개×4회 | J98: = | K98: 3,200 | M98: 3,200,000 | N98: 8,000 | P98: 100 | Q98: 4
I99: - 삽 : 6,000원×100명×3회 | J99: = | K99: 1,800 | M99: 1,800,000 | N99: 6,000 | P99: 100 | Q99: 3
I100: - 음식물 수거용기(120ℓ) : 50,000원×60개×2회 | J100: = | K100: 6,000 | M100: 6,000,000 | N100: 50,000 | P100: 60 | Q100: 2
I101: - 음식물 수거용기 바퀴교체 : 10,000원×60개×2개×2회 | J101: = | K101: 2,400 | M101: 2,400,000 | N101: 10,000 | P101: 120 | Q101: 2
I102: - 청소차비산방지덮개(진개덤프) : 50,000원×16대×1회 | J102: = | K102: 800 | M102: 800,000 | N102: 50,000 | P102: 16 | Q102: 1
I103: - 기타소모품비(비품, 차류 등) :500,000원×1회×12월 | J103: = | K103: 6,000 | M103: 6,000,000 | N103: 500,000 | Q103: 1 | R103: 12
I104: ○ 사무용품 등 구입비 | K104: 20,000 | N104: 단가 | P104: 명, 개수 | Q104: 회 | R104: 개월
I105: - 복사용지 구입(A4) : 25,000원×10박스×6회 | J105: = | K105: 1,500 | M105: 1,500,000 | N105: 25,000 | P105: 10 | Q105: 6
I106: - 사무용품구입비 : 500,000원×12회 | J106: = | K106: 6,000 | M106: 6,000,000 | N106: 500,000 | P106: 12 | Q106: 1
I107: - 복사용지 구입(A3) : 30,000원×5박스×12회 | J107: = | K107: 1,800 | M107: 1,800,000 | N107: 30,000 | P107: 5 | Q107: 12
I108: - PC 유지보수 및 소모품 구입 : 250,000원×10대×1회 | J108: = | K108: 2,500 | M108: 2,500,000 | N108: 250,000 | P108: 10 | Q108: 1
I109: - 각종 서식 인쇄 및 제작(차량운행일지 등) : 1,000,000원×4회 | J109: = | K109: 4,000 | M109: 4,000,000 | N109: 1,000,000 | Q109: 4
I110: - 복지관위생용품(화장지,방향제) 구입 : 350,000원×12회 | J110: = | K110: 4,200 | M110: 4,200,000 | N110: 350,000 | P110: 1 | Q110: 12
I111: ○ 공공기관 유류 공동구매 등 나라장터 이용 수수료 : 300,000원 x 2회 | J111: = | K111: 600 | M111: 600,000 | N111: 300,000 | Q111: 2
I112: ○ 시민 홍보물품 제작 구입비 : 15,000원×100개×2회 | J112: = | K112: 3,000 | M112: 3,000,000 | N112: 15,000 | P112: 100 | Q112: 2
I113: ○ 불법배출 수거거부 스티커제작구입비 : 150원×15,000매×4회 | J113: = | K113: 9,000 | M113: 9,000,000 | N113: 150 | P113: 15,000 | Q113: 4
E114: 02 공공운영비 | F114: 7,200 | G114: 7,200 | H114: 0 | K114: 7,200
I115: ○ 경미한 부상(공상)에 따른 치료비 및 약제비 : 500,000원x12개월 | J115: = | K115: 6,000 | M115: 6,000,000 | N115: 500,000 | P115: 1 | Q115: 12
I116: ○ 청소차량 및 사무실 구급약품구입 : 300,000원×4회 | J116: = | K116: 1,200 | M116: 1,200,000 | N116: 300,000 | Q116: 4
E117: 03 행사운영비 | F117: 4,110 | G117: 4,110 | H117: 0 | K117: 4,110 | N117: 단가 | P117: 명.개수 | Q117: 회 | R117: 개월
I118: ○ 각종 행사 현수막 제작비 : 70,000원×13회 | J118: = | K118: 910 | M118: 910,000 | N118: 70,000 | Q118: 13
I119: ○ 퇴임식관련 행사물품 구입 : 600,000원×2회 | J119: = | K119: 1,200 | M119: 1,200,000 | N119: 600,000 | Q119: 2
I120: ○ 근로자의날 및 창립기념일 행사 비용 등 : 2,000,000원×1식 | J120: = | K120: 2,000 | M120: 2,000,000 | N120: 2,000,000 | Q120: 1
E121: 11 지급수수료 | F121: 78,347 | G121: 34,314 | H121: 44,033 | K121: 78,347 | N121: 단가 | P121: 대 | Q121: 회 | R121: 개월
I122: ○ 지급수수료 | K122: 16,214
I123: - 청소차량 정기검사 : 50,000원×70대×1.5회 | J123: = | K123: 5,250 | M123: 5,250,000 | N123: 50,000 | P123: 70 | Q123: 1.5
I124: - CNG청소차량 내압용기 검사 : 385,000원×20대×1회 | J124: = | K124: 7,700 | M124: 7,700,000 | N124: 385,000 | P124: 20 | Q124: 1
I125: - 환경사원인사급여프로그램 유지 보수 : 121,000원×12월 | J125: = | K125: 1,452 | M125: 1,452,000 | N125: 121,000 | R125: 12
I126: - 복지관 및 정비동 무인경비용역비 : 121,000원×12월 | J126: = | K126: 1,452 | M126: 1,452,000 | N126: 121,000 | R126: 12
I127: - 환경사원 휴게실 및 식당 정수기 소독비 : 30,000원×3대×4회 | J127: = | K127: 360 | M127: 360,000 | N127: 30,000 | Q127: 3 | R127: 4
I128: ○ 공단홈페이지 내 배출신고 예약 시스템 유지보수 수수료 | K128: 19,785 | M128: 0 | P128: 1 | R128: 12
I129: - 유지보수수수료 : 580,000원x12개월 | J129: = | K129: 6,960 | M129: 6,960,000 | N129: 580,000 | Q129: 12
I130: - 서버임차위탁운영수수료 : 760,000원x12개월 | J130: = | K130: 9,120 | M130: 9,120,000 | N130: 760,000 | Q130: 12
I131: - 휴대폰 본인인증 수수료 : 3,300,000x1식 | J131: = | K131: 3,300 | M131: 3,300,000 | N131: 3,300,000 | Q131: 1
I132: - 서버구간 암호화작업 수수료 : 405,350x1식 | J132: = | K132: 405 | M132: 405,350 | N132: 405,350 | Q132: 1
I133: ○ 청소 수거구간 조정 용역비 : 20,000,000원×1식 | J133: = | K133: 20,000 | M133: 20,000,000 | N133: 20,000,000 | Q133: 1
I134: ○ 신규 공동주택 폐플라스틱류 재활용품 민간위탁 용역비 | K134: 22,348
I135: - 폐플라스틱류 수집운반선별처리 : 800원×4,656세대×6개월 | J135: = | K135: 22,348 | M135: 22,348,800 | N135: 800 | P135: 4,656 | Q135: 6
E136: 12 교육훈련비 | F136: 0 | G136: 0 | H136: 0 | I136: 12 교육훈련비(경영본부 일괄편성) | K136: 0 | M136: 3,903,600 | N136: 단가 | P136: 명 | Q136: 일,회 | R136: 개월
I137: ○ 환경사원 산업안전보건교육비 : 570,000원×4회 | J137: = | M137: 2,280,000 | N137: 570,000 | Q137: 4
I138: ○ 실무자 과정교육(3급이하) : 400,000원×5명×2회 | J138: = | M138: 4,000,000 | N138: 400,000 | P138: 5 | R138: 2
I139: ○ 교육여비 : 400,000원×5명×2회 | J139: = | M139: 4,000,000 | N139: 400,000 | P139: 5 | R139: 2
I140: ○ 법정의무교육 외래 강사료 등 : 480,000원*4회 | J140: = | M140: 1,920,000 | N140: 480,000 | R140: 4
E141: 13 임차료 | F141: 76,652 | G141: 68,102 | H141: 8,550 | K141: 76,652 | N141: 단가 | P141: 명, 개수 | Q141: 회 | R141: 개월
I142: ○ 리스료 | K142: 10,002
I143: - 환경사원복지관 정수기 임대 : 120,000원×12월 | J143: = | K143: 1,440 | M143: 1,440,000 | N143: 120,000 | R143: 12
I144: - 환경사원복지관 비데임대 : 17,900원×7개×12월 | J144: = | K144: 1,503 | M144: 1,503,600 | N144: 17,900 | P144: 7 | R144: 12
I145: - 환경사원복지관 공기청정기임대 : 40,000원×2개×12월 | J145: = | K145: 960 | M145: 960,000 | N145: 40,000 | P145: 2 | R145: 12
I146: - 사무실 복합기 임대 : 300,000원×1대×12월 | J146: = | K146: 3,600 | M146: 3,600,000 | N146: 300,000 | P146: 1 | R146: 12
I147: - 복지관 CCTV 월보수료 : 77,000원×12월 | J147: = | K147: 924 | M147: 924,000 | N147: 77,000 | P147: 1 | R147: 12
I148: - 소프트웨어 구매비(알약) 25,000원×15대 | J148: = | K148: 375 | M148: 375,000 | N148: 25,000 | P148: 15
I149: - 소프트웨어 유지비(어도비) : 1,200,000원×1개 | J149: = | K149: 1,200 | M149: 1,200,000 | N149: 1,200,000 | P149: 1
I150: ○ 공유재산 사용료 | K150: 65,000 | N150: 단가 | P150: 명, 개수 | Q150: 개소 | R150: 개월
I151: - 환경사원복지관 외 2필지 : 65,000,000원x1회 | J151: = | K151: 65,000 | M151: 65,000,000 | N151: 65,000,000 | Q151: 1
I152: ○ 예비운전원 실기시험장 대여료 : 550,000원×3회 | J152: = | K152: 1,650 | M152: 1,650,000 | N152: 550,000 | Q152: 3
E153: 15 복리후생비 | F153: 730,921 | G153: 733,990 | H153: △3,069 | K153: 730,921
I154: ○ 환경사원 피복비 | K154: 382,901 | M154: 382,901,800 | N154: 단가 | P154: 명 | Q154: 일,회 | R154: 개월
I155: - 춘추 작업복 : 150,000원×274명×1회 | J155: = | K155: 41,100 | M155: 41,100,000 | N155: 150,000 | P155: 274 | Q155: 1
I156: - 하계 작업복 : 70,000원×274명×1회 | J156: = | K156: 19,180 | M156: 19,180,000 | N156: 70,000 | P156: 274 | Q156: 1
I157: - 동절기 작업복 : 165,000원×274명×1회 | J157: = | K157: 45,210 | M157: 45,210,000 | N157: 165,000 | P157: 274 | Q157: 1
I158: - 방한복 : 135,000원×274명×1회 | J158: = | K158: 36,990 | M158: 36,990,000 | N158: 135,000 | P158: 274 | Q158: 1
I159: - 우의 : 55,000원×274명×1회 | J159: = | K159: 15,070 | M159: 15,070,000 | N159: 55,000 | P159: 274 | Q159: 1
I160: - 안전장화 : 35,000원×274명×1회 | J160: = | K160: 9,590 | M160: 9,590,000 | N160: 35,000 | P160: 274 | Q160: 1
I161: - 안전화 : 65,000원×274명×3회 | J161: = | K161: 53,430 | M161: 53,430,000 | N161: 65,000 | P161: 274 | Q161: 3
I162: - 춘추작업모 : 7,500원×274명×1회 | J162: = | K162: 2,055 | M162: 2,055,000 | N162: 7,500 | P162: 274 | Q162: 1
I163: - 하계작업모 : 15,000×274명×1회 | J163: = | K163: 4,110 | M163: 4,110,000 | N163: 15,000 | P163: 274 | Q163: 1
I164: - 방한모 : 20,000원×274명×1회 | J164: = | K164: 5,480 | M164: 5,480,000 | N164: 20,000 | P164: 274 | Q164: 1
I165: - 안전모 : 12,000원×274명×1회 | J165: = | K165: 3,288 | M165: 3,288,000 | N165: 12,000 | P165: 274 | Q165: 1
I166: - 안전조끼 : 32,000원×274명×2회 | J166: = | K166: 17,536 | M166: 17,536,000 | N166: 32,000 | P166: 274 | Q166: 2
I167: - 보안경 : 10,000원×274명×1회 | J167: = | K167: 2,740 | M167: 2,740,000 | N167: 10,000 | P167: 274 | Q167: 1
I168: - 방한용 넥워머구입 : 15,000원×274명×1회 | J168: = | K168: 4,110 | M168: 4,110,000 | N168: 15,000 | P168: 274 | Q168: 1
I169: - 하절기 쿨토시구입 : 11,000원×274명×1회 | J169: = | K169: 3,014 | M169: 3,014,000 | N169: 11,000 | P169: 274 | Q169: 1
I170: - 방진복 : 8,000원x85개x12회 | J170: = | K170: 8,160 | M170: 8,160,000 | N170: 8,000 | P170: 85 | Q170: 12
I171: - 안전벨트(탑승원) : 25,000원×10명×4회 | J171: = | K171: 1,000 | M171: 1,000,000 | N171: 25,000 | P171: 10 | Q171: 4
I172: - 작업용 장갑 :1,100원×280명×10개×12월 | J172: = | K172: 36,168 | M172: 36,168,000 | N172: 1,100 | P172: 274 | Q172: 10 | R172: 12
I173: - 작업용 관절 보호대 구입 : 35,000×230개×1회 | J173: = | K173: 8,050 | M173: 8,050,000 | N173: 35,000 | P173: 230 | Q173: 1
I174: - 베임방지 장갑 : 8,000원 x 72명 x 24회 | J174: = | K174: 13,824 | M174: 13,824,000 | N174: 8,000 | P174: 72 | Q174: 24
I175: - 캡 라이트(헤드렌턴)배터리포함 : 14,000원×230명×1회 | J175: = | K175: 3,220 | M175: 3,220,000 | N175: 14,000 | P175: 230 | Q175: 1
I176: - 황사마스크 : 1,600원×274명×12회 | J176: = | K176: 5,260 | M176: 5,260,800 | N176: 1,600 | P176: 274 | Q176: 12
I177: - KF94마스크 : 600원×274명×160회 | J177: = | K177: 26,304 | M177: 26,304,000 | N177: 600 | P177: 274 | Q177: 160
I178: - KFAD(비말)마스크 : 500원×274명×96회 | J178: = | K178: 13,152 | M178: 13,152,000 | N178: 500 | P178: 274 | Q178: 96
I179: - 방독마스크 : 14,000원×30명×6회 | J179: = | K179: 2,520 | M179: 2,520,000 | N179: 14,000 | P179: 30 | Q179: 6
I180: - 방독필터 : 13,000원×30명×6회 | J180: = | K180: 2,340 | M180: 2,340,000 | N180: 13,000 | P180: 30 | Q180: 6
I181: ○ 환경사원 목욕비 : 4,000원×271명×26회×12월 | J181: = | K181: 338,208 | M181: 338,208,000 | N181: 4,000 | P181: 271 | Q181: 26 | R181: 12
I182: ○ 환경사원 맞춤형 복지비 : 1,000,000원×275명×0.98 | J182: = | K182: 0 | M182: 0 | N182: 1,000,000 | P182: 0 | S182: 0.98
I183: ○ 휴게실 모포 세탁비 : 8,000원x50개x4회 | J183: = | K183: 1,600 | M183: 1,600,000 | N183: 8,000 | P183: 50 | Q183: 4
I184: ○ 벌레물림약 구입비 : 10,000원x100개 | J184: = | K184: 1,000 | M184: 1,000,000 | N184: 10,000 | P184: 100
I185: ○ 폭염대비 식염포도당 구입비 : 15,000원x20개 | J185: = | K185: 300 | M185: 300,000 | N185: 15,000 | P185: 20
I186: ○ 급량비 : 8,000원×6명×12회×12월 | J186: = | K186: 6,912 | M186: 6,912,000 | N186: 8,000 | P186: 6 | Q186: 12 | R186: 12
E187: 21 공공요금및제세 | F187: 284,502 | G187: 134,544 | H187: 149,958 | K187: 284,502 | N187: 단가 | O187: 요율 | P187: 대 | Q187: 회 | R187: 개월
I188: ○ 지방소득세(종업원분) : 18,785,484,000원×0.5% | J188: = | K188: 93,102 | M188: 93,102,715 | N188: 18,620,543,000 | O188: 0.5% | S188: 반장및환경사원 임금 | T188: 18,620,543,000
I189: ○ 자동차세 : 90,000원×70대×2회 | J189: = | K189: 12,600 | M189: 12,600,000 | N189: 90,000 | P189: 70 | Q189: 2
I190: ○ 경유차 환경개선부담금 : 80,000원×15대×2회 | J190: = | K190: 2,400 | M190: 2,400,000 | N190: 80,000 | P190: 15 | Q190: 2
I191: ○ 환경사원복지관 공공요금 | K191: 29,400 | N191: 단가 | P191: 대 | Q191: 회 | R191: 개월
I192: - 환경사원복지관 전기요금 : 1,200,000원×12월 | J192: = | K192: 14,400 | M192: 14,400,000 | N192: 1,200,000 | R192: 12
I193: - 환경사원복지관 수도요금 : 450,000원×12월 | J193: = | K193: 5,400 | M193: 5,400,000 | N193: 450,000 | R193: 12
I194: - 환경사원복지관 전화요금 : 800,000원×12월 | J194: = | K194: 9,600 | M194: 9,600,000 | N194: 800,000 | R194: 12
I195: ○ 청소차량 보험료 : 2,000,000원×70대×1회 | J195: = | K195: 147,000 | M195: 147,000,000 | N195: 2,100,000 | P195: 70 | Q195: 1
E196: 22 차량 · 선박비 | F196: 1,299,396 | G196: 1,187,791 | H196: 111,605 | K196: 1,299,396
J197: = | K197: 0 | M197: 0 | N197: 0 | P197: 70 | Q197: 1
I198: ○ 도서지역 폐기물 운반 선박비 : 2,000,000원×60회 | J198: = | K198: 120,000 | M198: 120,000,000 | N198: 2,000,000 | Q198: 60
I199: ○ 청소차량 유류비 | K199: 1,165,536 | N199: 단가 | O199: 거리 | P199: 대 | Q199: 회,식 | R199: 개월 | S199: 연비
I200: - 8000cc(경유) : 40,000km×22대×1,965원×0.3 | J200: = | K200: 518,760 | M200: 518,760,000 | N200: 1,965 | O200: 40,000 | P200: 22 | S200: 0.3
... 49 more rows

Sheet (종량제공급-도시미화과)지출예산
A1: 나. 지출예산-종량제물품공급센터
A2: 관: (700)사업비용 항: (710)영업비용 세항: (722)대행사업비 | J2: (단위 : 천원)
A3: 과 목 | F3: 당년도예산액 (A) | G3: 전년도예산액 (B) | H3: 비교증감 (A-B) | I3: 산 출 기 초
A4: 관. 항. 세항 | D4: 목 | E4: 세목
A5: 지출계(사업비용+자본적지출) | F5: =F6 -> 106,284 | G5: 98,805 | H5: =F5-G5 -> 7,479
A6: 700 사업비용 | F6: 106,284 | G6: 98,805 | H6: 7,479
B7: 710 영업비용 | F7: 106,284 | G7: 98,805 | H7: 7,479
C8: 722 대행사업비 | F8: =F9+F16+F56+F78+F81+F59 -> 106,284 | G8: =G9+G16+G56+G59+G81 -> 98,805 | H8: 7,479
D9: 101 인건비 | F9: =F10+F15 -> 0 | G9: =G10+G15 -> 0 | H9: 0
E10: 01 보수 | F10: =K11 -> 0 | G10: 0 | H10: 0 | I10: 01 보수(경영지원팀 일괄예산편성)
I11: ○ 도시관리공단 직원 급여 | K11: =SUM(K12:K14) -> 0
I12: - 4급 : 50,000,000원×1명 | J12: = | K12: =ROUNDDOWN(M12/1000,0) -> 0
I13: - 5급 : 45,000,000원×1명 | J13: = | K13: =ROUNDDOWN(M13/1000,0) -> 0
I14: - 6급 : 35,000,000원×1명 | J14: = | K14: =ROUNDDOWN(M14/1000,0) -> 0
E15: 03 무기계약근로자보수 | F15: =K15 -> 0 | G15: 0 | H15: =F15-G15 -> 0 | I15: 03 무기계약근로자보수(경영지원팀 일괄예산편성)
D16: 201 일반운영비 | F16: =F17+F24+F31+F35+F44+F53 -> 99,684 | G16: =G17+G24+G31+G35+G44+G53 -> 95,205 | H16: =F16-G16 -> 4,479
E17: 01 사무관리비 | F17: =K17 -> 4,800 | G17: 4,800 | H17: =F17-G17 -> 0 | K17: =K18+K21+K22+K23 -> 4,800
I18: ○ 사무용품구입 | K18: =SUM(K19:K20) -> 3,600
I19: - 복사용지 및 소모품비(토너) : 150,000원*12개월 | J19: = | K19: 1,800
I20: - 사무용품 구입비 : 150,000원*12월 | J20: = | K20: 1,800
I21: ○ 컴퓨터 및 복사기 수리비 : 150,000원*4대*1회 | J21: = | K21: 600
I22: ○ 청소용품 및 장갑 등 : 50,000원*12개월 | J22: = | K22: =ROUND(50000*12*1/1000,0) -> 600
E24: 11 지급수수료 | F24: =K24 -> 65,070 | G24: 65,070 | H24: =F24-G24 -> 0 | K24: =K25+K26+K27+K28+K30 -> 65,070
I25: ○ ARS&판매관리시스템 유지관리 수수료 : 362,000원*12개월 | J25: = | K25: =ROUND(362000*12*1/1000,0) -> 4,344
I26: ○ 무인방범 및 CCTV 관리수수료 : 88,000원*12개월 | J26: = | K26: =ROUND(88000*12*1/1000,0) -> 1,056
I27: ○ 신용카드 단말기 사용료 : 11,000원*12개월 | J27: = | K27: 132
I28: ○ 신용카드 결제서비스 대행수수료 | K28: =K29 -> 52,338
I29: - 연간판매액*카드결제비율*수수료율=6,100백만원*30%*2.86% | J29: = | K29: 52,338
I30: ○ 랜섬웨어 방지 서버 구축 유지관리 수수료 : 600,000원*12개월 | J30: = | K30: 7,200
E31: 15 임차료 | F31: =K31 -> 10,308 | G31: 9,588 | H31: =F31-G31 -> 720 | K31: =K32+K33+K34 -> 10,308
I32: ○ 정수기렌탈 : 20,000원*12개월 | J32: = | K32: =ROUND(20000*12/1000,0) -> 240
I33: ○ 공기청정기 렌탈료 : 39,000원*12개월*1대 | J33: = | K33: 468
I34: ○ 배송차량 임차료 : 800,000원*12개월*1대 | J34: = | K34: 9,600
E35: 15 복리후생비 | F35: 2,940 | G35: 2,940 | H35: 0 | K35: =K36+K39 -> 2,940
I36: ○ 피복구입비 | J36: = | K36: =SUM(K37:K38) -> 1,500
I37: - 근무복(동절기,하절기) : 150,000원*3명*2회 | J37: = | K37: 900
I38: - 방한복 : 200,000원*3명*1회 | J38: = | K38: 600
I39: ○ 야간근무자 급량비 | K39: =K40 -> 1,440
I40: - 8,000원*15일*12개월 | J40: = | K40: 1,440
E44: 21공공요금및제세공과금 | F44: =K44 -> 9,366 | G44: 9,207 | H44: =F44-G44 -> 159 | K44: =K45+K46+K49+K50+K51+K52 -> 9,366
I45: ○ 일반전화 및 인터넷전용회선요금등 : 250,000원*12개월 | J45: = | K45: =ROUND(250000*12*1/1000,0) -> 3,000
I46: ○ 문자메시지 발송비 | K46: =SUM(K47:K48) -> 1,386
I47: - 종량제물품 주문내역 문자발송 : 330,000원 * 1식 | J47: = | K47: 330
I48: - 대량 문자발송(지정판매소 전체) : 44원*1000건*2회*12개월 | J48: = | K48: =ROUNDDOWN(44*1000*12*2/1000,0) -> 1,056
I49: ○ 택배비(도서지역 등기우편) : 90,000원*12개월 | J49: = | K49: =ROUND(90000*12*1/1000,0) -> 1,080
I50: ○ 전기요금 : 270,000원*12개월 | J50: = | K50: 3,240
I51: ○ 상하수도요금 : 30,000원*12개월 | J51: = | K51: 360
I52: ○ 화재보험료 : 300,000원 | J52: = | K52: 300
E53: 22 차량선박비 | F53: =K55 -> 7,200 | G53: 3,600 | H53: =F53-G53 -> 3,600 | I53: ○ 배송차량유지 | K53: =K55 -> 7,200
I55: - 차량유류비 : 600,000원*12개월 | J55: = | K55: 7,200
D56: 202 여비 | F56: =F57 -> 2,400 | G56: =G57 -> 2,400 | H56: =F56-G56 -> 0
E57: 01 국내여비 | F57: =K57 -> 2,400 | G57: 2,400 | H57: =F57-G57 -> 0 | I57: ○ 관내여비 | K57: =K58 -> 2,400
I58: - 관내(일반직) : 20,000원*10일*1명*12개월 | J58: = | K58: 2,400
D59: 207 전산개발비 | F59: =F60 -> 0 | G59: =G60 -> 0 | H59: =F59-G59 -> 0
E60: 01 연구개발비 | F60: =K60 -> 0 | G60: 0 | H60: =F60-G60 -> 0
D62: 212 복리후생비 | F62: =F63+F70 -> 2,940 | G62: =G63+G70 -> 2,940 | H62: =F62-G62 -> 0
E63: 01 사회부담금 | F63: =K64 -> 0 | G63: 0 | H63: =F63-G63 -> 0 | I63: 01 사회부담금(경영지원팀 일괄예산편성)
I64: ○ 4대보험 사업주 부담금 | K64: =SUM(K65:K69) -> 0
I65: - 국민연금 : 17,391,759,000원×5.0% | J65: = | K65: =ROUNDDOWN(M65/1000,0) -> 0
I66: - 건강보험료 : 17,391,759,000원×2.89% | J66: = | K66: =ROUNDDOWN(M66/1000,0) -> 0
I67: - 건강보험 노인장기요양 보험료 : 502,621,835원×8.51% | J67: = | K67: =ROUNDDOWN(M67/1000,0) -> 0
I68: - 산재보험료 : 17,391,759,000원×1.20% | J68: = | K68: =ROUNDDOWN(M68/1000,0) -> 0
I69: - 고용보험료 : 17,391,759,000원×1.20% | J69: = | K69: =ROUNDDOWN(M69/1000,0) -> 0
E70: 02 기타복리후생비 | F70: =K70 -> 2,940 | G70: 2,940 | H70: =F70-G70 -> 0 | I70: 09 기타복리후생비 | K70: =K71+K74 -> 2,940
I71: ○ 피복구입비 | K71: =K72+K73 -> 1,500
I72: - 근무복(동절기,하절기) : 150,000원*3명*2회 | J72: = | K72: 900
I73: - 방한복 : 200,000원*3명*1회 | J73: = | K73: 600
I74: ○ 야간근무자 급량비 | K74: =SUM(K75:K75) -> 1,440
I75: - 8,000원*15일*12개월 | J75: = | K75: 1,440
I76: ○ 맞춤형복지포인트 : 경영지원팀 일괄 편성
I77: ○ 건강검진 지원비 : 경영지원팀 일괄 편성
D78: 214 수선유지교체비 | F78: 3,000 | G78: 0 | H78: 3,000
E79: 05 수선유지비 | F79: 3,000 | G79: 0 | H79: 3,000 | I79: ○ 수선유지비 | K79: 3,000
I80: - 종량제물품공급센터 수리비 : 250,000원*12개월 | J80: = | K80: 3,000
D81: 217 관서업무비 | F81: =F82 -> 1,200 | G81: =G82 -> 1,200 | H81: =F81-G81 -> 0
E82: 02 부서업무비 | F82: =K82 -> 1,200 | G82: 1,200 | H82: =F82-G82 -> 0 | I82: ○ 부서업무비 | K82: =K83 -> 1,200
I83: - 부서업무비(5인이하) : 100,000원*12월 | J83: = | K83: 1,200

Sheet (진남수영장-체육지원과)지출예산
A1: 나. 지출예산-진남수영장 관리운영
A2: 관: (700)사업비용 항: (710)영업비용 세항: (753)대행사업비 | J2: (단위 : 천원)
A3: 과 목 | F3: 당년도예산액 (A) | G3: 전년도예산액 (B) | H3: 증 감 (A-B) | I3: 산 출 기 초 | L3: 설 명 내 용
A4: 관. 항. 세항 | D4: 목 | E4: 세목
A5: 합계(사업비용+자본적지출) | F5: 1,277,344 | G5: 1,213,754 | H5: 63,590
A6: 700 사업비용 | F6: 1,254,794 | G6: 1,192,782 | H6: 62,012
B7: 710 영업비용 | F7: 1,254,794 | G7: 1,192,782 | H7: 62,012
C8: 722 대행사업비 | F8: 1,254,794 | G8: 1,192,782 | H8: 62,012
D9: 101 인건비 | F9: 441,033 | G9: 426,997 | H9: 14,036
E10: 04 기간제근로자보수 | F10: 441,033 | G10: 426,997 | H10: 14,036 | I10: 04 기간제근로자 보수 | K10: 441,033
I11: ○ 수영장 수영강사 인부임(10명) | J11: = | K11: 414,880 | L11: ○ 수영강사 10
I12: - 기본급 : 94,030원*10명*5일*52주 | J12: = | K12: 244,478 | N12: 94,030 | O12: 10 | P12: 5 | Q12: 52
I13: - 초과근무수당 : 94,030원*150%*4명*52주 | J13: = | K13: 29,338 | L13: ○ 수영강사 4(토요일 근무) | N13: 94,030 | O13: 1.5 | P13: 4 | Q13: 52
I14: - 야간근무수당 : 11,633원*50%*5명*0.5시간*5일*52주 | J14: = | K14: 3,781 | L14: ○ 수영강사 5(새벽근무자 수당 지급05:30~14:30) | N14: 11,633 | O14: 0.5 | P14: 5 | Q14: 0.5 | R14: 5 | S14: 52
I15: - 연차휴가수당 : 94,030원*10명*10일 | J15: = | K15: 9,403 | L15: ○ 수영강사 10(연차 미소진 지급분) | N15: 94,030 | O15: 10 | P15: 10
I16: - 실버반수당 : 400,000원*4명*12월 | J16: = | K16: 19,200 | L16: ○ 수영강사 4(실버수당 지급분) | N16: 400,000 | O16: 4 | P16: 12
I17: - 주휴수당 : 94,030원*10명*52주 | J17: = | K17: 48,392 | L17: ○ 수영강사 10 | N17: 93,060 | O17: 10 | P17: 52
I18: - 안전자격수당 : 50,000원*10명*12월 | J18: = | K18: 6,000 | L18: ○ 수영강사 10(자격수당) | N18: 50,000 | O18: 10 | P18: 12
I19: - 평일 안전근무수당 : 9,000원*2회*10명*5일*52주 | J19: = | K19: 46,800 | L19: ○ 수영강사 10(평일 안전근무수당) | N19: 9,000 | O19: 2 | P19: 10 | Q19: 5 | R19: 52
I20: - 토요일 안전근무수당 : 9,000원*4회*4명*52주 | J20: = | K20: 7,488 | L20: ○ 수영강사 4(토요일 안전근무수당) | N20: 9,000 | O20: 4 | P20: 4 | Q20: 52
I21: ○ (신규)매표,환경, 수상안전요원 일용근로자 인부임(대체인력) | J21: = | K21: 26,153 | L21: ○ 직원 병가 및 휴직 등 공백발생 시 채용
I22: - 기본급 : 10,000원*8시간*3명*90일 | J22: = | K22: 21,600 | N22: 10,000 | O22: 8 | P22: 3 | Q22: 90
I23: - 초과근무수당 : 9,620원*150%*3명*12주 | J23: = | K23: 520 | N23: 9,620 | O23: 1.5 | P23: 3 | Q23: 12
I24: - 야간근무수당 : 9,620원*50%*3명*0.5시간*60일 | J24: = | K24: 433 | N24: 9,620 | O24: 0.5 | P24: 3 | Q24: 0.5 | R24: 60
I25: - 연차휴가수당 : 10,000원*8명*3명*3일 | J25: = | K25: 720 | N25: 10,000 | O25: 8 | P25: 3 | Q25: 3
I26: - 주휴수당 : 10,000원*8명*3명*12주 | J26: = | K26: 2,880 | N26: 10,000 | O26: 8 | P26: 3 | Q26: 12
D27: 201 일반운영비 | F27: 702,477 | G27: 692,801 | H27: 9,676
E28: 01 사무관리비 | F28: 33,850 | G28: 26,184 | H28: 7,666 | I28: 01 사무관리비 | K28: 33,850
I29: ○ 회원카드제작 : 1,000장 *400원 | J29: = | K29: 400 | L29: ○회원카드 분실 대비 구매 | N29: 1000 | O29: 400
I30: ○ 영수증 용지 구입 : 80,000원*6박스*2회 | J30: = | K30: 960 | L30: ○수영장 영수증 용지 구입(친환경용지) | N30: 80,000 | O30: 6 | P30: 2
I31: ○ 무인발권기 입장권 용지 구입 : 80,000원*3박스*2회 | J31: = | K31: 480 | L31: ○무인 발권기 용지 구입(친환경용지) | N31: 80000 | O31: 3 | P31: 2
I32: ○ 사무용품 구입비 : 300,000원*12월 | J32: = | K32: 3,600 | L32: ○기타 사무용품 구입 | N32: 300000 | O32: 12
I33: ○ 공구류 구입 : 500,000원*1회 | J33: = | K33: 500 | L33: ○기타 공구류 구입비 | N33: 500000 | O33: 1
I34: ○ 수영장 방향제 구입 : 10,000원*12회*5개소 | J34: = | K34: 600 | L34: ○수영장 방향제 구입 | N34: 10,000 | O34: 12 | P34: 5
I35: ○ 쓰레기 종량제 봉투 75L : 100장*1,800원*12월 | J35: = | K35: 2,160 | L35: ○쓰레기 종량제 봉투 구입 | N35: 100 | O35: 1800 | P35: 12
I36: ○ 프린터 토너 구입 | J36: = | K36: 8,600 | L36: ○사무실1, 사무실2, 카운터1, 카운터2, 강사실
I37: - 블랙 : 250,000원*5대*2개 | J37: = | K37: 2,500
I38: - 칼라 : 400,000원*3대*2개 | J38: = | K38: 2,400
I39: - 드럼 : 350,000원*5대*2개 | J39: = | K39: 3,500
I40: - 회수통 : 100,000원*1대*2개 | J40: = | K40: 200
I41: ○ 리플릿 및 현수막 제작비 : 66,000원*2회*12월 | J41: = | K41: 1,584 | L41: ○리플릿, 현수막 제작비 | N41: 66000 | O41: 2 | P41: 12
I42: ○ 위생용품 및 화장실 청소용품 : 1,500,000원*6회 | J42: = | K42: 9,000 | L42: ○점보롤휴지 ,핸드타올, 면봉, 락스, 세정제 | N42: 1,500,000 | O42: 6
I43: ○ 시설관리 청소용품 : 300,000원*4회 | J43: = | K43: 1,200 | L43: ○빗자루, 걸레 등 소모품 구입비 | N43: 300,000 | O43: 4
I44: ○ 전산소모품 구입비 : 50,000원*19대*1회 | J44: = | K44: 950
I45: ○ 자동심장충격기 카트리지 구입 : 300,000원*1회*2대 | J45: = | K45: 600 | L45: ○AED카트리지 구입(2022.2.8. 유효기간 만료)
I46: ○ (신규)실내공기질 재인증 용역비 : 1,200,000원*1회 | J46: = | K46: 1,200
E47: 02 공공운영비 | F47: 0 | G47: 300 | H47: △300 | I47: 02 공공운영비(복리후생비로 편성) | K47: 0
E49: 11 지급수수료 | F49: 122,292 | G49: 118,122 | H49: 4,170 | I49: 11 지급수수료 | K49: 122,292
I50: ○ (법정)보일러 대기배출시설 자가측정 용역비 : 2,000,000원*2회 | J50: = | K50: 4,000 | L50: ○법적 대기배출시설 자가측정 용역비(연1회) | N50: 2,000,000 | O50: 2
I51: ○ 승강기 유지보수 비용 : 150,000원*12회 | J51: = | K51: 1,800 | L51: ○유지보수 관리계약 | N51: 150,000 | O51: 12
I52: ○ (법정)방역 소독비 :880,000원*5회 | J52: = | K52: 4,400 | L52: ○법적 방역소독 5회 / 수목 소독 2회 | N52: 880,000 | O52: 5
I53: ○ (법정)도시가스 정기점검 수수료 : 500,000원*1회 | J53: = | K53: 500 | L53: ○법적 정기검사 실시 | N53: 500,000 | O53: 1
I54: ○ (법정)수영장 수질검사 수수료 : 50,000원*4회 | J54: = | K54: 200 | L54: ○법적 검사 실시 | N54: 50,000 | O54: 4
I55: ○ 무인경비 시스템 수수료 : 285,000원*12월 | J55: = | K55: 3,420 | L55: ○무인경비(에스원) 수수료 지불(분기별) | N55: 285,000 | O55: 12
I56: ○ 설비 유지관리 시스템 관리 : 350,000원*12월 | J56: = | K56: 4,200 | L56: ○시설관리 전산프로그램 사용 수수료 | N56: 350,000 | O56: 12
I57: ○ 보일러 정기검사비 : 1,200,000원*1식 | J57: = | K57: 1,200 | L57: ○ 사용중검사, 성능검사 각 연 1회(보일러 3대) | N57: 1,200,000 | O57: 1
I58: ○ 신용카드 결제대행수수료 : 1,700,000원*12월 | J58: = | K58: 20,400 | L58: ○ 신용카드 결제에 따른 카드사 결제대행수수료 | N58: 1,700,000 | O58: 12
I59: ○ (법정)정기안전점검 용역비 : 4,500,000원*2회 | J59: = | K59: 9,000 | L59: ○법적 정기정검 2회 | N59: 4,500,000 | O59: 2
I60: ○ (법정)전기연차점검 : 3,800,000원*1회 | J60: = | K60: 3,800 | L60: ○법적 전기 연차 점검 | N60: 3,800,000 | O60: 1
I61: ○ (법정)소방작동기능점검 : 1,000,000원*2회 | J61: = | K61: 2,000 | L61: ○법적 소방 점검 | N61: 1,000,000 | O61: 2
I62: ○ (법정)승강기 정기검사 수수료 : 130,000원*1회 | J62: = | K62: 130 | L62: ○승강기시설안전관리법에 의한 안전관리 대행 | N62: 130,000 | O62: 1
I63: ○ (법정)보일러 세관 용역비 : 7,700,000원*1회 | J63: = | K63: 7,700 | L63: ○보일러 관체 내부 약품 세척 용역비 | N63: 7,700,000 | O63: 1
I64: ○ 보일러 유지관리 용역비 : 2,000,000원*1식 | J64: = | K64: 2,000 | L64: ○진남수영장 보일러 유지보수 계약비 | N64: 2,000,000 | O64: 1
I65: ○ 통합회원관리 시스템 유지관리 용역비 : 1,000,000원*4회 | J65: = | K65: 4,000 | L65: ○진남수영장 회원관리 프로그램 용역비 | N65: 800,000 | O65: 12
I66: ○ 냉난방기 유지관리 용역비 : 900,000원*4회 | J66: = | K66: 3,600 | L66: ○부품비 별도 관리(수선유지비) * 실외기 3대 / 실내기 31대 | N66: 900,000 | O66: 4
I67: ○ 홈페이지 유지관리 용역비 : 121,000원*12월 | J67: = | K67: 1,452 | L67: ○공공체육시설 홈페이지 유지관리 용역비 | N67: 121,000 | O67: 12
I68: ○ 서버 유지관리 용역비 : 750,000원*12월 | J68: = | K68: 9,000 | L68: ○수영장 회원관리 프로그램 서버 유지관리 용역비 | N68: 750,000 | O68: 12
I69: ○ 수영장 발란싱 탱크 청소 용역비 : 1,400,000원*1회 | J69: = | K69: 1,400 | L69: ○수영장 수질개선을 위한 물탱크 청소 | N69: 1,400,000 | O69: 1
I70: ○ 기계실 집수정 내부 청소 용역비 : 300,000원*4대*1회 | J70: = | K70: 1,200 | L70: ○기계실 배수용 펌프 내부 청소 용역비 | N70: 300,000 | O70: 4
I71: ○ 저수조 탱크 청소 용역비 : 1,200,000원*2회 | J71: = | K71: 2,400 | L71: ○저수조 청소 용역비 | N71: 1,200,000 | O71: 2
I72: ○ 수영장 바닥타일 청소 용역비 : 1,300,000원*13회 | J72: = | K72: 16,900 | L72: ○월1회 수영장 내부 바닥청소 용역비(하계 월2회) | N72: 1,300,000 | O72: 13
I73: ○ 수영장 주변 화단 조경 및 제초 용역비 : 6,500,000원*2회 | J73: = | K73: 13,000 | L73: ○ 년 2회 수영장 제초작업 용역비 | N73: 6,500,000 | O73: 2
I74: ○ (신규)수영장 에어컨 청소 용역비 : 34대 *1회 | J74: = | K74: 4,590 | L74: ○ 년 1회 에어컨청소 용역비 | N74: 135,000 | O74: 34 | P74: 5 | Q74: 5 | R74: 3
E75: 13 임차료 | F75: 5,076 | G75: 2,700 | H75: 2,376 | I75: 13 임차료 | K75: 5,076
I76: ○ (신규)공기청정기 임차료 : 42,000원*4대*12월 | J76: = | K76: 2,016 | L76: ○공기청정기 임차료(4대) 납부(3대추가) | N76: 42,000 | O76: 4 | P76: 12
I77: ○ 정수기 임차료 : 45,000원*5대*12월 | J77: = | K77: 2,700 | L77: ○정수기 임대료(5대) 지급 | N77: 45,000 | O77: 5 | P77: 12
I78: ○ (신규)커피머신 임차료 : 30,000원*1대*12월 | J78: = | K78: 360 | L78: ○커피머신 임대료(1대) 지급 | N78: 30,000 | O78: 1 | P78: 12
E79: 15 복리후생비 | F79: 33,660 | G79: 37,656 | H79: △3,996 | I79: 15 복리후생비 | K79: 33,660
I80: ○ 피복비(체육시설팀) | K80: 6,300
I81: - 매표 : 150,000원*1회*8명 | J81: = | K81: 1,200 | L81: ○매표원(진남 4, 망마 4) * 동복·하복(격년제 지급) | N81: 150,000 | O81: 1 | P81: 8
I82: - 관리, 청소, 안전 : 150,000원*1회*34명 | J82: = | K82: 5,100 | L82: ○관리(진남 6, 망마 4, 장애인3), 청소(진남 6, 망마 4, 장애인 5), 안전(진남 2, 망마 2) * 신규2 | N82: 150,000 | O82: 1 | P82: 34
I83: ○ 강습용 개인장비(수영복 등) 구입비(체육시설팀) | K83: 11,460
I84: - 수영강사 작업복 등 : 300,000원*2회*18명 | J84: = | K84: 10,800 | L84: ○수영장(진남,망마) 수영강사 강습관련 장비 구입 | N84: 300,000 | O84: 2 | P84: 18
I85: - 안전근무복 : 30,000원*1회*22명 | J85: = | K85: 660 | L85: ○수영장(진남,망마) 수영강사, 안전근무자 근무복 구입 | N85: 30,000 | O85: 1 | P85: 22
I86: ○ 급량비(체육시설팀) | K86: 7,200
I87: - 8,000원 * 5명 * 15일 * 12월 | J87: = | K87: 7,200 | L87: ○진남 2, 망마 2, 장애인 1 | N87: 8,000 | O87: 5 | P87: 15 | Q87: 12
I88: ○ 간식비 | K88: 7,800
I89: - 수영강사 : 3,000원*10명*5일*52주 | J89: = | K89: 7,800 | L89: ○수영강사 10명 간식비 | N89: 3,000 | O89: 10 | P89: 5 | Q89: 52
I90: ○ 안전용품(안전화,안전모 등) 구입비 | K90: 600
I91: - 150,000원 * 4명 | J91: = | K91: 600 | L91: ○안전장구류 안전화, 안전모 등 안전에 관한 개인장구류 구입
I92: ○ 수영장 응급의약품 구입비 : 300,000원*1회 | J92: = | K92: 300 | L92: ○의약품 구입비 | N92: 300,000 | O92: 1
E93: 21 공공요금 및 제세 | F93: 507,599 | G93: 507,839 | H93: △240 | I93: 21 공공요금 및 제세 | K93: 507,599
I94: ○ 주민세 : 250원*6,496㎡ | J94: = | K94: 1,624
I95: ○ 상하수도 요금 : 19,000,000원*12월 | J95: = | K95: 228,000 | L95: ○상하수도요금 : 19년 실제 사용요금 대비산정 | N95: 19,000,000 | O95: 12
I96: ○ 도시가스 요금 : 15,500,000원*12월 | J96: = | K96: 186,000 | L96: ○도시가스요금 : 19년 실제 사용요금 대비산정 | N96: 15,500,000 | O96: 12
I97: ○ 전기 요금 : 7,000,000원*12월 | J97: = | K97: 84,000 | L97: ○전기요금 : 19년 실제 사용요금 대비산정 | N97: 7,000,000 | O97: 12
I98: ○ 통신요금(전화기,인터넷) : 360,000원*12월 | J98: = | K98: 4,320 | L98: ○22년 사용분(1월~7월분) 평균 | N98: 360,000 | O98: 12
I99: ○ (법정)도시가스사고배상책임보험 : 20,000원*1회 | J99: = | K99: 20 | L99: ○연 1회 법정 책임보험 가입 | N99: 20,000 | O99: 1
I100: ○ (법정)승강기사고배상책임보험 : 35,000원*1회 | J100: = | K100: 35 | L100: ○연 1회 법정 책임보험 가입 | N100: 35,000 | O100: 1
I101: ○ 문자메시지 요금 : 300,000원*12월 | J101: = | K101: 3,600 | L101: ○문자메시지 발송요금 | N101: 300,000 | O101: 12
D102: 202 여비 | F102: 28,180 | G102: 17,560 | H102: 10,620
E103: 01 국내여비 | F103: 28,180 | G103: 17,560 | H103: 10,620 | I103: 01 국내여비(체육시설팀) | K103: 28,180
I104: ○ 관내여비 : 20,000원*8명*11일*12월 | J104: = | K104: 21,120 | L104: ○팀장1, 진남3, 망마4, 장애인2 | N104: 20,000 | O104: 8 | P104: 11 | Q104: 12
I105: ○ 관외여비 : 85,000원*6명*3일*2회 | J105: = | K105: 3,060 | L105: ○팀장1, 진남4, 망마4, 장애인2 | N105: 85,000 | O105: 6 | P105: 3 | Q105: 2
I106: ○ (신규)유공직원 선진지 견학 : 500,000원*4명*2회 | J106: = | K106: 4,000 | L106: ○유공직원 선진지 견학(연 2회)
D107: 206 재료비 | F107: 10,354 | G107: 5,574 | H107: 4,780
E108: 01 일반재료비 | F108: 1,000 | G108: 600 | H108: 400 | I108: 01 일반재료비 | K108: 1,000
I109: ○ 방역소독약품 구입 : 500,000원*2회 | J109: = | K109: 1,000 | L109: ○수영장내/외부벌레퇴치약품살포/감염병예방약품 | N109: 500,000 | O109: 2
E110: 02 약품비 | F110: 9,354 | G110: 4,974 | H110: 4,380 | I110: 02 약품비 | K110: 9,354
I111: ○ 정제염 소금 구입 : 8,800원*15포*12월 | J111: = | K111: 1,584 | L111: ○차염소산나트륨 발생기 소금 투입 | N111: 8,800 | O111: 15 | P111: 12
I112: ○ 보일러 청관제 구입 : 60,000원*3통*12월 | J112: = | K112: 2,160 | L112: ○보일러 내부 관체 윤활제 구입 | N112: 60,000 | O112: 3 | P112: 12
I113: ○ 응집제 구입 : 22,000원(1L)*12통*12월 | J113: = | K113: 3,168 | L113: ○수영장 수질개선 응집제 구입 | N113: 22,000 | O113: 12 | P113: 12
I114: ○ PH조절제 구입 : 33,000원*10통*1회 | J114: = | K114: 330 | L114: ○수영장 수질개선 PH조절제 구입 | N114: 33,000 | O114: 10 | P114: 1
I115: ○ 탁도개선제 : 22,000원*8통*12월 | J115: = | K115: 2,112 | L115: ○수영장 수질개선 탁도개선제 구입 | N115: 22,000 | O115: 8 | P115: 12
D116: 214 수선유지교체비 | F116: 61,050 | G116: 43,250 | H116: 17,800
E117: 02 수선유지비 | F117: 61,050 | G117: 43,250 | H117: 17,800 | I117: 02 수선유지비 | J117: = | K117: 61,050
I118: ○ 수영장 내부 대정비 타일청소 : 3,000,000원*1식 | J118: = | K118: 3,000 | L118: ○ 연 1회 대정비 타일청소(수영조 내/외부) | N118: 1 | O118: 3,000,000
I119: ○ 냉난방기 유지보수 부품 구입 : 150,000원*31대(실내기) | J119: = | K119: 4,650 | L119: ○ 에어컨 유지관리 부품비 | N119: 31 | O119: 150000
I120: ○ 수중청소기 유지관리비 : 1,000,000원*2회 | J120: = | K120: 2,000 | L120: ○ 수중청소기 2대 수리비 | N120: 2 | O120: 1000000
I121: ○ 소방설비 유지관리비 : 200,000원*12월 | J121: = | K121: 2,400 | L121: ○ 소방설비 유지관리비(화재감지기, 소화기 등) | N121: 12 | O121: 200000
I122: ○ 전기설비 유지관리비 : 300,000원*12월 | J122: = | K122: 3,600 | L122: ○ 전기설비 유지관리비(차단기, 휴즈 등) | N122: 12 | O122: 300000
I123: ○ 고압세척기 유지관리비 : 400,000원*2대 | J123: = | K123: 800 | L123: ○ 청소용 고압세척기 수리비 | N123: 2 | O123: 400000
I124: ○ 수영장 네트워크 시스템 수리비 : 2,000,000원*1식 | J124: = | K124: 2,000 | L124: ○ 수영장 인터넷, 발권기 포스 수리비 | N124: 1 | O124: 2000000
I125: ○ 기계실 센서류 구입비 : 2,000,000원*1식 | J125: = | K125: 2,000 | L125: ○ 저수조탱크, 응축수탱크, 발란싱탱크 센서 구입비 | N125: 1 | O125: 2000000
I126: ○ 기계실 장비 및 배관 유지보수 : 3,000,000원*1식 | J126: = | K126: 3,000 | L126: ○ 기계실 설비 배관 유지관리비 | N126: 1 | O126: 3000000
I127: ○ 수영장 및 로비 전광판 수리비 : 3,000,000원*1식 | J127: = | K127: 3,000 | L127: ○ 수영장 내부 및 로비 전광판 수리비 | N127: 1 | O127: 3000000
I128: ○ 샤워실 및 수영장 내부 소모성 자재 구입 : 3,000,000원*1식 | J128: = | K128: 3,000 | L128: ○ 샤워기 헤드, 수영장 트렌치커버 등 수리비 | N128: 1 | O128: 3,000,000
I129: ○ (신규)로비 타일 보수 및 교체 : 7,000,000원*1식 | J129: = | K129: 7,000 | L129: ○ 수영장 로비 타일 보수 | N129: 1 | O129: 7,000,000
I130: ○ (신규)수영장 내,외부 수선 공사(블라인드 및 필름지) : 18,000,000원*1식 | J130: = | K130: 18,000 | L130: ○ 수영장 외부 필름지 부착(정면 9,000천원 / 측면 9,000천원) | N130: 1 | O130: 18000000
I131: ○ (신규)기계실 순환펌프 체크밸브 교체 : 2,200,000원*3식 | J131: = | K131: 6,600 | L131: ○ 기계실 순환라인 체크밸브 교체 | N131: 1 | O131: 11000000
D132: 217 관서업무비 | F132: 11,700 | G132: 6,600 | H132: 5,100 | L132: ※ 2023년 지방공기업 예산편성기준
E133: 02 부서업무비 | F133: 11,700 | G133: 6,600 | H133: 5,100 | I133: 02 부서운영업무비 | K133: 11,700 | L133: ○ 회의개최 시 음식물 및 다과, 체육대회 식대 포함 (1년이상 근로계약을 체결하는 비정규직 포함)
I134: ○ 부서운영비(체육시설팀) | K134: 11,700
I135: - 진남수영장(28명) : 400,000원 * 12월 | J135: = | K135: 4,800 | L135: ○30인이하 400,000원 | N135: 550,000 | O135: 12
I136: - 망마국민체육센터(27명) : 400,000원 * 12월 | J136: = | K136: 4,800 | L136: ○30인이하 400,000원
I137: - 장애인국민체육센터(8명) : 175,000원 * 12월 | J137: = | K137: 2,100 | L137: ○10인이하 175,000원
A138: 200 자본적지출 | F138: 22,550 | G138: 20,972 | H138: 1,578
B139: 230 유형자산취득 | F139: 22,550 | G139: 20,972 | H139: 1,578
C140: 245 수탁자산 | F140: 22,550 | G140: 20,972 | H140: 1,578
D141: 405 자산취득비 | F141: 22,550 | G141: 20,972 | H141: 1,578
E142: 12 수탁자산취득비 | F142: 22,550 | G142: 20,972 | H142: 1,578 | I142: 12 수탁자산취득비(진남수영장) | K142: 22,550
I143: ○ (신규) 노트북 구입 | J143: = | K143: 1,500 | L143: ○ 회의용 노트북 구입(기존 노트북 여수시 반납) | N143: 1,500,000 | O143: 1
I144: ○ (신규) (주민참여)사물함 구입 : 87,000원*150대 | J144: = | K144: 13,050 | L144: ○ 규격 : 350*480*360mm / 주민참여예산
I145: ○ (신규) (주민참여) 디지털 시계 구입 | J145: = | K145: 1,600 | L145: ○ 규격 : 1,200*800mm / 주민참여예산
I146: ○ (신규) 휴게시설 조성(산업안전보건법 제128조의 2 휴게시설의 설치) | K146: 6,400
I147: - 간이침대 : 250,000원*4식 | J147: = | K147: 1,000 | L147: ○ 간이침대 | N147: 250,000 | O147: 4
I148: - 쇼파 및 테이블 : 1,000,000원*1식 | J148: = | K148: 1,000 | L148: ○ 쇼파 및 테이블
I149: - 칸막이 및 창문설치 등 | J149: = | K149: 4,000 | L149: ○ 칸막이, 석고보드, 출입문, 창문, 페인트공사, 인건비 등
I150: - 텔레비전(32인치) : 400,000원*1식 | J150: = | K150: 400 | L150: ○ 텔레비전(행정장비,비품,소모품 등 구입단가 적용) | N150: 400,000 | O150: 1

Sheet (망마-체육지원과)지출예산
A1: 나. 수익적지출(망마국민체육센터)
A2: 관: (700)사업비용 항: (710)영업비용 세항: (722)대행사업비 | J2: (단위 : 천원)
A3: 과 목 | F3: 당년도예산액 (A) | G3: 전년도예산액 (B) | H3: 증 감 (A-B) | I3: 산 출 기 초 | L3: 설 명 내 용
A4: 관. 항. 세항 | D4: 목 | E4: 세목
A5: 합계(사업비용+자본적지출) | F5: 1,121,894 | G5: 1,059,263 | H5: =F5-G5 -> 62,631
A6: 700 사업비용 | F6: 1,112,544 | G6: 1,045,963 | H6: 66,581
B7: 710 영업비용 | F7: 1,112,544 | G7: 1,045,963 | H7: 66,581
C8: 722 대행사업비 | F8: 1,112,544 | G8: 916,787 | H8: 195,757
D9: 101 인건비 | F9: 546,495 | G9: 481,541 | H9: 64,954
E10: 04 기간제근로자등보수 | F10: 546,495 | G10: 481,541 | H10: 64,954 | I10: 04 기간제근로자등보수 | K10: 546,495 | L10: ○ 수영강사 공무직 전환으로 본부 일괄 편성
I11: ○ 수영장 수영강사 인건비(9명) | K11: 345,910 | L11: ○ 수영강사(9) : 남4, 여4, 아쿠아로빅1(단시간)
I12: - 기본급 : 94,030원*8명*5일*52주 | J12: = | K12: 195,582 | L12: - 일급 94,030원 | N12: 94,030 | O12: 8 | P12: 5 | Q12: 52
I13: - 주휴수당 : 94,030원*8명*52주 | J13: = | K13: 39,116 | N13: 94,030 | O13: 8 | P13: 52
I14: - 초과근무수당 : 94,030원(일급)*4명*150%*52주 | J14: = | K14: 29,337 | L14: - 토요일 수영장 운영에 따른 초과근무 | N14: 94,030 | O14: 4 | P14: 150% | Q14: 52
I15: - 야간근무수당 : 11,633원(시급)*4명*50%*0.5시간*5일*52주 | J15: = | K15: 3,025 | L15: - 새벽출근(05:30)에 따른 야간근무 | N15: 11,633 | O15: 4 | P15: 50% | Q15: 0.5 | R15: 5 | S15: 52
I16: - 연차휴가수당 : 94,030원*8명*10일 | J16: = | K16: 7,522 | N16: 94,030 | O16: 8 | P16: 10
I17: - 실버반수당 : 400,000원*2명*12개월 | J17: = | K17: 9,600 | L17: - 실버반 단가 : 월 400,000원 / 2개반 운영 | N17: 400,000 | O17: 2 | P17: 12
I18: - 자격수당 : 50,000원*8명*12개월 | J18: = | K18: 4,800 | N18: 50,000 | O18: 8 | P18: 12
I19: - 평일안전근무수당 : 9,000원*8명*2회*5일*52주 | J19: = | K19: 37,440 | L19: - 안전근무 단가: 시간당 9,000원 | N19: 9,000 | O19: 8 | P19: 2 | Q19: 5 | R19: 52
I20: - 토요일안전근무수당 : 9,000원*4명*4회*52주 | J20: = | K20: 7,488 | N20: 9,000 | O20: 4 | P20: 4 | Q20: 52
I21: - 아쿠아로빅 강사 인건비 : 1,000,000원*1명*12개월 | J21: = | K21: 12,000 | L21: - 아쿠아로빅 월 정액 급여 : 1,000,000원 | N21: 1,000,000 | O21: 1 | P21: 12
I22: ○ 매표,환경,수상안전요원 일용근로자 인부임(대체인력) | J22: = | K22: 26,152 | L22: ○ 직원 병가 및 휴직 등 공백발생 시 채용
I23: - 기본급 : 80,000원*3명*90일 | J23: = | K23: 21,600 | N23: 10,000 | O23: 8 | P23: 3 | Q23: 90
I24: - 초과근무수당 : 9,620원*150%*3명*12주 | J24: = | K24: 519 | N24: 9,620 | O24: 1.5 | P24: 3 | Q24: 12
I25: - 야간근무수당 : 9,620원*50%*3명*0.5시간*60일 | J25: = | K25: 433 | N25: 9,620 | O25: 0.5 | P25: 3 | Q25: 0.5 | R25: 60
I26: - 연차휴가수당 : 80,000원*3명*3일 | J26: = | K26: 720 | N26: 80,000 | O26: 3 | P26: 3
I27: - 주휴수당 : 80,000원*3명*12주 | J27: = | K27: 2,880 | N27: 10,000 | O27: 8 | P27: 3 | Q27: 12
I28: ○ 환경미화 기간제근로자 인건비(5명) | K28: 115,253 | L28: ○ 환경미화(5) : 남2, 여2, 휴일전담1
I29: - 기본급 : 80,000원*5일*52주*3명 | J29: = | K29: 62,400 | L29: - 일급 80,000원(10,000원*8시간) | N29: 80,000 | O29: 5 | P29: 52 | Q29: 3
I30: - 주휴수당 : 80,000원*52주*3명 | J30: = | K30: 12,480 | N30: 80,000 | O30: 52 | P30: 3
I31: - 단시간근로자 기본급 : 60,000원*5일*52주*1명 | J31: = | K31: 15,600 | L31: - 일급 60,000원(10,000원*6시간) / 6시간 근무자 | N31: 60,000 | O31: 5 | P31: 52 | Q31: 1
I32: - 단시간근로자 주휴수당 : 60,000원*52주*1명 | J32: = | K32: 3,120 | N32: 60,000 | O32: 52 | P32: 1
I33: - 초과근무수당 : 9,620원(시급)*150%*16시간*12개월*4명 | J33: = | K33: 11,082 | L33: '- 토요일 수영장 운영에 따른 초과근무 | N33: 9,620 | O33: 150% | P33: 16 | Q33: 12 | R33: 4
I34: - 야간근무수당 : 9,620원(시급)*50%*0.5시간*5일*52주*2명 | J34: = | K34: 1,251 | L34: '- 새벽출근(05:30)에 따른 야간근무 | N34: 9,620 | O34: 50% | P34: 0.5 | Q34: 5 | R34: 52 | S34: 2
I35: - 연차휴가수당 : 80,000원*10일*3명 | J35: = | K35: 2,400 | N35: 80,000 | O35: 10 | P35: 3
I36: - 단시간근로자 연차휴가수당 : 60,000원*10일*1명 | J36: = | K36: 600 | N36: 60,000 | O36: 10 | P36: 1
I37: - 환경미화 대체근무자 인건비 : 80,000원*12일*1명 | J37: = | K37: 960 | L37: - 근무자 연차 등 공백 발생 시 대체근무자 투입 | N37: 80,000 | O37: 12 | P37: 1
I38: - 휴일전담 단시간근로자 인건비 : 80,000원*67일*1명 | J38: = | K38: 5,360 | L38: - 2023년 일요일 및 공휴일 : 67일 | N38: 80,000 | O38: 67 | P38: 1
I39: ○ 숙직전담 기간제근로자 인건비(2명) | K39: 59,180
I40: - 기본급 : 80,000원*15일*12개월*2명 | J40: = | K40: 28,800 | N40: 80,000 | O40: 15 | P40: 12 | Q40: 2
I41: - 주휴수당 : 80,000원*5일*12개월*2명 | J41: = | K41: 9,600 | N41: 80,000 | O41: 5 | P41: 12 | Q41: 2
I42: - 초과근무수당 : 9,620원(시급)*150%*2시간*15일*12개월*2명 | J42: = | K42: 10,390 | N42: 9,620 | O42: 150% | P42: 2 | Q42: 15 | R42: 12 | S42: 2
I43: - 야간근무수당 : 9,620원(시급)*50%*6시간*15일*12개월*2명 | J43: = | K43: 10,390 | N43: 9,620 | O43: 50% | P43: 6 | Q43: 15 | R43: 12 | S43: 2
D44: 201 일반운영비 | F44: 491,871 | G44: 513,350 | H44: △21,479
E45: 01 사무관리비 | F45: 34,924 | G45: 35,544 | H45: △620 | I45: 01 사무관리비 | K45: 34,924
I46: ○ 영수증 용지 구입 : 80,000원*6박스*2회(1박스/50롤) | J46: = | K46: 960 | L46: ○ 카드 결제에 따른 영수증 용지 구입 | N46: 80,000 | O46: 6 | P46: 2
I47: ○ 무인발매기 용지 구입 : 300,000원*2박스 | J47: = | K47: 600 | L47: ○ 1box 12롤 | N47: 300,000 | O47: 2
I48: ○ 종량제봉투(75L) 구입 : 1,800원*3개소*23일*12개월 | J48: = | K48: 1,490 | L48: ○ 쓰레기수수료종량제 시행지침에 따른 폐기물 처리 | N48: 1,800 | O48: 3 | P48: 23 | Q48: 12
I49: ○ 복사기 카트리지 구입 : 1,200,000원*3회 | J49: = | K49: 3,600 | L49: ○ 복사기 잉크, 폐토너통, 드럼 등 구입 | N49: 1,200,000 | O49: 3
I50: ○ 일·숙직 수당 : 60,000원*15회*12개월 | J50: = | K50: 10,800 | L50: ○ 기계설비 24시간 가동에 따른 주말 일·숙직근무 수당 | N50: 60,000 | O50: 15 | P50: 12
I51: ○ 리플릿 및 현수막 제작 : 66,000원*2회*12개월 | J51: = | K51: 1,584 | L51: ○ 홍보 및 안내용 제작물 제작 | N51: 66,000 | O51: 2 | P51: 12
I52: ○ 화장실 위생용품 구입 : 400,000원*12개월 | J52: = | K52: 4,800 | L52: ○ 점보롤화장지, 면봉, 세정제, 핸드타올 등 구입 | N52: 400,000 | O52: 12
I53: ○ 시설관리 청소용품 구입 : 100,000원*6개월*2회 | J53: = | K53: 1,200 | L53: ○ 청소 도구, 용품(타올, 비누 등) 구입 | N53: 100,000 | O53: 6 | P53: 2
I54: ○ 소규모 전자제품 구입 : 500,000원*4회 | J54: = | K54: 2,000 | L54: ○ 벽걸이 선풍기, 헤어 드라이기, 탈수기 구입 | N54: 500,000 | O54: 4
I55: ○ (신규)수영장 시설 용품 등 구입 : 200,000원*5회 | K55: 1,000 | L55: ○ 수영 보조 도구(킥판,구명조끼) 등 구입 | N55: 200,000 | O55: 5
I56: ○ 탈의실 내부 락커 키밴드 , 자물쇠 등 구입 : 15,000원*100개 | J56: = | K56: 1,500 | L56: ○ 탈의실 내부 락커 키 등 분실 및 노후화 교체 | N56: 15,000 | O56: 100
I57: ○ 다목적체육관 시설 용품 등 구입 : 200,000원*5회 | J57: = | K57: 1,000 | L57: ○ 배드민턴 네트, 배구 용품 등 구입 | N57: 200,000 | O57: 5
I58: ○ 전산소모품 구입 : 50,000원*13대 | J58: = | K58: 650 | L58: ○ 전산기기 등 소모품 구입 | N58: 50,000 | O58: 13
I59: ○ 공구류 구입비 : 500,000원*1회 | J59: = | K59: 500 | L59: ○ 기전설비 유지관리용 공구 구입 | N59: 500,000 | O59: 1
I60: ○ 사무용품(복사용지 등) 구입 : 270,000원*12개월 | J60: = | K60: 3,240 | L60: ○ 사무용품, 복사용지 등 구입 | N60: 270,000 | O60: 12
E61: 11 지급수수료 | F61: 62,996 | G61: 62,866 | H61: 130 | I61: 11 지급수수료 | K61: 62,996
I62: ○ (법정) 승강기 정기검사 수수료 : 130,000원*1회 | J62: = | K62: 130 | L62: ○ 연 1회 법정점검 실시 / 1대 | N62: 130,000 | O62: 1
I63: ○ (법정) 도시가스 시설 정기검사 수수료 : 210,000원*1회 | J63: = | K63: 210 | L63: ○ 연 1회 법정점검 실시 | N63: 210,000 | O63: 1
I64: ○ (법정) 수영장 수질검사 수수료 : 50,000원*4회 | J64: = | K64: 200 | L64: ○ 수영장 수질검사 수수료 (분기별 실시) | N64: 50,000 | O64: 4
I65: ○ 신용카드 결제대행수수료 : 1,700,000원*12개월 | J65: = | K65: 20,400 | L65: ○ 사용료 신용카드 결제에 따른 카드사 결제대행 수수료 | N65: 1,700,000 | O65: 12
I66: ○ 근태관리 시스템 수수료 : 33,000원*12개월 | J66: = | K66: 396 | L66: ○ 직원 근태관리 프로그램 | N66: 33,000 | O66: 12
I67: ○ (법정) 저수조 수질검사 수수료 : 60,000원*1회 | J67: = | K67: 60 | L67: ○ 연 1회 법정점검 실시 | N67: 60,000 | O67: 1
I68: ○ (법정) 기계실 저수조 청소 용역비 : 1,000,000원*2회 | J68: = | K68: 2,000 | L68: ○ 저수조 매년 2회 청소(수도법 33조) | N68: 1,000,000 | O68: 2
I69: ○ 밸런싱탱크 청소 용역비 : 500,000원*1회 | J69: = | K69: 500 | L69: ○ 대정비 기간 중 내부 오염 청소 | N69: 500,000 | O69: 1
I70: ○ (법정) 전기 연차 점검 용역비 : 1,600,000원*1회 | J70: = | K70: 1,600 | L70: ○ 연 1회 법정점검 실시 | N70: 1,600,000 | O70: 1
I71: ○ (법정) 소방시설 정기 점검 용역비 : 1,000,000원*2회 | J71: = | K71: 2,000 | L71: ○ 연 2회 법정점검 실시 | N71: 1,000,000 | O71: 2
I72: ○ 승강기 유지관리 용역비 : 150,000원*12개월 | J72: = | K72: 1,800 | L72: ○ 승강기 유지보수 관리계약 | N72: 150,000 | O72: 12
I73: ○ 보일러 세관 청소 용역비 : 6,000,000원*1회 | J73: = | K73: 6,000 | L73: ○ 보일러 배관 스케일(녹) 제거 | N73: 6,000,000 | O73: 1
I74: ○ (신규)수영장 경영풀, 유아풀, 스파 청소 용역비 : 3,000,000원*1식 | J74: = | K74: 3,000 | L74: ○ 대정비기간 수영장 내부 전체 청소 실시 | N74: 3,000,000 | O74: 1
I75: ○ 보일러 설비 유지관리 용역비 : 550,000원*4개월 | J75: = | K75: 2,200 | L75: ○ 보일러 교체 시 해당 항목 삭제 | N75: 550,000 | O75: 4
I76: ○ 통합회원관리 시스템 유지보수 용역비 : 1,000,000원*4회(분기별) | J76: = | K76: 4,000 | L76: ○ 통합 회원관리 프로그램 유지보수 계약 | N76: 1,000,000 | O76: 4
I77: ○ 수영장 바닥 청소 용역비 : 1,000,000원*14회 | J77: = | K77: 14,000 | L77: ○ 수영장 바닥 청소 월 1회(하계 월 2회) | N77: 1,000,000 | O77: 14
I78: ○ (법정) 체육센터 내·외부 방역 용역비 : 600,000원*5회 | J78: = | K78: 3,000 | L78: ○ 센터 내부 및 주차장 방역 실시 | N78: 600,000 | O78: 5
I79: ○ (법정) 대출배기시설 자가측정 용역비 : 1,500,000원*1회 | J79: = | K79: 1,500 | L79: ○ 연 1회 법정 점검 실시 (대기 환경 보존법 제39조) | N79: 1,500,000 | O79: 1
E80: 13 임차료 | F80: 5,112 | G80: 4,800 | H80: 312 | I80: 13 임차료 | K80: 5,112
I81: ○ 공기청정기 임차 : 42,000원*3대*12회 | J81: = | K81: 1,512 | L81: ○ 공기청정기 3대 임차 | N81: 42,000 | O81: 3 | P81: 12
I82: ○ 정수기 임차 : 50,000원*6대*12회 | J82: = | K82: 3,600 | L82: ○ 정수기 6대 임차 | N82: 50,000 | O82: 6 | P82: 12
E83: 15 복리후생비 | F83: 10,940 | G83: 6,540 | H83: 4,400 | I83: 15 복리후생비 | K83: 10,940
I84: ○ (신규) 자가진단키트 구입 : 5,000원*200개 | J84: = | K84: 1,000 | L84: ○ 코로나19 대비 자가진단키트 구입 | N84: 5,000 | O84: 200 | P84: 1 | Q84: 1
I85: ○ (신규) 마스크 구입 : 500원*5,000개 | J85: = | K85: 2,500 | L85: ○ 직원 방역 마스크 구입(1인당 월16개 지급) | N85: 500 | O85: 5000 | P85: 1 | Q85: 1
I86: ○ (신규) 안전용품구입 : 200,000원*3회 | J86: = | K86: 600 | L86: ○ 안전 보호구, 안전용품 등 구입 | N86: 200,000 | O86: 3 | P86: 1 | Q86: 1
I87: ○ 수영장 응급의약품 구입 : 300,000원*2회 | J87: = | K87: 600 | L87: ○ 과목변경(공공운영비 > 복리후생비) | N87: 300,000 | O87: 2 | P87: 1 | Q87: 1
I88: ○ 수영강사 간식비 : 3,000원*5일*52주*8명 | J88: = | K88: 6,240 | L88: ○ 수영강사 간식 구입 | N88: 3,000 | O88: 5 | P88: 52 | Q88: 8
E89: 21 공공요금및제세 | F89: 377,899 | G89: 403,600 | H89: △25,701 | I89: 21 공공요금및제세 | K89: 377,899
I90: ○ 도시가스 요금 : 13,000,000원*12개월 | J90: = | K90: 156,000 | N90: 13,000,000 | O90: 12
I91: ○ 상하수도 요금 : 13,000,000원*12개월 | J91: = | K91: 156,000 | N91: 13,000,000 | O91: 12
I92: ○ 전기요금 : 5,000,000원*12개월 | J92: = | K92: 60,000 | N92: 5,000,000 | O92: 12
I93: ○ 통신요금 : 260,000원*12개월 | J93: = | K93: 3,120 | N93: 260,000 | O93: 12
I94: ○ (법정) 도시가스사고배상책임보험 : 20,000원*1회 | J94: = | K94: 20 | L94: ○ 연 1회 법정 책임보험 가입대상 | N94: 20,000 | O94: 1
I95: ○ (법정) 승강기책임보험 : 35,000원*1회 | J95: = | K95: 35 | L95: ○ 연 1회 법정 책임보험 가입대상 | N95: 35,000 | O95: 1
I96: ○ 문자메세지 사용요금 : 150,000원*12개월 | J96: = | K96: 1,800 | L96: ○ 수영장 회원에게 등록 안내 및 기간만기, 휴장안내 등 문자 사용료 | N96: 150,000 | O96: 12
I97: ○ (법정) 주민세 : 280원*3,299㎡*1회 | J97: = | K97: 924 | L97: ○ 연 1회 법정 주민세(재산분) 납부 | N97: 280 | O97: 3299 | P97: 1
D98: 206 재료비 | F98: 9,278 | G98: 3,146 | H98: 6,132
E99: 01 일반재료비 | F99: 926 | G99: 500 | H99: 426 | I99: 01 일반재료비 | K99: 926
I100: ○ (신규) 비상발전기 연료 구입 : 1,800원*70L | J100: = | K100: 126 | L100: ○ 경유 구입 | N100: 1,800 | O100: 70 | P100: 1 | Q100: 1
I101: ○ 방역약품 구입 : 400,000원*2회 | J101: = | K101: 800 | L101: ○ 자체 방역 및 소독 약품, 손소독제 구입 | N101: 400,000 | O101: 2
E102: 02 약품비 | F102: 8,352 | G102: 2,646 | H102: 5,706 | I102: 02 약품비 | K102: 8,352
I103: ○ 탁도개선제 구입 : 22,000원*8통*12개월 | J103: = | K103: 2,112 | L103: ○ 매주 2통씩 탁도개선 약품 사용 | N103: 22,000 | O103: 8 | P103: 12
I104: ○ 보일러 청관제 구입 : 60,000원*5통*12개월 | J104: = | K104: 3,600 | L104: ○ 보일러 본체 내부 부식방지용 약품 구입 | N104: 60,000 | O104: 5 | P104: 12
I105: ○ 정제염 구입 : 8,800원(25kg)*10포대*12개월 | J105: = | K105: 1,056 | L105: ○ 차아염소산나트륨 생성기에 이용 | N105: 8,800 | O105: 10 | P105: 12
I106: ○ 응집제 구입 : 22,000원*6통*12개월 | J106: = | K106: 1,584 | L106: ○ 수영장 이물질을 응집시켜 여과 | N106: 22,000 | O106: 6 | P106: 12
D107: 214 수선유지교체비 | F107: 64,900 | G107: 47,926 | H107: 16,974
E108: 05 수선유지비 | F108: 64,900 | G108: 47,926 | H108: 16,974 | I108: 05 수선유지비 | K108: 64,900
I109: ○ 보일러 설비 유지보수비 : 200,000원*12개월 | J109: = | K109: 2,400 | L109: ○ 보일러 유지보수용역 서비스 외 고장 부품 수리 | N109: 200,000 | O109: 12
I110: ○ 시스템 냉난방기 유지보수비 : 200,000원*12대*1회 | J110: = | K110: 2,400 | L110: ○ 냉난방기 실내기, 실외기 고장 등 부속 교체수리 | N110: 200,000 | O110: 12 | P110: 1
I111: ○ 독립형 냉난방기 유지보수비 : 300,000원*9대*1회 | J111: = | K111: 2,700 | L111: ○ 냉난방기 실내기, 실외기 고장 등 부속 교체수리 | N111: 300,000 | O111: 9 | P111: 1
I112: ○ 수중청소기 유지비 : 1,500,000원*2회 | J112: = | K112: 3,000 | L112: ○ 수중청소기 2대 수리비 | N112: 1,500,000 | O112: 2
I113: ○ 소방시설 유지보수비 : 200,000원*12개월 | J113: = | K113: 2,400 | L113: ○ 시설 내 각종 소방설비 교체 및 수리 | N113: 200,000 | O113: 12
I114: ○ 전기설비 유지보수비 : 150,000원*12개월 | J114: = | K114: 1,800 | L114: ○ 수영장, 탈의실 등 전기 사고 예방을 위한 전기설비 보수 필요 | N114: 150,000 | O114: 12
I115: ○ 수영장 고압세척기 유지관리비 : 500,000원*2종 | J115: = | K115: 1,000 | L115: ○ 월 1회 이상 수영장 청소 등 잦은 사용으로 고장 발생 시 정비 필요 | N115: 500,000 | O115: 2
I116: ○ 저수조 밸런싱탱크 수위계 센서 정비 : 700,000원*3개소 | J116: = | K116: 2,100 | L116: ○ 물 수위 조절 센서 수리 | N116: 700,000 | O116: 3
I117: ○ 수질자동측정 센서, 배관 온도 센서 관리 : 450,000원*5종*1회 | J117: = | K117: 2,250 | L117: ○ 수질측정센서,배관온도계 노후 및 고장으로 인한 교체 | N117: 450,000 | O117: 5 | P117: 1
I118: ○ 수처리 순환펌프 유지보수 : 800,000원*5대*1회 | J118: = | K118: 4,000 | L118: ○ 24시간 연중무휴 가동으로 정기적인 보수 필요 | N118: 800,000 | O118: 5 | P118: 1
I119: ○ (신규) 샤워실, 화장실 보수 정비 : 3,700,000원*1식 | J119: = | K119: 3,700 | L119: ○ 샤워기, 타일, 수전 등 보수 | N119: 3,000,000 | O119: 1
I120: ○ 사무기기 유지관리비 : 2,000,000원*1식 | J120: = | K120: 2,000 | L120: ○ 팩스, 복사기 등 사무기기 수리 비용 | N120: 2,000,000 | O120: 1
I121: ○ 무인발매기, 감시장비 유지보수비 : 2,500,000원*1식 | J121: = | K121: 2,500 | L121: ○ 무인발매기, 감시장비 정상 운영을 위한 유지보수비 | N121: 2,500,000 | O121: 1
I122: ○ 노후 기계설비(밸브, 배관) 보수 및 보강 : 3,300,000원*3회 | J122: = | K122: 9,900 | L122: ○ 급수 및 스팀배관 등 노후로 인한 밸브류 작동 상태 불량 | N122: 3,300,000 | O122: 3
I123: ○ (신규) 수영장(경영풀, 스파풀) 줄눈 보수 : 3,000,000원*1식 | J123: = | K123: 3,000 | L123: ○ 백화현상 및 곰팡이 발생 및 사고(베임) 위험 | N123: 3,000,000 | O123: 1
I124: ○ 샤워실 및 수영장 내부 소모성 자재 구입 : 5,000,000원*1식 | J124: = | K124: 5,000 | L124: ○ 샤워기 수전 부품, 수영장 오버풀 트랜치커버 등 교체 | N124: 5,000,000 | O124: 1
I125: ○ 수영장 조명등(무전극램프) 유지보수 : 350,000원*5개소 | J125: = | K125: 1,750 | L125: ○ 수영장 실내 조명등 무전극램프 및 안정기 구입 | N125: 350,000 | O125: 5
I126: ○ 주차장 카스토퍼 교체 : 50,000원*40개 | J126: = | K126: 2,000 | L126: ○ 주차장 파손 카스토퍼 교체 | N126: 50,000 | O126: 40
I127: ○ (신규) 출입문 자동문 설치 공사(2개소) | J127: = | K127: 6,000 | L127: ○ 사업위치 : 망마국민체육센터 1층 로비 출입문 - 사 업 량 : 출입문 우측 2개소 자동문 설치 - 사 업 비 : 6,000천원 - 사업내용 : 자동문 설치로 장애인 이동 통로 개선 | N127: 3,000,000 | O127: 2
I128: ○ (신규) 저수조 탱크 내부 누수부 보수 | J128: = | K128: 3,000 | L128: ○ 사업위치 : 망마국민체육센터 지하 기계실 - 사 업 비 : 3,000천원 - 사업내용 : 저수조탱크 내부 누수 발생 보수
I129: ○ (신규) 여자샤워실 내부 채광창 보수 공사 | J129: = | K129: 2,000 | L129: ○ 사업위치 : 망마국민체육센터 1층 여자 샤워장 - 사 업 량 : 10m*1.5m 벽체 채광창 - 사 업 비 : 2,000천원 - 사업내용 : 채광창 크랙 유지 보수 | N129: 2,000,000 | O129: 1
A130: 200 자본적지출 | F130: 9,350 | G130: 13,300 | H130: △3,950
B131: 230 유형자산취득 | F131: 9,350 | G131: 13,300 | H131: △3,950
C132: 245 수탁자산 | F132: 9,350 | G132: 13,300 | H132: △3,950
D133: 405 자산취득비 | F133: 9,350 | G133: 13,300 | H133: △3,950
E134: 12 수탁자산취득비 | F134: 9,350 | G134: 13,300 | H134: △3,950 | I134: 수탁자산취득비(망마국민체육센터) | K134: 9,350
I135: ○ (신규)개인사물함 추가 설치(48개) | J135: = | K135: 4,500 | L135: ○ (주민참여예산) 이용객 편의제공 개인 사물함 설치
I136: ○ (신규)자동심장충격기 1대 구매 | J136: = | K136: 2,000 | L136: ○ 기존 AED(2011년구입) 교체(내용연수:10년)
I137: ○ (신규)CCTV 신규 설치(2개소) | J137: = | K137: 2,400 | L137: ○ 시설 사각지대 감시장비 설치
I138: ○ (신규)에어컴프레샤 1대 구매(3마력) | J138: = | K138: 450 | L138: ○ 분전반, 자동제어판넬, MCC 등 내부 먼지 청소
I141: ○ (주민참여)사물함 구입 : 87,000원*150대

Sheet (장애인-체육지원과)지출예산
A1: 다. 수익적지출(장애인국민체육센터)
A2: 관: (700)사업비용 항: (710)영업비용 세항: (722)대행사업비 | L2: (단위 : 천원)
A3: 과 목 | F3: 당년도예산액 (A) | G3: 전년도예산액 (B) | H3: 증 감 (A-B) | I3: 산 출 기 초 | L3: 설 명 내 용
A4: 관. 항. 세항 | D4: 목 | E4: 세목
A5: 합계(사업비용+자본적지출) | F5: 224,410 | G5: 161,678 | H5: 62,732
A6: 700 사업비용 | F6: 216,410 | G6: 154,078 | H6: 62,332
B7: 710 영업비용 | F7: 216,410 | G7: 154,078 | H7: 62,332
C8: 722 대행사업비 | F8: 216,410 | G8: 154,078 | H8: 62,332
D9: 201 일반운영비 | F9: 182,207 | G9: 138,378 | H9: 43,829 | I9: 201 일반운영비 | K9: 182,207
E10: 01 사무관리비 | F10: 23,876 | G10: 16,176 | H10: 7,700 | I10: 01 사무관리비 | K10: 23,876
I11: ○ 사무용품 구입비
I12: - (신규) 복사용지 구입 : 28,000원*2박스*12개월 | J12: = | K12: 672 | L12: ○ 복사용지(A4, A3) 구입
I13: - 사무용품 구입 : 150,000*12개월 | J13: = | K13: 1,800 | L13: ○ 사무용 잡품비
I14: - 복사기 카트리지 구입 : 1,000,000원*2개소*1회 | J14: = | K14: 2,000 | L14: ○ 2층 사무실, 체력측정실 복사기 카트리지 구입
I15: - 전산 소모품 구입(마우스, 키보드 등) : 50,000원*12대*1회 | J15: = | K15: 600 | L15: ○ 컴퓨터 소모품(마우스, 키보드, 메인보드 등) 구입
I16: ○ 시설 위생 및 청소 용품 구입비
I17: - 종량제 봉투 구입(20L, 50L) : 20,000원*4묶음*12회 | J17: = | K17: 960 | L17: ○ 쓰레기 종량제 봉투(20L, 50L) 구입
I18: - 목욕탕, 화장실 소모품 구입 : 430,000원*12월 | J18: = | K18: 5,160 | L18: ○ 핸드타올, 화장지, 청소용품, 비누, 로션, 발매트, 방향제 등 소모품 구입비
I19: - (신규) 청소용품(청소도구, 세제 등) 구입 : 400,000원*4회 | J19: = | K19: 1,600 | L19: ○ 청소도구(수세미, 솔 등), 세제(샤워실, 화장실 청소용) 구입
I20: ○ 팸플릿 및 각종 서식 제작 : 1,000,000원*2회 | J20: = | K20: 2,000 | L20: ○ 시설안내 팸플릿, 안전 현황판 등 제작
I21: ○ 현수막 제작 : 66,000원*2회*12월 | J21: = | K21: 1,584 | L21: ○ 휴관이나 센터 특이사항 발생 시 현수막 제작
I22: ○ 체육관 용품 구입(탁구공, 배드민턴네트 등) : 500,000원*12월 | J22: = | K22: 6,000 | L22: ○ 체육 프로그램 소모용품 구입(탁구공, 당구천, 배드민턴네트, 탁구 네트 등)
I23: ○ 공구류 구입비 : 500,000원*1회 | J23: = | K23: 500 | L23: ○ 시설 보수용 공구류 구입비
I24: ○ (신규) 안전용품(안전화, 장갑 등) 구입비 : 500,000원*1회 | J24: = | K24: 500 | L24: ○ 시설물 점검 시 필요 안전용품 구입비
I25: ○ (신규) 역도실 스쿼트 발판(우드) 구입비 : 500,000원*1대 | J25: = | K25: 500 | L25: ○ 역도 전용 발판
E26: 02 공공운영비 | F26: 150 | G26: 450 | H26: △300 | I26: 02 공공운영비 | K26: 150
I27: ○ 비상발전기 유류비 : 150,000원*1회 | J27: = | K27: 150
E28: 11 지급수수료 | F28: 35,130 | G28: 35,794 | H28: △664 | I28: 11 지급수수료 | K28: 35,130
I29: ○ (법정) 전기시설 정기 연차점검 용역비 : 3,000,000원*연1회 | J29: = | K29: 3,000 | L29: ○ 법정 전기시설 연차점검 - 관련근거 : 「전기안전관리법 시행규칙」 제30조
I30: ○ (법정) 소방시설 정기 안전점검 용역비 : 1,000,000원*2회 | J30: = | K30: 2,000 | L30: ○ 법적 소방 점검 - 관련근거 :「화재예방,소방시설 설치·유지 및 안전관리에 관한 법률」제25조
I31: ○ (법정) 방역소독비 : 400,000원*12회 | J31: = | K31: 4,800 | L31: ○ 전체소독 5회 + 목욕시설 매월 소독 - 관련근거 :공중위생관리법 제4조, 시행규칙 제7조
I32: ○ (법정) 저수조 탱크 청소 용역비 : 600,000원*2회 | J32: = | K32: 1,200 | L32: ○ 저수조 탱크 연 2회 청소 - 관련근거 :「수도법」제44조, 시행규칙 제22조 3
I33: ○ (법정) 승강기유지관리용역비 : 200,000원*12회 | J33: = | K33: 2,400 | L33: ○ 승강기(장애인용) 1대 유지관리용역
I34: ○ (법정) 승강기 정기검사 수수료 : 130,000원*1회 | J34: = | K34: 130 | L34: ○ 승강기시설안전관리법에 의한 안전관리 대행 - 관련근거 : 「승강기 안전관리법」 제31조
I35: ○ (법정) 가스 정기검사 수수료 : 130,000원*1회 | J35: = | K35: 130 | L35: ○ 법적 정기검사 실시 - 관련근거 : 「도시가스사업법」제17조제1항, 동법시행규칙 제25조제7항
I36: ○ (법정) 수질검사용역비 : 200,000원*1회 | J36: = | K36: 200 | L36: ○ 법적 검사 실시(목욕수, 레지오넬라균 각 1회 실시) - 관련근거 : 「수도법」제33조 및 동법시행령 제50조
I37: ○ 보일러 유지관리 용역비 : 750,000원*2회 | J37: = | K37: 1,500 | L37: ○ 보일러 2대 유지관리용역
I38: ○ 신용카드 전자결제대행수수료 : 10,000원*12월 | J38: = | K38: 120 | L38: ○ 신용카드 결제 수수료
I39: ○ 무인경비용역 : 150,000원*12월 | J39: = | K39: 1,800 | L39: ○ 무인시설관리 경비 용역비
I40: ○ 개인정보 프로그램 서버 임대 및 운영 : 700,000원*12월 | J40: = | K40: 8,400 | L40: ○ 개인정보 프로그램 서버 관리비
I41: ○ 회원관리프로그램 유지관리 용역 : 600,000원*12월 | J41: = | K41: 7,200 | L41: ○ 기존 회원관리프로그램 유지관리 용역비 ○ 개인정보 보호 암호화 모듈 관리 용역비
I42: ○ (신규) 녹색건축물인증 유효기간 연장 수수료 : 1,450,000원*1회 | J42: = | K42: 1,450 | L42: ○ 녹색건축물인증 유효기간 연장 수수료
I43: ○ (신규) 센터 주변 제초 및 가지치기 용역 : 800,000원*1회 | J43: = | K43: 800 | L43: ○ 장애인국민체육센터 주변 제초 및 가지치기작업 용역
E44: 13 임차료 | F44: 4,008 | G44: 1,800 | H44: 2,208 | I44: 13 임차료 | K44: 4,008
I45: ○ 정수기 임차료 : 50,000원*5대*12월 | J45: = | K45: 3,000 | L45: ○ 정수기 5대 임차료
I46: ○ (신규) 공기청정기 임차료 : 42,000원*2대*12월 | J46: = | K46: 1,008 | L46: ○ 공기청정기 2대 임차료
E47: 15 복리후생비 | F47: 600 | G47: 0 | H47: 600 | I47: 15 복리후생비 | K47: 600
I48: ○ (신규) 의약품 구입비 : 300,000원*2회 | J48: = | K48: 600
E49: 21 공공요금 및 제세 | F49: 118,443 | G49: 84,158 | H49: 34,285 | I49: 21 공공요금 및 제세 | K49: 118,443
I50: ○ 주민세(재산분) : 250원*4,249㎡ | J50: = | K50: 1,063 | L50: ○ 장애인국민체육센터 주민세(재산분)
I51: ○ 통신요금 : 200,000원*12월 | J51: = | K51: 2,400 | L51: ○ 장애인국민체육센터 통신요금
I52: ○ 전기요금 : 2,500,000원*12월 | J52: = | K52: 30,000 | L52: ○ 장애인국민체육센터 전기요금
I53: ○ 상하수도요금 : 2,500,000원*12월 | J53: = | K53: 30,000 | L53: ○ 장애인국민체육센터 상하수도요금
I54: ○ 도시가스요금 : 4,500,000원*12월 | J54: = | K54: 54,000 | L54: ○ 장애인국민체육센터 도시가스 요금
I55: ○ 주최자배상책임보험 : 200,000원*2식 | J55: = | K55: 400 | L55: ○ 겨울방학프로그램 주최자 배상책임공제 - 관련근거 : 생활체육진흥법 제 12조 및 체육시설의 설치·이용에 관한 법률 제 26조
I56: ○ 문자 메시지 사용요금 : 480,000원*1식 | J56: = | K56: 480 | L56: ○ 문자메시지 사용요금
I57: ○ 승강기책임보험 : 50,000원*1식 | J57: = | K57: 50 | L57: ○ 승강기 사고 배상 책임보험
I58: ○ 가스사고배상책임보험 : 50,000원*1식 | J58: = | K58: 50 | L58: ○ 특정가스사용시설 가스사고 배상책임보험료
D59: 206 재료비 | F59: 1,604 | G59: 400 | H59: 1,204 | I59: 206 재료비 | K59: 1,604
E60: 01 일반재료비 | F60: 1,604 | G60: 400 | H60: 1,204 | I60: 01 일반재료비 | K60: 1,604
I61: ○ (신규) 염소농도측정기 시약 구입비 : 60,000*2개소 | J61: = | K61: 120 | L61: ○ 공중위생관리법에 의한 목욕수 관리
I62: ○ (신규) 자동염소투입기 약품 구입비 : 20,000원*2회*12월 | J62: = | K62: 480 | L62: ○ 순환여과식 욕수 소독약품
I63: ○ (신규) 보일러 청관제 구입비 : 60,000원*1회*6월 | J63: = | K63: 360 | L63: ○ 보일러 관리용 약제
I64: ○ 소독방역용품 구입비 : 100,000원*6회 | J64: = | K64: 600 | L64: ○ 손세정제 및 에탄올 등 소독,방역 관련 용품 구입비
I65: ○ (신규)정제염 소금 구입비 : 8,800원*1포*5월 | J65: = | K65: 44 | L65: ○ 연수기용 정제염 소금 구입
D66: 214 수선유지교체비 | F66: 32,599 | G66: 15,300 | H66: 17,299 | I66: 214 수선유지교체비 | K66: 32,599
E67: 05 수선유지비 | F67: 32,599 | G67: 15,300 | H67: 17,299 | I67: 05 수선유지비 | K67: 32,599
I68: ○ 기계실 설비 수리 및 교체비
I69: - 소방설비 수리 및 교체비 : 200,000원*12월 | J69: = | K69: 2,400 | L69: ○ 소방설비(화재감지기, 소화기 등) 수리 및 교체비
I70: - 전기설비 수리 및 교체비 : 200,000원*12월 | J70: = | K70: 2,400 | L70: ○ 전기설비(전등, ELB, 퓨즈 등) 수리 및 교체비
I71: - (신규) 기계설비 수리 및 교체비 : 200,000원*12월 | J71: = | K71: 2,400 | L71: ○ 기계설비(펌프, 밸브 등) 수리 및 교체비
I72: - (신규) 연수기 배관라인 변경 공사 : 2,000,000원*1개소 | J72: = | K72: 2,000 | L72: ○ 보일러 온수라인 변경 필요(온수 역류로 연수기 파손)
I73: - (신규) 기계실 지하 PIT실 방수작업 : 6,000,000원*1개소 | J73: = | K73: 6,000 | L73: ○ PIT실 누수로 인한 방수작업
I74: ○ 시설 전반 수리 및 교체비
I75: - 건물 유지관리비 : 1,000원*4,249㎡ | J75: = | K75: 4,249 | L75: ○ 5년 이하 체육시설물 시설 유지관리비
I76: - 냉난방기 부품 교체비 : 500,000원*7대 | J76: = | K76: 3,500 | L76: ○ 엔진오일, 타임밸트, 점화플러그 등 부품 교체
I77: - 사무기기(사무실, 안내데스크 등) 수리 및 교체비 : 200,000원*12월 | J77: = | K77: 2,400 | L77: ○ 컴퓨터, 복합기 등 수리 및 소모성 부품 교체비
I78: - 무인발권 시스템 프로그램 유지비 : 1,000,000원*1대 | J78: = | K78: 1,000 | L78: ○ 무인발권기 프로그램 유지관리비
I79: ○ 시설전반 대정비
I80: - (신규) 에어컨 오버홀 세척 작업 : 150,000원*35대 | J80: = | K80: 5,250 | L80: ○ 에어컨 실내기 오버홀 및 세척작업
I81: - (신규) (주민참여) 대중탕 수조 내부 타일 교체 : 500,000원*2개소 | J81: = | K81: 1,000 | L81: ○ 남녀대중탕 수조 안 사람이 앉는 부분 타일 교체
A82: 200 자본지출 | F82: 8,000 | G82: 7,600 | H82: 400 | K82: 8,000
B83: 230 유형자산취득 | F83: 8,000 | G83: 7,600 | H83: 400 | K83: 8,000
C84: 245 수탁자산 | F84: 8,000 | G84: 7,600 | H84: 400 | K84: 8,000
D85: 12 수탁자산취득비 | F85: 8,000 | G85: 7,600 | H85: 400 | I85: 12 수탁자산취득비(장애인국민체육센터) | K85: 8,000
I86: ○ (신규) 재활운동용 평행봉 구입 : 1,000,000원*1대 | J86: = | K86: 1,000 | L86: ○ 장애인 재활 운동용 평행봉(P-Bar) 구입
I87: ○ (신규) 가족탕 내 에어컨 설치 : 3,500,000원*2대 | J87: = | K87: 7,000 | L87: ○ (주민참여예산) 여름철 목욕 후 덥고 습한 공기로 이용 불편
I152: ○ (주민참여)사물함 구입 : 87,000원*150대

Sheet (도시형폐기물종합처리-도시미화과)지출예산
A1: 나. 지출예산-여수시도시형폐기물 종합처리시설 대행사업
A2: 관: (700)사업비용 항: (710)영업비용 세항: (722)대행사업비 | J2: (단위 : 천원)
A3: 과 목 | F3: 당년도예산액 (A) | G3: 전년도예산액 (B) | H3: 증 감 (A-B) | I3: 산 출 기 초 | L3: 예 산 설 명
A4: 관. 항. 세항 | D4: 목 | E4: 세목
A5: 합계(사업비용+자본적지출) | F5: =F6+F207 -> 5,770,937 | G5: =G6+G207 -> 4,476,345 | H5: =H6+H207 -> 1,294,592
A6: 700 사업비용 | F6: =F7 -> 4,467,457 | G6: =G7 -> 2,841,245 | H6: =F6-G6 -> 1,626,212 | N6: =SUM(N10:N206) -> 4,458,514
B7: 710 영업비용 | F7: =F8 -> 4,467,457 | G7: =G8 -> 2,841,245 | H7: =H8 -> 1,626,212
C8: 722 대행사업비 | F8: =F9+F26 -> 4,467,457 | G8: =G9+G26 -> 2,841,245 | H8: =F8-G8 -> 1,626,212
C9: 100 인건비 | F9: =F10 -> 34,656 | G9: =G10 -> 42,040 | H9: △7,384
D10: 101 인건비 | F10: =F11+F14+F16 -> 34,656 | G10: =G11+G14+G16 -> 42,040 | H10: =F10-G10 -> △7,384 | M10: =M11+M14+M16 -> 34,656
E11: 01 보수 | F11: 0 | G11: 0 | H11: =F11-G11 -> 0 | I11: ※보수 : 공단 일괄 처리
I12: [일반직] | K12: 0
I13: [기능직] | K13: 0
E14: 03 무기계약직 보수 | F14: 0 | G14: 0 | H14: =F14-G14 -> 0 | I14: ※무기계약직 보수 : 공단 일괄 처리
I15: [무기계약직] | K15: 0
E16: 04 기간제근로자 보수 | F16: =M16 -> 34,656 | G16: 42,040 | H16: =F16-G16 -> △7,384 | K16: =SUM(K17,K24) -> 34,656 | M16: =ROUND(SUM(M18:M25),-0.1) -> 34,656
I17: [기간제 근로자] (고형화설비 및 암롤차 운전) | K17: =SUM(K19:K23) -> 33,384
I18: ○ 기간제 근로자 급여(운전원) | L18: ○ 사규(무기계약 근로자 관리규정 제28조) 별표1 관련 | M18: =SUM(N19:N23) -> 33,384 | O18: 22년 최저시급 | P18: 인원수 | Q18: 시간(식) | R18: 근무일수 | S18: 주/년
I19: - 인부임 : 76,960원/일 * 52주 * 1명 | J19: = | K19: =N19 -> 20,010 | L19: 청소원 : 연 16,227,000원 | N19: =O19*P19*Q19*R19*S19 -> 20,010 | O19: 9.62 | P19: 1 | Q19: 8 | R19: 5 | S19: 52
I20: - 연차휴가수당 : 76,960원/일*10일*1명 | J20: = | K20: =N20 -> 770 | L20: ○ 사규(무기계약 근로자 관리규정 제28조) 별표1 관련 | N20: =O20*P20*Q20*R20 -> 770 | O20: 9.62 | P20: 1 | Q20: 8 | R20: 10
I21: - 주휴수당 : 76,960원/일*52주*1명 | J21: = | K21: =N21 -> 4,002 | L21: ○ 사규(무기계약 근로자 관리규정 제28조) 별표1 관련 | N21: =O21*P21*Q21*R21*S21 -> 4,002 | O21: 9.62 | P21: 1 | Q21: 8 | R21: 1 | S21: 52
I22: - 시간외수당 : 76,960원/일*80일(주말.휴일+비상근무)*150% | J22: = | K22: =N22 -> 6,157 | L22: ○ 사규(무기계약 근로자 관리규정 제28조) 별표1 관련 | N22: =O22*P22*Q22*R22 -> 6,157 | O22: 9.62 | P22: 1 | Q22: 8 | R22: 80
I23: - 생활임금보전수당 : 980원/일*6일(주휴포함)/주*52주/년 | J23: = | K23: =N23 -> 2,446 | L23: ○ 사규(무기계약 근로자 관리규정 제28조) 별표1 관련 | N23: =O23*P23*Q23*R23*S23 -> 2,446 | O23: =10.6-9.62 -> 0.98 | P23: 1 | Q23: 8 | R23: 6 | S23: 52
I24: [일시 사역 근로자 -설비 운전자 부재시 등] | K24: =SUM(K25) -> 1,272
I25: - 인부임 : 10,600원/시간 * 8시간 * 15일/년 | J25: = | K25: =N25 -> 1,272 | L25: 청소원 : 연 16,227,000원 | M25: =N25 -> 1,272 | N25: =O25*P25*Q25*R25 -> 1,272 | O25: 10.6 | P25: 1 | Q25: 8 | R25: 15
C26: 200 물건비 | F26: =F27+F131+F135+F156+F194+F204 -> 4,432,801 | G26: =G27+G131+G135+G156+G194+G204 -> 2,799,205 | H26: =F26-G26 -> 1,633,596
D27: 201 일반운영비 | F27: =SUM(F28,F58,F59,F83,F92,F93,F104,F126) -> 857,865 | G27: =SUM(G28,G58,G59,G83,G92,G93,G104,G126) -> 646,781 | H27: =SUM(H28,H58,H59,H83,H92,H93,H104,H126) -> 211,084
E28: 01 사무관리비 | F28: =M28 -> 86,295 | G28: 103,315 | H28: =F28-G28 -> △17,020 | K28: =SUM(K29,K32,K33,K34,K35,K37,K38,K41,K42,K46,K48,K50,K52,K54,K57) -> 86,295 | M28: =SUM(M29:M57) -> 86,295
I29: ○ 사무용품구입 | K29: =SUM(K30:K31) -> 3,900 | L29: ○ 사무용품구입 | M29: =SUM(N30:N31) -> 3,900
I30: - 복사용지구입 : 30,000원*50박스 | J30: = | K30: =N30 -> 1,500 | L30: 복사용지(A4) 사용량 : 30박스 × 2회(상,하반기) | N30: =O30*P30*Q30 -> 1,500 | O30: 30.0 | P30: 50 | Q30: 1
I31: - 표준사무용품 : 60,000원*10명*4회 | J31: = | K31: =N31 -> 2,400 | L31: 표준사무용품(일근자 : 10명) × 4회(분기) | N31: =O31*P31*Q31 -> 2,400 | O31: 60.0 | P31: 10 | Q31: 4
I32: ○ 범용 S/W 구입(캐드,엑셀, 한글 등) : 6,000,000원*1회 | J32: = | K32: =N32 -> 6,000 | L32: ○ 범용 S/W 구입(캐드5, 한글10,엑셀15, 알약10) -1년갱신형 | M32: =N32 -> 6,000 | N32: =O32*P32 -> 6,000 | O32: 6,000.0 | P32: 1
I33: ○ 인사급여시스템 유지 관리 [공단 일괄 처리] | K33: 0 | L33: ○ 인사급여시스템(40명, 본부운영)
I34: ○ 복합기 인쇄비(월 사용) : 70,000원*2식*12월 | J34: = | K34: =M34 -> 1,680 | L34: 복합기 월사용료 외 추가분 | M34: =N34*O34*P34 -> 1,680 | N34: 70.0 | O34: 2 | P34: 12
I35: ○ 전산소모비품비(토너, 드럼, 잉크 등) | K35: =SUM(K36) -> 2,415 | L35: ○ 전산 소모품 | M35: =SUM(N36) -> 2,415
I36: - 토너,드럼,잉크 등 : 115,000원*7대*3회 | J36: = | K36: =N36 -> 2,415 | L36: 칼라 프린트 잉크 및 토너(사무실2, 실험실1, 제어실3, 소장실1) | N36: =O36*P36*Q36 -> 2,415 | O36: 115.0 | P36: 7 | Q36: 3
I37: ○ 컴퓨터수리비 : 100,000원*16대*1회 | J37: = | K37: 1,600 | L37: ○ 컴퓨터 수리비 (사무실11, 실험실1, 소장실1, 제어실10,계근대2) | M37: =SUM(N37) -> 1,600 | N37: =O37*P37*Q37 -> 1,600 | O37: 100.0 | P37: 16 | Q37: 1
I38: ○ 청소용품 구입비 | J38: = | K38: =SUM(K39:K40) -> 23,400 | L38: ○ 청소용품 | M38: =SUM(N39:N40) -> 23,400
I39: - 청소용품 (세탁세제, 유연제, 화장지 등) : 600,000원*12월 | J39: = | K39: =N39 -> 9,000 | L39: 작업복 세탁관련(교대근무자 및 현장 근무자 : 13명) | N39: =O39*Q39 -> 9,000 | O39: 750.0 | Q39: 12
I40: - 작업용 (면, 반코팅, 완코팅 등)장갑 구입 : 1,200,000원*12월 | J40: = | K40: =N40 -> 14,400 | L40: 면 : 200×40×30 = 240천원, 반코팅 : 250×40×30 = 300천원, 완코팅 : 750×40×30 = 900천원 | N40: =O40*Q40 -> 14,400 | O40: 1,200.0 | Q40: 12
I41: ○ 무전기 구입(소각,바이오,기술,관리) : 500,000원 * 3대 | J41: = | K41: =M41 -> 1,500 | L41: ○ 무전기 구매 : '16년도 무전기 소손(5대), '17년도(4대), '18년도(2대) | M41: =SUM(N41) -> 1,500 | N41: =O41*P41 -> 1,500 | O41: 500.0 | P41: 3
I42: ○ 기타 운영비품 구입 | J42: = | K42: =SUM(K43:K45) -> 10,500 | L42: ○ 기타 운영비품 | M42: =SUM(N43:N45) -> 10,500
I43: - 생수 등 구입 : 375,000원*12개월 | J43: = | K43: =N43 -> 4,500 | L43: 상수도 없음, 식수구매(사무실, 탕비실, 제어실, 휴게실, 현장2곳, 바이오, 계근대) | N43: =O43*Q43 -> 4,500 | O43: 375.0 | Q43: 12
I44: - 소규모 사무실 비품 구입 등 : 4,000,000원*1식 | J44: = | K44: =N44 -> 4,000 | L44: 계근대 청소기, 현장 디지털 카메라, 사무실의자, 파티션 구매 등 | N44: =O44*Q44 -> 4,000 | O44: 4,000.0 | Q44: 1
I45: - 중앙제어실 사무가구 등 구입 : 2,000,000원*1식 | J45: = | K45: =N45 -> 2,000 | L45: 제어실 근무의자, 회의용 탁자 구매 등 | N45: =O45*Q45 -> 2,000 | O45: 2,000.0 | Q45: 1
I46: ○ 소각시설 운영비품 구입 | J46: = | K46: =SUM(K47:K47) -> 2,000 | L46: ○ 소각시설 운영비품 | M46: =SUM(N47:N47) -> 2,000
I47: - 소규모 비품(회전기기류 등) 구입 : 500,000원* 4개월 | J47: = | K47: =N47 -> 2,000 | L47: 100만원 이하(수중펌프, 정량펌프, 모터 등) 기타 소모품 구매 | N47: =O47*P47*Q47 -> 2,000 | O47: 500.0 | P47: 1 | Q47: 4
I48: ○ 바이오및 폐수 운영비품 구입 | J48: = | K48: =SUM(K49:K49) -> 2,000 | L48: ○ 바이오 및 폐수시설 운영비품 | M48: =SUM(N49:N49) -> 2,000
I49: - 소규모 비품(회전기기류 등) 구입 : 500,000원* 4개월 | J49: = | K49: =N49 -> 2,000 | L49: 100만원 이하(수중펌프, 정량펌프, 모터 등) 기타 소모품 구매 | N49: =O49*P49*Q49 -> 2,000 | O49: 500.0 | P49: 1 | Q49: 4
I50: ○ 정기간행물 등 구독 | K50: =SUM(K51:K51) -> 800 | L50: ○ 정기 간행물 | M50: =SUM(N51:N51) -> 800
I51: - 기술서적 및 업무용자료 구입 등 : 100,000원*2권*4회 | J51: = | K51: 800 | L51: 물가자료 등 구매 | N51: =O51*P51*Q51 -> 800 | O51: 100.0 | P51: 2 | Q51: 4
I52: ○ 유인물인쇄 | K52: =SUM(K53:K53) -> 1,500 | L52: ○ 유인물 인쇄 | M52: =SUM(N53:N53) -> 1,500
I53: - 도면복사 / 제본,사진인화 등 : 30,000원*5종*10회 | J53: = | K53: =N53 -> 1,500 | L53: 제본, 사진인화 관련 | N53: =O53*P53*Q53 -> 1,500 | O53: 30.0 | P53: 5 | Q53: 10
I54: ○ 시설관련 | K54: =SUM(K55:K56) -> 8,000 | L54: ○ 시설관련 | M54: =SUM(N55:N56) -> 8,000
I55: - 견학 기념품 제작 : 10,000원*600개 | J55: = | K55: =N55 -> 6,000 | L55: 도시형폐기물 견학자 기념품 제작 | N55: 6,000 | O55: 10.0 | P55: 600 | Q55: 1
I56: - 현수막,간판 등의 제작비 : 2,000,000원*1식 | J56: = | K56: =N56 -> 2,000 | L56: 안전, 화재 등 현수막 제작 | N56: =O56*R56 -> 2,000 | O56: 2,000.0 | R56: 1
I57: ○ 실험실 실험용품(분석키트 및 기자재) 구입 : 250,000원*7종*12월 | J57: = | K57: =M57 -> 21,000 | L57: ○ 실험실 실험용품 구입 : 분석키트구매(COD, BOD, T-P, SS, T-N, 알칼리도, n-H) | M57: =N57 -> 21,000 | N57: =O57*P57*Q57 -> 21,000 | O57: 250.0 | P57: 7 | Q57: 12
E58: 03 행사운영비 | F58: 0 | G58: 0 | H58: =F58-G58 -> 0 | I58: ※ 공단 일괄 처리 | K58: 0
E59: 11 지급수수료 | F59: =K59 -> 533,432 | G59: 271,680 | H59: =F59-G59 -> 261,752 | K59: =SUM(K60,K70,K75,K82) -> 533,432 | M59: =SUM(M60:M82) -> 533,432
I60: ○ 전문기관 용역비 | J60: = | K60: =M60 -> 424,232 | L60: ○ 전문기관 용역 | M60: =SUM(N61:N69) -> 424,232
I61: - 작업환경 측정(특수건강검진 관련) : 3,600,000원*2회(상,하반기) | J61: = | K61: =N61 -> 7,200 | L61: 산업안전보건법 제42조(작업환경측정등)제4항 관련, 2회/년 | N61: =O61*Q61 -> 7,200 | O61: 3,600.0 | Q61: 2
I62: - 소방시설 검사(작동기능, 종합점검) : 1,500,000원*2회 | J62: = | K62: 3,000 | L62: 『소방시설설치유지 및 안전관리에 관한 법률』제25조 관련(작동기능점검, 종합정밀점검) | N62: =O62*Q62 -> 3,000 | O62: 1,500.0 | Q62: 2
I63: - 대기 자가측정 : 5,000천원*22회(27항목)+570천원*4회(TMS항목) | J63: = | K63: 112,280 | L63: 대기환경보전법 제39조(자가측정) 관련, 1회/2주 | N63: =O63*Q63+S63*T63 -> 112,280 | O63: 5,000.0 | Q63: 22 | S63: 570 | T63: 4
I64: - 대기(특정물질)측정 : 3,000,000원*1회(벤조a피렌) | J64: = | K64: 3,000 | L64: 대기환경보전법 제39조(자가측정) 관련, 1회/2주 | N64: =O64*Q64 -> 3,000 | O64: 3,000.0 | Q64: 1
I65: - 폐수처리분담금 : 20,000,000원/월 * 12개월 [신규] | J65: = | K65: =N65 -> 240,000 | L65: 「자원순환기본법」제21조 의거 | N65: =O65*P65 -> 240,000 | O65: 20,000.0 | P65: 12
I66: - CleanSYS(TMS) 정기점검 : 3,656,000원*12월 | J66: = | K66: 43,872 | L66: 대기환경보전법 제32조(측정기기의 부착 등) 4항 관련, 1회/월 | N66: =O66*Q66 -> 43,872 | O66: 3,656.0 | Q66: 12
I67: - 승강기 정기정검 : 240,000원*12월 | J67: = | K67: 2,880 | L67: 승강기시설 안전관리법 제17조(승강기의 자체점검) 1함 및 4항 관련, 1회/월 | N67: =O67*Q67 -> 2,880 | O67: 240.0 | Q67: 12
I68: - 병해충 방역 : 500,000원*12월 | J68: = | K68: 6,000 | L68: 도시형폐기물 내 예초작업(3회) | N68: =O68*Q68 -> 6,000 | O68: 500.0 | Q68: 12
I69: - 환경정비(예초 등) : 2,000,000원*3회 | J69: = | K69: 6,000 | L69: 도시형폐기물 내 예초작업(3회) | N69: =O69*R69 -> 6,000 | O69: 2,000.0 | R69: 3
I70: ○ 법정정기검사수수료 | K70: =SUM(K71:K74) -> 23,500 | L70: ○ 법정검사 수수료 | M70: =SUM(N71:N74) -> 23,500
I71: - CleanSYS(TMS) 정도검사 : 4,500,000원*1회 | J71: = | K71: =N71 -> 4,500 | L71: 환경분야 시험ㆍ검사 등에 관한 법률 제11조(측정기기의 정도검사) 제 1항 및 4항 관련, 1회/년 | N71: =O71*P71 -> 4,500 | O71: 4,500.0 | P71: 1
I72: - 다이옥신(대기, 수질) 검사 : 6,000,000원*2회 | J72: = | K72: =N72 -> 12,000 | L72: 잔류성유기오염물질관리법 제19조(잔류성유기오염물질의 측정) 및 동법 시행규칙 제14조 관련 | N72: =O72*P72 -> 12,000 | O72: 6,000.0 | P72: 2
I73: - 음식물폐기물처리시설(혐기성분해) 정기검사 : 2,000,000원*1회 | J73: = | K73: =N73 -> 2,000 | L73: 잔류성유기오염물질관리법 제19조(잔류성유기오염물질의 측정) 및 동법 시행규칙 제14조 관련 | N73: =O73*P73 -> 2,000 | O73: 2,000.0 | P73: 1
I74: - 기타(보일러,압력용기,호이스트 등) : 5,000,000원*1회 | J74: = | K74: =N74 -> 5,000 | L74: 산업안전보건법 제36조(안전검사) 1항 관련 | N74: =O74*P74 -> 5,000 | O74: 5,000.0 | P74: 1
I75: ○ 에너지 회수 및 온실가스 관련 분석(소각시설 / 바이오 / 폐수 등) | K75: =SUM(K76:K81) -> 85,100 | L75: ○ 에너지 회수 및 온실가스 관련 분석 | M75: =SUM(N76:N81) -> 85,100
I76: - 쓰레기(바닥재 포함) 성상분석 : 3,300,000원*12회(월) | J76: = | K76: =N76 -> 39,600 | L76: 반입폐기물 성상분석, 1회/월 | N76: =O76*P76 -> 39,600 | O76: 3,300.0 | P76: 12
I77: - 비점오염원 분석 : 500,000원 * 2개소 * 4지점 | J77: = | K77: 4,000 | L77: (우수)비점오염원 관리규정 | N77: =O77*P77*Q77 -> 4,000 | O77: 500.0 | P77: 2 | Q77: 4
I78: - 유입 / 방류수 : 550,000원* 2지점 * 12월 | J78: = | K78: 13,200 | L78: 바이오 및 폐수 운영관련 | N78: =O78*P78*Q78 -> 13,200 | O78: 550.0 | P78: 2 | Q78: 12
I79: - 기타 공정(소화조, 폭기조 등) : 550,000원* 2지점 * 12월 | J79: = | K79: 13,200 | L79: 바이오시설 운영관련 | N79: =O79*P79*Q79 -> 13,200 | O79: 550.0 | P79: 2 | Q79: 12
I80: - 각 계측기 검교정(에너지 회수관련) : 1,000,000원 *1회*15지점 | J80: = | K80: 15,000 | L80: 자원순환법 에너지 회수 부분관련 자료(측정기기는 1년 1회이상 검교정을 실시) | N80: =O80*P80*Q80 -> 15,000 | O80: 1,000.0 | P80: 1 | Q80: 15
I81: - 차량(지계차 등) 정기검사 : 50,000원 *2대 | J81: = | K81: 100 | L81: 자원순환법 에너지 회수 부분관련 자료(측정기기는 1년 1회이상 검교정을 실시) | N81: =O81*P81 -> 100 | O81: 50.0 | P81: 2
I82: ○ 공개입찰(나라장터) 수수료 등 : 100,000원*6월 | J82: = | K82: =M82 -> 600 | L82: 나라장터 물품구매 수수료 | M82: =N82*P82 -> 600 | N82: 100.0 | P82: 6
E83: 13 임차료 | F83: =M83 -> 27,984 | G83: 23,530 | H83: =F83-G83 -> 4,454 | K83: =SUM(K84,K87,K90) -> 27,984 | M83: =SUM(M84:M91) -> 27,984
I84: ○ 렌트비용 | K84: =SUM(K85:K86) -> 4,784 | L84: ○ 렌트비용 | M84: =SUM(N85:N86) -> 4,784
I85: - 비데 렌트비용 : 22,000원*6대*12월 | J85: = | K85: =N85 -> 1,584 | L85: 비데(화장실3곳) | N85: =O85*P85*Q85 -> 1,584 | O85: 22.0 | P85: 6 | Q85: 12
I86: - 복합기 렌트비용 : 400,000원*2대*4회(분기납) | J86: = | K86: 3,200 | L86: 복합기(사무실, 계근대) | N86: =O86*P86*Q86 -> 3,200 | O86: 400.0 | P86: 2 | Q86: 4
I87: ○ 장비임대료 | J87: = | K87: =SUM(K88:K89) -> 10,000 | L87: ○ 장비임대료 | M87: =SUM(N88:N89) -> 10,000
I88: - 준설(정화조 및 비점오염원 등) : 1,800,000원* 5회 | J88: = | K88: =N88 -> 9,000 | L88: 슬러지 준설(비점오염원 퇴적물 등) | N88: =O88*Q88 -> 9,000 | O88: 1,800.0 | Q88: 5
I89: - 중장비(지게차, 카고크레인 등) 임대료 : 500,000원*2회 | J89: = | K89: =N89 -> 1,000 | L89: 지게차 ,포크레인 등 시설운영관련 임대 | N89: =O89*Q89 -> 1,000 | O89: 500.0 | Q89: 2
I90: ○ 업무용 차량임차료(렌터카) | K90: =M90 -> 13,200 | L90: ○ 차량유지비 | M90: =SUM(N91:N91) -> 13,200
I91: - 차량임대비 : 1,100,000원*1대*12월 | J91: = | K91: =N91 -> 13,200 | L91: 환경사업소 공영차량 운영(카니발 9인승) | N91: =O91*P91*Q91 -> 13,200 | O91: 1,100.0 | P91: 1 | Q91: 12
E92: 14 회의비 | F92: 0 | G92: 3,600 | H92: =F92-G92 -> △3,600 | I92: [삭제] | K92: 0 | M92: 0
E93: 15 기타복리후생비 | F93: =M93 -> 64,140 | G93: 70,860 | H93: =F93-G93 -> △6,720 | K93: =SUM(K94,K98,K101,K102) -> 64,140 | M93: =SUM(M94:M103) -> 64,140
I94: ○ 피복구입비 | K94: =SUM(K95:K97) -> 25,800 | L94: ○ 피복구입 | M94: =SUM(N95:N97) -> 25,800
I95: - 동복(방한복) : 140,000원*43명*2벌*1회 | J95: = | K95: =N95 -> 12,040 | L95: 동복 지급(2벌) | N95: =O95*P95*Q95*R95 -> 12,040 | O95: 140.0 | P95: 43 | Q95: 2 | R95: 1
I96: - 하복(작업조끼) 등 : 80,000원*43명*2벌*1회 | J96: = | K96: =N96 -> 6,880 | L96: 하복 지급(3벌 : 하절기 고온에 의한 수시 환복) | N96: =O96*P96*Q96*R96 -> 6,880 | O96: 80.0 | P96: 43 | Q96: 2 | R96: 1
I97: - 춘,추복 등 : 80,000원*43명*2벌*1회 | J97: = | K97: =N97 -> 6,880 | L97: 춘추복 지급(2벌) | N97: =O97*P97*Q97*R97 -> 6,880 | O97: 80.0 | P97: 43 | Q97: 2 | R97: 1
I98: ○ 개인 안전장구 구입비 | K98: =SUM(K99:K100) -> 33,540 | L98: ○ 개인안전 장구 구입 | M98: =SUM(N99:N100) -> 33,540
I99: - 안전모, 안전화, 작업화 등 : 100,000원*43명*3회 | J99: = | K99: =N99 -> 12,900 | L99: 안전화, 안전모 지급(2회/년) | N99: =O99*P99*Q99 -> 12,900 | O99: 100.0 | P99: 43 | Q99: 3
I100: - 안전용품(마스크, 필터, 방진복) 등 : 40,000원*43명*12회 | J100: = | K100: =N100 -> 20,640 | L100: 유해가스(바이오, 폐수) 및 비산먼지 제거용 마스크, 방진복 지급(매월) | N100: =O100*P100*Q100 -> 20,640 | O100: 40.0 | P100: 43 | Q100: 12
I101: ○ 특수건강검진비(2차대상 포함) [공단일괄 편성] | K101: 0 | L101: ○ 특수건강검진비 | M101: 0
I102: ○ 야간근무자 급량비 | K102: =SUM(K103:K103) -> 4,800 | L102: ○ 급량비 | M102: =N103 -> 4,800
I103: - 8,000원*5명*10일*12개월 | J103: = | K103: =N103 -> 4,800 | L103: 시간외근무자 급식비 지급 | N103: =O103*P103*Q103*R103 -> 4,800 | O103: 8.0 | P103: 5 | Q103: 10 | R103: 12
E104: 21 공공요금 및 제세 | F104: =M104 -> 136,614 | G104: 162,564 | H104: =F104-G104 -> △25,950 | K104: =M104 -> 136,614 | M104: =SUM(M105:M125) -> 136,614
I105: ○ 우편요금 : 2,000원*10건*12월 | J105: = | K105: =M105 -> 240 | L105: 전화(0915,0916,0917) fax(0919) | M105: =N105*O105*P105 -> 240 | N105: 2.0 | O105: 10 | P105: 12
I106: ○ 일반전화 및 인터넷 요금 : 70,000원*6회선*12월 | J106: = | K106: 5,040 | L106: 인터넷 3회선(TMS실, 사무실, 계근대시설) | M106: =N106*O106*P106 -> 5,040 | N106: 70.0 | O106: 6 | P106: 12
I107: ○ 택배비 : 5,000원*3회*12월 | J107: = | K107: 180 | L107: 『전파법』제67조(전파사용료)에 의거 무전기 전파 사용료 납부(20대) | M107: =N107*O107*P107 -> 180 | N107: 5.0 | O107: 3 | P107: 12
I108: ○ 업무용 무선장비 전파 사용료 : 3,500원*36대*4회 | J108: = | K108: 504 | M108: =N108*O108*P108 -> 504 | N108: 3.5 | O108: 36 | P108: 4
I109: ○ 공증 및 각종 제증명발급/등기수수료 등 : 50,000원*12월 | J109: = | K109: 600 | L109: 계약관련 문서 등기발송(협력업체) | M109: =N109*P109 -> 600 | N109: 50.0 | P109: 12
I110: ○ 회계관계직원 재정보증보험료 : 200,000원*3명 | J110: = | K110: 600 | L110: 회계 관련 직원 재정보증 보험 등록(환경사업소장, 관리과장, 김승현) | M110: =N110*O110 -> 600 | N110: 200.0 | O110: 3
I111: ○ 주민세 | J111: = | K111: 400 | L111: 회계 관련 직원 재정보증 보험 등록(환경사업소장, 관리과장, 김승현) | M111: =N111*O111 -> 400 | N111: 400.0 | O111: 1
I112: ○ 협회비 | J112: = | K112: =SUM(K113:K114) -> 800 | L112: ○ 협회비 | M112: =SUM(N113:N114) -> 800
I113: - 산업안전관리협회 외 : 500,000원*1회 | J113: = | K113: =N113 -> 500 | L113: 산업안전관리 협회 등록 | N113: =O113*P113 -> 500 | O113: 500.0 | P113: 1
I114: - 기타협회비(전국 생활폐기물 자원회수 운영협회) : 300,000원*1회 | J114: = | K114: =N114 -> 300 | L114: 전국 생활폐기물 자원회수시설 운영협회(소장단) | N114: =O114*P114 -> 300 | O114: 300.0 | P114: 1
I115: ○ 환경책임보험료 | J115: = | K115: =SUM(K116) -> 12,000 | L115: ○ 환경책임보험료 | M115: =SUM(N116) -> 12,000
I116: - 환경책임보험(소각시설) : 12,000,000원*1회 | J116: = | K116: =N116 -> 12,000 | L116: 「환경오염피해배상책임 및 구제에 관한 법률」제17조 의거 환경책임보험의무 가입 | N116: =O116*P116 -> 12,000 | O116: 12,000.0 | P116: 1
I117: ○ 폐기물처분 분담금 | J117: = | K117: =SUM(K118:K119) -> 113,950 | L117: ○ 폐기물처분 분담금 | M117: =SUM(N118:N119) -> 113,950 | O117: 발생량 | P117: 요율 | Q117: 산정지수
I118: - 소각재(소각시설) : 8,000톤/년 * 10,000원/톤 *산정지수(1.06) | J118: = | K118: =N118 -> 84,800 | L118: 「자원순환기본법」제21조 의거 | N118: =O118*P118*Q118 -> 84,800 | O118: 8,000.0 | P118: 10 | Q118: 1.0600
I119: - 오니(폐수처리시설) :1,100톤/년 * 25,000원/톤 *산정지수(1.06) | J119: = | K119: =N119 -> 29,150 | L119: 「자원순환기본법」제21조 의거 | N119: =O119*P119*Q119 -> 29,150 | O119: 1,100.0 | P119: 25 | Q119: 1.0600
I120: ○ 대기오염 총량제 배출권 구매[SCR운영에 따라 삭제] | J120: = | K120: =SUM(K121) -> 0 | L120: ○ 폐기물처분 분담금 | M120: =SUM(N121) -> 0
I121: - NOx 구매량 없음 | J121: = | K121: =N121 -> 0 | L121: 「자원순환기본법」제21조 의거 | N121: =O121*P121 -> 0 | O121: 1.3 | P121: 0
I122: ○ 차량유지 공공요금(지게차) | K122: =SUM(K123:K125) -> 2,300 | L122: ○ 차량유지 공공요금(지게차) | M122: =SUM(N123:N125) -> 2,300
I123: - 자동차세 : 100,000원*1대*1회 | J123: = | K123: =N123 -> 100 | L123: 지게차 자동차세(2회/년) | N123: =O123*P123*Q123 -> 100 | O123: 100.0 | P123: 1 | Q123: 1
I124: - 환경개선부담금 : 150,000원*1대*2회 | J124: = | K124: =N124 -> 300 | L124: 경유차량 환경개선부담금 | N124: =O124*P124*Q124 -> 300 | O124: 150.0 | P124: 1 | Q124: 2
I125: - 차량보험료 : 1,900,000원*1식(지게차+암롤차)*1회 | J125: = | K125: =N125 -> 1,900 | L125: 지게차 보험료 | N125: =O125*P125*Q125 -> 1,900 | O125: 1,900.0 | P125: 1 | Q125: 1
E126: 22 차량.선박비 | F126: =K126 -> 9,400 | G126: 11,232 | H126: =F126-G126 -> △1,832 | K126: =SUM(K128:K130) -> 9,400 | L126: ○ 차량선박비(렌터카, 지게차) | M126: =N128+N129 -> 8,400
I127: ○ 렌터카, 지게차, 암롤차 유지비
I128: - 차량유지비(세차,소모품,엔진오일 등) : 360,000원*2대*6월 | J128: = | K128: =N128 -> 4,320 | L128: 소모품(엔진오일 등) 교체 | N128: =O128*P128*Q128 -> 4,320 | O128: 360.0 | P128: 2 | Q128: 6
I129: - 차량유류비 : 170리터/(암롤,지게)*2,000원*12월 | J129: = | K129: =N129 -> 4,080 | L129: 연료(경유) 구입 | N129: =O129*P129*Q129*R129 -> 4,080 | O129: 2.0 | P129: 1 | Q129: 12 | R129: 170
I130: - 전기차량충전비 : 2만km/년*50원/km | J130: = | K130: =N130 -> 1,000 | L130: 연료(경유) 구입 | N130: =O130*P130*Q130*R130 -> 1,000 | O130: 0.1 | P130: 1 | Q130: 1 | R130: 20,000
D131: 202 여비 | F131: =F132 -> 9,015 | G131: =G132 -> 9,600 | H131: =F131-G131 -> △585
E132: 01 국내여비 | F132: =M132 -> 9,015 | G132: 9,600 | H132: =F132-G132 -> △585 | K132: =SUM(K133:K134) -> 9,015 | M132: =SUM(N133:N134) -> 9,015
I133: ○ 관내 여비 : 10,000원*5명*1일*12월 | J133: = | K133: =N133 -> 600 | L133: ○ 사규(여비규정) 관련 | N133: =O133*P133*Q133*R133 -> 600 | O133: 10.0 | P133: 5 | Q133: 1 | R133: 12
I134: ○ 관외 여비 : 85,000원*11명*3일*3회 | J134: = | K134: =N134 -> 8,415 | L134: 관내 : 출장여비(2만원/4시간), 관외 : 숙박비(서울특별시 : 70,000원 기준) | N134: =O134*P134*Q134*R134 -> 8,415 | O134: 85.0 | P134: 11 | Q134: 3 | R134: 3
D135: 206 재료비 | F135: =F136+F137 -> 815,212 | G135: =G136+G137 -> 756,704 | H135: =F135-G135 -> 58,508
E136: 01 일반재료비 | F136: 0 | G136: 0 | H136: =F136-G136 -> 0 | I136: ※수선유지에 필요한 재료구입으로 수선유지비로 편성 | K136: 0
E137: 02 약품비 | F137: =M137 -> 815,212 | G137: 756,704 | H137: =F137-G137 -> 58,508 | K137: =SUM(K138:L155) -> 815,212 | M137: =SUM(M138:M155) -> 815,212
I138: ○ 요소수(40%) : 940원*350kg*320일 | J138: = | K138: =N138 -> 105,280 | L138: ○ 요소수 : '18 계약단가(272.71원), 일평균사용량(379kg) | M138: =N138 -> 105,280 | N138: =O138*P138*Q138 -> 105,280 | O138: 0.9 | P138: 350 | Q138: 320
I139: ○ 소석회슬러리 : 90원*6,100kg*320일 | J139: = | K139: 175,680 | L139: ○ 소석회슬러리 : '18 계약단가(46.85원), 일평균사용량(5,912kg) | M139: =N139 -> 175,680 | N139: =O139*P139*Q139 -> 175,680 | O139: 0.1 | P139: 6,100 | Q139: 320
I140: ○ 활성탄(소각) : 2,500원*51kg*320일 | J140: = | K140: 40,800 | L140: ○활성탄 : '18 계약단가(1,595원), 일평균사용량(67.59kg) | M140: 40,800 | N140: 40,800 | O140: 2.5 | P140: 51 | Q140: 320
I141: ○ 탈취제(반입장) : 2,500원*17L*365일 | J141: = | K141: 15,513 | L141: ○ 탈취제 : '18 계약단가(1,881원), 일평균사용량(17L) | M141: 15,513 | N141: 15,513 | O141: 2.5 | P141: 17 | Q141: 365
I142: ○ 살충제(반입장) : 2,000원*2L*365일 | J142: = | K142: 1,460 | L142: ○ 살충제 : '17 계약단가(23,750원), 일평균사용량(1L) | M142: 1,460 | N142: 1,460 | O142: 2.0 | P142: 2 | Q142: 365
I143: ○ 청관제 : 3,200원*3.2kg*320일 | J143: = | K143: 3,277 | L143: ○ 청관제 : '18 계약단가(2,660원), 일평균사용량(1kg) | M143: 3,277 | N143: 3,277 | O143: 3.2 | P143: 3 | Q143: 320
I144: ○ 탈산제 : 3,500원*3.2kg*320일 | J144: = | K144: 3,584 | L144: ○ 탈산제 : '18 계약단가(3,705원), 일평균사용량(1L) | M144: 3,584 | N144: 3,584 | O144: 3.5 | P144: 3 | Q144: 320
I145: ○ 부식방지제 : 4,500원*1.6kg*320일 | J145: = | K145: 2,304 | L145: ○ 부식방지제 : '18 계약단가(3,610원), 일평균사용량(1L) | M145: 2,304 | N145: 2,304 | O145: 4.5 | P145: 2 | Q145: 320
I146: ○ 고형화제(킬레이트) : 2,700원*175kg/일*320일 | J146: = | K146: 151,200 | L146: ○ 살균제 : '17 계약단가(427.5원), 일평균사용량(10L) | M146: 151,200 | N146: 151,200 | O146: 2.7 | P146: 175 | Q146: 320
I147: ○ 암모니아수(9%) : 450원/kg*413kg*320일 | J147: = | K147: =M147 -> 59,472 | L147: ○ 원심탈수기 사용 | M147: 59,472 | N147: 59,472 | O147: 0.5 | P147: 413 | Q147: 320
I148: ○ 가성소다(4.5%) : 190원*170kg*360일 | J148: = | K148: =N148 -> 11,628 | L148: ○ 가성소다 : '18 계약단가(233.7원), 일평균사용량(500kg), 시설개선시 약품량 증가 | M148: 11,628 | N148: 11,628 | O148: 0.2 | P148: 170 | Q148: 360
I149: ○ 응집제(바이오,폐수) : 4,100원*135kg*360일 | J149: = | K149: 199,260 | L149: ○ 응집제 : '18 계약단가(3,212원), 일평균사용량(120kg), 탈수기 변경에 따른 약품사용량 증가 | M149: 199,260 | N149: 199,260 | O149: 4.1 | P149: 135 | Q149: 360
I150: ○ 인산 : 1,500원*5kg*360일 | J150: = | K150: 2,700 | L150: ○ 인산 : '17년 견적가(1,500원), 일평균사용량(15kg), 가성소다 사용량 증가에 따른 사용 | M150: 2,700 | N150: 2,700 | O150: 1.5 | P150: 5 | Q150: 360
I151: ○ 소포제(폐수) : 2,400원*12kg/일*360일 | J151: = | K151: 10,368 | L151: ○ 소포제 : '17 계약단가(2,640원), 하절기(5월~10월) 거품 발생시 사용 | M151: 10,368 | N151: =O151*P151*Q151 -> 10,368 | O151: 2.4 | P151: 12 | Q151: 360
I152: ○ 염화 제2철 : 630원*12kg*360일 | J152: = | K152: =M152 -> 2,722 | L152: ○ 염화제2철 : '18 계약단가(142.5원), 일평균사용량(199kg) | M152: 2,722 | N152: =O152*P152*Q152 -> 2,722 | O152: 0.6 | P152: 12 | Q152: 360
I153: ○ 황산(9%) : 190원*39kg/일*360일 | J153: = | K153: 2,668 | L153: ○ 구연산 : '17년 견적가(2,400원), 일평균사용량(5kg) | M153: 2,668 | N153: 2,668 | O153: 0.2 | P153: 39 | Q153: 360
I154: ○ 구연산 : 5,000원*209kg*2회/월*12개월 | J154: = | K154: 25,080 | L154: ○ 구연산 : '17년 견적가(2,400원), 일평균사용량(5kg) | M154: 25,080 | N154: =O154*P154*Q154*R154 -> 25,080 | O154: 5.0 | P154: 209 | Q154: 2 | R154: 12
I155: ○ 차아염소산나트륨(12%) : 440원*14kg*360일 | J155: = | K155: 2,218 | L155: ○ 원심탈수기 사용 | M155: 2,218 | N155: =O155*P155*Q155 -> 2,218 | O155: 0.4 | P155: 14 | Q155: 360
D156: 214 수선유지교체비 | F156: =F157 -> 2,015,125 | G156: =G157 -> 681,580 | H156: =F156-G156 -> 1,333,545 | M156: =M157 -> 2,015,125
E157: 05 수선유지비 | F157: =M157 -> 2,015,125 | G157: 681,580 | H157: =F157-G157 -> 1,333,545 | K157: =M157 -> 2,015,125 | M157: =SUM(M158:M193) -> 2,015,125
I158: ○ 소각시설물 정기 수선유지비(시설투자비의 0.6% 적용) | K158: =K159 -> 215,000 | L158: ○ 보수 및 운영비 | M158: =SUM(N159) -> 215,000
I159: - 35,889,672,000원*0.6%(12개월) | J159: = | K159: =N159 -> 215,000 | L159: 소각시설 설치 운영지침 해설서(201210최종본) : 유지관리비 산출내역 참조 | N159: =ROUNDDOWN(O159*P159, -3) -> 215,000 | O159: 35,889,672.0 | P159: 0.006
I160: ○ 소각시설 정기유지보수비용(시설투자비의 0.6% 적용) | K160: =K161 -> 215,000 | L160: 보수 및 운영비 : 추청공사비의 1.0% | M160: =SUM(N161) -> 215,000
I161: - 35,889,672,000원 * 0.6% (2회*1년) | J161: = | K161: =N161 -> 215,000 | L161: 소각시설 총 공사비 : 35,889,672천원 | N161: =ROUNDDOWN(O161*P161, -3) -> 215,000 | O161: 35,889,672.0 | P161: 0.006
I162: ○ 바이오시설물등 수선유지비(시설투자비의 0.8 % 적용) | K162: =K163 -> 53,000 | L162: 바이오시설 총 공사비 : 6,613,000천원 | M162: =SUM(N163) -> 53,000
I163: - 6,613,000,000원 * 0.8% | J163: = | K163: =N163 -> 53,000 | N163: =ROUNDUP(O163*P163, -3) -> 53,000 | O163: 6,613,000.0 | P163: 0.01
I164: ○ 바이오시설 정기유지보수비용(시설투자비의 0.8% 적용) | K164: =K165 -> 53,000 | M164: =SUM(N165) -> 53,000
I165: - 6,613,000,000원 * 0.8% | J165: = | K165: =N165 -> 53,000 | N165: =ROUNDUP(O165*P165, -3) -> 53,000 | O165: 6,613,000.0 | P165: 0.01
I166: ○ 기타(비점오염원) 시설물 유지보수 | J166: = | K166: =K167 -> 12,000 | L166: ○ 기타 시설물 유지보수 | M166: =N167 -> 12,000
I167: - 비점오염원 내 여재 교체비 등 : 12,000,000 * 1식 | J167: = | K167: =N167 -> 12,000 | L167: 비점오염원, 세차동, 태양광발전 설비 등 | N167: =O167 -> 12,000 | O167: 12,000.0 | P167: 1
I168: ○ CleanSYS(TMS)소모품 구매 등 | K168: =SUM(K169:K170) -> 10,000 | L168: ○ CleanSYS(대기측정기기) 소모품구매 | M168: =SUM(N169:N170) -> 10,000
I169: - CleanSYS(TMS) 표준가스 구매 : 6,000,000 * 1식 | J169: = | K169: =N169 -> 6,000 | L169: 환경분야 시험․검사등에 관한법률 시행규칙 제9조제1항제1호에 의거 | N169: =O169*Q169 -> 6,000 | O169: 6,000.0 | Q169: 1
I170: - CleanSYS(TMS)유지관리 부품 구매 : 4,000,000 * 1식 | J170: = | K170: 4,000 | L170: 표준가스 교체주기 준수(CO, HCL, NOx, SOx, O2 등), 기타 소모품 구매 | N170: =O170*Q170 -> 4,000 | O170: 4,000.0 | Q170: 1
I171: ○ 윤활유 : 3,500원*30L*1회 | J171: = | K171: 105 | L171: ○ 윤활유 구매 : 크레인 및 유압장치 등 유압유 교체용 | M171: =N171 -> 105 | N171: =O171*P171*Q171 -> 105 | O171: 3.5 | P171: 30 | Q171: 1
I172: ○ 그리스 : 6,000원*10L*4회 | J172: = | K172: 240 | L172: ○ 그리스 구매 : 회전기기류 및 유압설비 그리스 교체용 | M172: 240 | N172: =O172*P172*Q172 -> 240 | O172: 6.0 | P172: 10 | Q172: 4
I173: ○ 소각시설 관련 구매 | K173: =SUM(K174:K180) -> 36,860 | L173: ○ 소각시설 관련 구매 | M173: =SUM(N174:N180) -> 36,860
I174: - 소각로 투시창 : 20,000원 * 20개 | J174: = | K174: =N174 -> 400 | L174: 소각로 내부 확인용 강화유리 구매 | N174: =O174*P174 -> 400 | O174: 20.0 | P174: 20
I175: - 소각로 온도계 : 1,900,000원 * 5개 | J175: = | K175: 9,500 | L175: 소각로 출구 법적온도(850℃) 측정용 온도계 구매('18년도 교체 : 15개) | N175: =O175*P175 -> 9,500 | O175: 1,900.0 | P175: 5
I176: - 톤백 : 7,000원 * 40개 * 12월 | J176: = | K176: 3,360 | L176: 지정폐기물(비산재) 보관용기(톤백) 구매 | N176: =O176*P176*Q176 -> 3,360 | O176: 7.0 | P176: 40 | Q176: 12
I177: - 약품 관련 분사 노즐(팁포함) 구매 : 3,500,000원*2set | J177: = | K177: 7,000 | L177: 액상소석회 요소수 분무용 노즐 및 팁 구매(각 2EA) | N177: =O177*P177 -> 7,000 | O177: 3,500.0 | P177: 2
I178: - 크레인 버켓 SCOOP(발톱 포함)구매 : 2,000,000원*6개 | J178: = | K178: 12,000 | L178: 크레인 버켓 예비품 구매(6발톱/1버켓) | N178: =O178*P178 -> 12,000 | O178: 2,000.0 | P178: 6
I179: - 크레인 와이어 구매 : 600,000원* 4set | J179: = | K179: 2,400 | L179: 크레인 버켓 예비품 구매(2와이어(S,Z)/1버켓) - 2호기 | N179: =O179*P179 -> 2,400 | O179: 600.0 | P179: 4
I180: - 크레인 전선 케이블 구매 : 1,100,000원* 2set | J180: = | K180: 2,200 | L180: 크레인 버켓 예비품 구매(1전선케이블/1버켓) - 2호기 | N180: =O180*P180 -> 2,200 | O180: 1,100.0 | P180: 2
I181: ○ 건축설비 관련 구매 | K181: =SUM(K182:K183) -> 10,300 | L181: ○ 건축설비 관련 구매 | M181: =SUM(N182:N183) -> 10,300
I182: - CCTV 모니터 구매 : 300,000원*2개 | J182: = | K182: =N182 -> 300 | L182: 시설기기 감시용 CCTV 모니터 구매(24시간 연속가동에 따른 소모) | N182: =O182*P182 -> 300 | O182: 300.0 | P182: 1
I183: - 스팀관련 (게이트, 볼)밸브류 구매 : 10,000,000원 * 1식 | J183: = | K183: 10,000 | L183: 소각시설 스팀밸브류 구매(연속가동 및 고온에 의한 고착) | N183: =O183*P183 -> 10,000 | O183: 10,000.0 | P183: 1
I184: ○ 소방시설 관련 구매 | J184: = | K184: =SUM(K185:K185) -> 1,000 | L184: ○ 소방시설 관련 구매 | M184: =SUM(N185:N185) -> 1,000
I185: - 소화기, 소방호스, 각종감지기 등 : 1,000,000원*1식 | J185: = | K185: =N185 -> 1,000 | L185: 소방 시설점검에 따른 교체(노후화, 사용기한 등) | N185: =O185*Q185 -> 1,000 | O185: 1,000.0 | Q185: 1
I186: ○ 기타 잡자재, 소모자재(베어링,실,벨트 등) : 5,000,000원*12월 | J186: = | K186: 60,000 | L186: ○ 기타 소모자제구매 : 각시설에 필요한 잡자제 구매 | M186: =N186 -> 60,000 | N186: =O186*Q186 -> 60,000 | O186: 5,000.0 | Q186: 12
I187: ○ 작업도구(공구 등) 구입 : 2,000,000원*2회 | J187: = | K187: 4,000 | L187: ○ 작업도구(공구 등) 구매 : 유지보수기간에 필요한 공구 구입 | M187: 4,000 | N187: =O187*Q187 -> 4,000 | O187: 2,000.0 | Q187: 2
I188: ○ 폐기물 위탁처리비 [신규] | J188: = | K188: =SUM(K189) -> 1,340,000 | L188: ○ 작업도구(공구 등) 구매 : 유지보수기간에 필요한 공구 구입 | M188: =SUM(N189:N189) -> 1,340,000
I189: - 폐기물(바닥재,안정화처리물,오니) 8,701톤 * 154천원/톤 | J189: = | K189: 1,340,000 | L189: 소방 시설점검에 따른 교체(노후화, 사용기한 등) | N189: 1,340,000 | O189: 154.0 | Q189: 8,701
I190: ○ 시설(시스템) 유지 관리 | K190: =SUM(K191:K193) -> 4,620 | L190: ○ 인사급여시스템(40명, 본부운영) | M190: =SUM(N191:N193) -> 4,620
I191: - 홈페이지 관리 [시설 홈페이지를 공단 홈페이지에 삽입] | J191: = | K191: =N191 -> 0 | N191: =O191*P191*Q191 -> 0 | O191: 0 | P191: 1 | Q191: 12
I192: - 자재관리(관리프로그램) : 350,000원*12월 | J192: = | K192: =N192 -> 4,200 | N192: =O192*P192*Q192 -> 4,200 | O192: 350.0 | P192: 1 | Q192: 12
I193: - 근태관리(관리프로그램) : 35,000원*12월 | J193: = | K193: =N193 -> 420 | N193: =O193*P193*Q193 -> 420 | O193: 35.0 | P193: 1 | Q193: 12
D194: 215 동력비 | F194: =M194 -> 730,004 | G194: 698,960 | H194: =F194-G194 -> 31,044 | K194: =SUM(K195+K198+K199) -> 730,004 | M194: =SUM(M195:M203) -> 730,004
I195: ○ 공업용수 사용요금 | K195: =SUM(K196:K197) -> 151,764 | L195: ○ 공업용수 사용요금 | M195: =SUM(N196:N197) -> 151,764
I196: - 보일러용수(demi-water) : 1,650원*6,380톤*12개월 | J196: = | K196: =N196 -> 126,324 | L196: 보일러 용수 : 년간 계약단가(1,500원), 사용량(4,586톤/월) | N196: =INT(O196*P196*Q196) -> 126,324 | O196: 1.7 | P196: =5800*1.1 -> 6,380 | Q196: 12
I197: - 공업용수 : 400원*5,300톤*12월 | J197: = | K197: =N197 -> 25,440 | L197: 공업용수 : 년간 계약단가(383원), 사용량(2,436톤/월) | N197: =INT(O197*P197*Q197) -> 25,440 | O197: 0.4 | P197: 5,300 | Q197: 12
I198: ○ 전기요금 : 140원*313,000kwh*12월 | K198: =M198 -> 525,840 | L198: ○ 전기요금 : '17년도 평균단가(118원/kwh), 월평균 사용량(298,743kwh), 월평균 사용금액 : 35,482천원 | M198: =N198 -> 525,840 | N198: =INT(O198*P198*Q198) -> 525,840 | O198: 0.1 | P198: 313,000 | Q198: 12
I199: ○ 연료비 | K199: =SUM(K200:K203) -> 52,400 | L199: ○ 연료비 | M199: =SUM(N200:N203) -> 52,400
I200: - 보조버너(정기유지보수 승온) : 2,000원*5,000L*2회 | J200: = | K200: =N200 -> 20,000 | L200: '18.8월 전남지역 경유단가 : 1,389.7원 | N200: =INT(O200*P200*Q200) -> 20,000.00 | O200: 2.0 | P200: 5,000 | Q200: 2
... 23 more rows

Sheet 4.자금운영계획
B9: 4. 자 금 운 영 계 획

Sheet 자금운용수입4장
A1: ○ 자금운영계획
A2: 가.수입자금 | F2: (단위:천원)
A3: 구분 | C3: 당년도 예산 (A) | D3: 전년도 예산 (B) | E3: 증 감 (A-B) | F3: 비고
A4: 수입자금 | C4: =C5+C10+C13+C21+C15+C17+C19 -> 49,581,723 | D4: =D5+D10+D13+D21+D15+D17+D19 -> 43,104,386 | E4: =C4-D4 -> 6,477,337
A5: 영업수익 | B5: 계 | C5: =SUM(C6:C9) -> 46,799,453 | D5: =SUM(D6:D9) -> 40,279,727 | E5: =C5-D5 -> 6,519,726
B6: 용지매출수익 | C6: 0 | D6: 0 | E6: =C6-D6 -> 0
B7: 주택판매수익 | C7: 0 | D7: 0 | E7: 0
B8: 임대사업수익 | C8: 0 | D8: 0 | E8: 0
B9: 대행사업수익 | C9: ='가. 수입예산(사업수익+자본적수입)'!E8 -> 46,799,453 | D9: ='가. 수입예산(사업수익+자본적수입)'!F8 -> 40,279,727 | E9: 6,519,726
A10: 영업외수익 | B10: 계 | C10: =SUM(C11:C12) -> 5,000 | D10: 5,000 | E10: 0
B11: 이자수익 | C11: 0 | D11: 0 | E11: 0
B12: 기타영업외수익 | C12: ='가. 수입예산(사업수익+자본적수입)'!E22 -> 5,000 | D12: ='가. 수입예산(사업수익+자본적수입)'!F22 -> 5,000 | E12: 0
A13: 기타비유동자산처분 | B13: 계 | C13: =C14 -> 0 | D13: 0 | E13: 0
B14: 비유동자산처분수입 | C14: =[1]자본예산총괄표!C10 -> 0 | D14: 0 | E14: 0
A15: 유동부채수입 | B15: 계 | C15: =C16 -> 0 | D15: 0 | E15: 0
B16: 기타유동부채수입 | C16: 0 | D16: 0 | E16: 0
A17: 자본잉여금수입 | B17: 계 | C17: =C18 -> 2,277,270 | D17: =D18 -> 2,287,922 | E17: △10,652
B18: 자본잉여금수입 | C18: ='3-2.자본예산총괄표'!C17 -> 2,277,270 | D18: ='가. 수입예산(사업수익+자본적수입)'!F26 -> 2,287,922 | E18: △10,652
A19: 유보자금 | B19: 계 | C19: =C20 -> 500,000 | D19: =D20 -> 500,000 | E19: =E20 -> 0
B20: 유 보 자 금 | C20: 500,000 | D20: 500,000 | E20: =C20-D20 -> 0
A21: 전년이월금 | B21: 계 | C21: =C22 -> 0 | D21: =D22 -> 31,737 | E21: =C21-D21 -> △31,737
B22: 사 고 이 월 금 | C22: 0 | D22: 31,737 | E22: =C22-D22 -> △31,737

Sheet 자금운용지출5장
A2: 나. 지출자금 | G2: (단위 : 천원)
A3: 구 분 | D3: 당년도 예산 (A) | E3: 전년도 예산 (B) | F3: 증 감 (A-B) | G3: 비고
A4: 지출자금 | D4: =SUM(D5,D17,D38) -> 49,581,723 | E4: =SUM(E5,E17,E38) -> 43,104,386 | F4: =D4-E4 -> 6,477,337
B5: 사업비용 | D5: =SUM(D6,D13:D14,D15) -> 46,804,453 | E5: =SUM(E6,E13:E14,E15) -> 40,284,727 | F5: 6,519,726
B6: 영업비용 | D6: =D9+D10 -> 46,799,453 | E6: =SUM(E7:E12) -> 40,279,727 | F6: 6,519,726
C7: 용지매출원가 | D7: 0 | E7: 0 | F7: 0
C8: 주택판매원가 | D8: 0 | E8: 0 | F8: 0
C9: 대행사업비 | D9: ='3-1.사업예산총괄표'!C9 -> 28,808,790 | E9: ='가. 수입예산(사업수익+자본적수입)'!F9 -> 28,155,672 | F9: 653,118
C10: 대행사업비(본사) | D10: ='3-1.사업예산총괄표'!C10 -> 17,990,663 | E10: ='가. 수입예산(사업수익+자본적수입)'!F19 -> 12,124,055 | F10: 5,866,608
C11: 성과급 | E11: 0 | F11: 0
F12: 0
B13: 일반예비비 | D13: =[1]가.사업예산총괄표!F19 -> 0 | E13: 0 | F13: 0
B14: 영업외비용 | D14: ='[2]3-1.사업예산총괄표'!F14 -> 5,000 | E14: 5,000 | F14: 0
B15: 법인세등 | D15: =D16 -> 0 | E15: =E16 -> 0 | F15: 0
C16: 법인세등 | D16: =[1]가.사업예산총괄표!F17 -> 0 | E16: 0 | F16: 0
B17: 자본적비용 | D17: =D22+D27+D29+D32+D34+D36 -> 2,777,270 | E17: =E22+E27+E29+E32+E36 -> 2,787,922 | F17: △10,652
B18: 재고자산 | D18: =SUM(D19:D21) ->  | E18: =SUM(E19:E21) -> 0 | F18: =E18-D18 -> 
C19: 미완성토지 | D19: =[1]자본예산총괄표!F7 ->  | E19: 0
C20: 미완성주택 | D20: =[1]자본예산총괄표!F8 -> 0 | E20: 0 | F20: 0
C21: 지급이자 | D21: 0 | E21: 0 | F21: 0
B22: 유형자산 | D22: =D26+D24 -> 2,277,270 | E22: =E26+E24 -> 2,287,922 | F22: =D22-E22 -> △10,652
C23: 건 물 | F23: 0
C24: 기계장치 | D24: ='3-2.자본예산총괄표'!F12 -> 1,275,000 | E24: 1,630,000 | F24: =D24-E24 -> △355,000
C25: 차량운반구 | F25: 0
C26: 수탁자산취득비 | D26: ='3-2.자본예산총괄표'!F14 -> 1,002,270 | E26: 657,922 | F26: =D26-E26 -> 344,348
B27: 무형자산및기타비유동자산취득 | D27: =D28 -> 0 | E27: =E28 -> 0 | F27: =D27-E27 -> 0
C28: 보증금 | D28: =[1]자본예산총괄표!F15 -> 0 | E28: 0 | F28: =D28-E28 -> 0
B29: 유동부채상환 | D29: =SUM(D30:D31) -> 0 | E29: =SUM(E30:E31) -> 0 | F29: 0
C30: 선수금상환 | D30: 0 | E30: 0 | F30: 0
C31: 기타유동부채상환 | D31: 0 | E31: 0 | F31: 0
B32: 기타자본적지출 | D32: =D33 -> 0 | E32: 0 | F32: =D32-E32 -> 0
C33: 기타자본적지출 | D33: 0 | E33: 0 | F33: =D33-E33 -> 0
B34: 투자자산 | D34: =D35 -> 0 | E34: =SUM(E35) -> 0 | F34: 0
C35: 투자자산 | E35: 0 | F35: 0
B36: 예비비 | D36: =D37 -> 500,000 | E36: =E37 -> 500,000 | F36: =D36-E36 -> 0
C37: 자본예비비 | D37: =[1]자본예산총괄표!F25 -> 500,000 | E37: 500,000 | F37: =D37-E37 -> 0
B38: 전년이월금 | D38: =D39 -> 0 | E38: =E39 -> 31,737 | F38: =D38-E38 -> △31,737
C39: 사고이월금 | D39: 0 | E39: 31,737 | F39: =D39-E39 -> △31,737
